Body name,Service Area Categorisation,Cost Centre Description,Detailed Expenses Type,Expenses Code,Date,Transaction Number,Amount,Supplier Name
Solihull MBC,Children & Education Services,Kingshurst Primary,Purchase Card Statement Summary,D11002,01/10/2014,PC37561,19.31,99P Stores
Solihull MBC,Children & Education Services,Catering Management,Materials,D11000,11/09/2014,PC34894,5.94,99P Stores Ltd
Solihull MBC,Children & Education Services,Auckland Centre,Furniture & Equipment,D10000,06/09/2014,PC24140,6.93,99P Stores Ltd
Solihull MBC,Children & Education Services,Dorridge Inf,Capitation,D11001,12/09/2014,PC30535,23.43,99P Stores Ltd
Solihull MBC,Children & Education Services,St Anthony's J&I,Building Maint Day To Day,B31001,26/09/2014,PC11691,12.75,A J M (1988) Ltd
Solihull MBC,Children & Education Services,St Anthony's J&I,Building Maint Day To Day,B31001,17/09/2014,PC42137,15.55,A J M (1988) Ltd
Solihull MBC,Children & Education Services,Smith's Wood,Capitation,D11001,07/09/2014,PC06296,52.20,Abebooks.Com
Solihull MBC,Children & Education Services,Shirley Heath Jnr,Building Maint Day To Day,B31001,08/09/2014,PC81665,183.36,Aco Technologies L
Solihull MBC,Adult Social Care,ASC - WFD - SMBC,General Office Expenses,D42000,12/09/2014,PC18370,163.2,Action On Elder Abuse
Solihull MBC,Adult Social Care,ASC - WFD - SMBC,General Office Expenses,D42000,12/09/2014,PC18693,163.20,Action On Elder Abuse
Solihull MBC,Children & Education Services,Meriden J&I,Health & Safety,B43003,22/09/2014,PC17812,114,Adband
Solihull MBC,Planning & Development Services,Building Control Holding Account,Materials,D11000,30/09/2014,PC89619,111.00,Addacard Limited
Solihull MBC,Children & Education Services,Int. Fostering South/Central,Guardianship Allowance,D50003,11/09/2014,PC88467,226.98,Aerling     2Itv3B Ramsay
Solihull MBC,Adult Social Care,25 Stapleton Drive,Clients Expenses,D62000,27/09/2014,PC37317,11.68,Aerop.Alicante Hosteleria
Solihull MBC,Adult Social Care,OP - Home Care HQ,Grant & Subscription (SCITT),D92000,26/09/2014,PC32828,54.46,Agora Publications
Solihull MBC,Children & Education Services,Corporate Parenting Youth,Clients Expenses,D62000,03/09/2014,PC99759,-36.95,AKM Birmingham Ltd Ta
Solihull MBC,Children & Education Services,Corporate Parenting Youth,Clients Expenses,D62000,03/09/2014,PC99734,36.95,AKM Birmingham Ltd Ta
Solihull MBC,Housing Revenue Account,Purchase Card Acquisitions,General Debtors,R20000,05/09/2014,PC39819,26.56,Alliance Disposables
Solihull MBC,Housing Revenue Account,Purchase Card Acquisitions,General Debtors,R20000,03/09/2014,PC47715,29.4,Alliance Disposables
Solihull MBC,Housing Revenue Account,Purchase Card Acquisitions,General Debtors,R20000,03/09/2014,PC47707,143.46,Alliance Disposables
Solihull MBC,Children & Education Services,Smith's Wood,Visits & Pupil Activities,D52002,26/09/2014,PC06171,308,Alton Towers Park
Solihull MBC,Children & Education Services,Smith's Wood,Visits & Pupil Activities,D52002,25/09/2014,PC22511,420.00,Alton Towers Park
Solihull MBC,Cultural & Related Services,Business Support,IT Equipment & Software,D32000,04/09/2014,PC48564,142.56,AM Labels Limited
Solihull MBC,Children & Education Services,Chapel Fields Jnr,Capitation,D11001,13/09/2014,PC49705,-83.70,Amazon *Mktplce Eu-Uk
Solihull MBC,Housing Revenue Account,Purchase Card Acquisitions,General Debtors,R20000,04/09/2014,PC31967,-69.98,Amazon *Mktplce Eu-Uk
Solihull MBC,Children & Education Services,Dickens Hth Primary,Capitation,D11001,22/09/2014,PC87241,-4.29,Amazon *Mktplce Eu-Uk
Solihull MBC,Children & Education Services,Marston Green Jnr,Capitation,D11001,04/09/2014,PC29150,0.01,Amazon *Mktplce Eu-Uk
Solihull MBC,Children & Education Services,C Brom Infants Club,Capitation,D11001,18/09/2014,PC55150,0.7,Amazon *Mktplce Eu-Uk
Solihull MBC,Children & Education Services,Oak Cottage J&I,Capitation,D11001,19/09/2014,PC73656,0.91,Amazon *Mktplce Eu-Uk
Solihull MBC,Cultural & Related Services,Arts Complex Hirings,Other Fees,D52000,15/09/2014,PC12417,0.92,Amazon *Mktplce Eu-Uk
Solihull MBC,Children & Education Services,Reynalds Cross,Capitation,D11001,13/09/2014,PC00795,0.99,Amazon *Mktplce Eu-Uk
Solihull MBC,Housing Revenue Account,Purchase Card Acquisitions,General Debtors,R20000,26/09/2014,PC34891,0.99,Amazon *Mktplce Eu-Uk
Solihull MBC,Children & Education Services,Smith's Wood,Capitation,D11001,30/09/2014,PC57316,1.05,Amazon *Mktplce Eu-Uk
Solihull MBC,Children & Education Services,Reynalds Cross,Capitation,D11001,16/09/2014,PC13032,1.11,Amazon *Mktplce Eu-Uk
Solihull MBC,Children & Education Services,Kingshurst Primary,Purchase Card Statement Summary,D11002,25/09/2014,PC83491,1.12,Amazon *Mktplce Eu-Uk
Solihull MBC,Children & Education Services,Shirley Heath Jnr,IT Equipment & Software,D32000,17/09/2014,PC38325,1.18,Amazon *Mktplce Eu-Uk
Solihull MBC,Children & Education Services,Peterbrook J&I,Capitation,D11001,09/09/2014,PC64030,1.20,Amazon *Mktplce Eu-Uk
Solihull MBC,Children & Education Services,C Brom Infants Club,Capitation,D11001,18/09/2014,PC16268,1.24,Amazon *Mktplce Eu-Uk
Solihull MBC,Children & Education Services,C Brom Infants Club,Capitation,D11001,19/09/2014,PC88953,1.49,Amazon *Mktplce Eu-Uk
Solihull MBC,Children & Education Services,Adoption Team,Materials,D11000,04/09/2014,PC42422,1.65,Amazon *Mktplce Eu-Uk
Solihull MBC,Children & Education Services,Shirley Heath Jnr,IT Equipment & Software,D32000,16/09/2014,PC43639,1.75,Amazon *Mktplce Eu-Uk
Solihull MBC,Children & Education Services,Marston Green Jnr,Capitation,D11001,12/09/2014,PC79096,1.85,Amazon *Mktplce Eu-Uk
Solihull MBC,Children & Education Services,C Brom Infants Club,Capitation,D11001,17/09/2014,PC06525,1.9,Amazon *Mktplce Eu-Uk
Solihull MBC,Children & Education Services,Chapel Fields Jnr,Capitation,D11001,04/09/2014,PC74132,1.95,Amazon *Mktplce Eu-Uk
Solihull MBC,Children & Education Services,Kingshurst Primary,Purchase Card Statement Summary,D11002,17/09/2014,PC37957,1.95,Amazon *Mktplce Eu-Uk
Solihull MBC,Children & Education Services,Kingshurst Primary,Purchase Card Statement Summary,D11002,01/10/2014,PC35484,1.99,Amazon *Mktplce Eu-Uk
Solihull MBC,Children & Education Services,Wrap Around Club,Capitation,D11001,04/09/2014,PC45028,2.09,Amazon *Mktplce Eu-Uk
Solihull MBC,Children & Education Services,Wrap Around Club,Capitation,D11001,13/09/2014,PC92920,2.11,Amazon *Mktplce Eu-Uk
Solihull MBC,Children & Education Services,Ulverley J&I,IT Equipment & Software,D32000,16/09/2014,PC54023,2.38,Amazon *Mktplce Eu-Uk
Solihull MBC,Children & Education Services,Peterbrook J&I,Capitation,D11001,09/09/2014,PC38100,2.40,Amazon *Mktplce Eu-Uk
Solihull MBC,Children & Education Services,C Brom Infants Club,Capitation,D11001,18/09/2014,PC44354,2.62,Amazon *Mktplce Eu-Uk
Solihull MBC,Children & Education Services,Summerfield Centre,Capitation,D11001,06/09/2014,PC47686,2.76,Amazon *Mktplce Eu-Uk
Solihull MBC,Children & Education Services,Greswold J&I,Capitation,D11001,15/09/2014,PC47416,2.8,Amazon *Mktplce Eu-Uk
Solihull MBC,Children & Education Services,Marston Green Jnr,Capitation,D11001,03/09/2014,PC84780,2.81,Amazon *Mktplce Eu-Uk
Solihull MBC,Children & Education Services,Marston Green Jnr,Capitation,D11001,03/09/2014,PC08757,2.81,Amazon *Mktplce Eu-Uk
Solihull MBC,Children & Education Services,Marston Green Jnr,Capitation,D11001,03/09/2014,PC30248,2.81,Amazon *Mktplce Eu-Uk
Solihull MBC,Children & Education Services,Marston Green Jnr,Capitation,D11001,04/09/2014,PC24609,2.81,Amazon *Mktplce Eu-Uk
Solihull MBC,Children & Education Services,Marston Green Jnr,Capitation,D11001,05/09/2014,PC08304,2.81,Amazon *Mktplce Eu-Uk
Solihull MBC,Children & Education Services,St John The Baptist J&I,Capitation,D11001,22/09/2014,PC28667,2.81,Amazon *Mktplce Eu-Uk
Solihull MBC,Children & Education Services,Dickens Hth Primary,Capitation,D11001,29/09/2014,PC11340,2.81,Amazon *Mktplce Eu-Uk
Solihull MBC,Children & Education Services,Dickens Hth Primary,Capitation,D11001,29/09/2014,PC35356,2.81,Amazon *Mktplce Eu-Uk
Solihull MBC,Children & Education Services,Dickens Hth Primary,Capitation,D11001,30/09/2014,PC81422,2.81,Amazon *Mktplce Eu-Uk
Solihull MBC,Cultural & Related Services,Arts Complex Hirings,Other Fees,D52000,10/09/2014,PC16459,2.88,Amazon *Mktplce Eu-Uk
Solihull MBC,Children & Education Services,Chapel Fields Jnr,Capitation,D11001,17/09/2014,PC05865,2.9,Amazon *Mktplce Eu-Uk
Solihull MBC,Children & Education Services,Auckland Centre,Furniture & Equipment,D10000,08/09/2014,PC20277,2.95,Amazon *Mktplce Eu-Uk
Solihull MBC,Children & Education Services,C Brom Infants Club,Capitation,D11001,17/09/2014,PC91572,2.95,Amazon *Mktplce Eu-Uk
Solihull MBC,Children & Education Services,Ark,Capitation,D11001,10/09/2014,PC03953,2.97,Amazon *Mktplce Eu-Uk
Solihull MBC,Children & Education Services,Marston Green Jnr,Capitation,D11001,05/09/2014,PC64391,2.97,Amazon *Mktplce Eu-Uk
Solihull MBC,Children & Education Services,Reynalds Cross,Capitation,D11001,03/09/2014,PC18224,2.99,Amazon *Mktplce Eu-Uk
Solihull MBC,Children & Education Services,Kingshurst Primary,Purchase Card Statement Summary,D11002,26/09/2014,PC15272,2.99,Amazon *Mktplce Eu-Uk
Solihull MBC,Children & Education Services,Smith's Wood,Capitation,D11001,01/10/2014,PC27576,3,Amazon *Mktplce Eu-Uk
Solihull MBC,Children & Education Services,Kingshurst Primary,Purchase Card Statement Summary,D11002,01/10/2014,PC81334,3.20,Amazon *Mktplce Eu-Uk
Solihull MBC,Children & Education Services,Adoption Team,Materials,D11000,03/09/2014,PC75742,3.21,Amazon *Mktplce Eu-Uk
Solihull MBC,Children & Education Services,Summerfield Centre,Capitation,D11001,05/09/2014,PC73230,3.24,Amazon *Mktplce Eu-Uk
Solihull MBC,Children & Education Services,Kingshurst Primary,Purchase Card Statement Summary,D11002,17/09/2014,PC69048,3.25,Amazon *Mktplce Eu-Uk
Solihull MBC,Children & Education Services,Dickens Hth Primary,Capitation,D11001,26/09/2014,PC84307,3.25,Amazon *Mktplce Eu-Uk
Solihull MBC,Children & Education Services,Marston Green Jnr,Capitation,D11001,03/09/2014,PC53934,3.40,Amazon *Mktplce Eu-Uk
Solihull MBC,Children & Education Services,Marston Green Jnr,Capitation,D11001,03/09/2014,PC08513,3.40,Amazon *Mktplce Eu-Uk
Solihull MBC,Children & Education Services,Smith's Wood,IT Equipment & Software,D32000,25/09/2014,PC15123,3.5,Amazon *Mktplce Eu-Uk
Solihull MBC,Children & Education Services,Reynalds Cross,Capitation,D11001,14/09/2014,PC33422,3.55,Amazon *Mktplce Eu-Uk
Solihull MBC,Children & Education Services,Dickens Hth Primary,Capitation,D11001,23/09/2014,PC67560,3.68,Amazon *Mktplce Eu-Uk
Solihull MBC,Children & Education Services,C Brom Infants Club,Capitation,D11001,17/09/2014,PC96449,3.70,Amazon *Mktplce Eu-Uk
Solihull MBC,Children & Education Services,Ark,Capitation,D11001,11/09/2014,PC53458,3.72,Amazon *Mktplce Eu-Uk
Solihull MBC,Children & Education Services,Ark,Capitation,D11001,10/09/2014,PC05951,3.73,Amazon *Mktplce Eu-Uk
Solihull MBC,Children & Education Services,Dickens Hth Primary,Capitation,D11001,22/09/2014,PC41616,3.8,Amazon *Mktplce Eu-Uk
Solihull MBC,Children & Education Services,Smith's Wood,Capitation,D11001,30/09/2014,PC45342,3.84,Amazon *Mktplce Eu-Uk
Solihull MBC,Children & Education Services,Kingshurst Primary,Purchase Card Statement Summary,D11002,26/09/2014,PC81102,3.95,Amazon *Mktplce Eu-Uk
Solihull MBC,Children & Education Services,Burman Inf,Capitation,D11001,17/09/2014,PC76007,3.97,Amazon *Mktplce Eu-Uk
Solihull MBC,Cultural & Related Services,Arts Complex Hirings,Other Fees,D52000,11/09/2014,PC06751,3.98,Amazon *Mktplce Eu-Uk
Solihull MBC,Cultural & Related Services,Arts Complex Hirings,Other Fees,D52000,11/09/2014,PC88825,4,Amazon *Mktplce Eu-Uk
Solihull MBC,Children & Education Services,Summerfield Centre,Capitation,D11001,06/09/2014,PC44642,4.19,Amazon *Mktplce Eu-Uk
Solihull MBC,Children & Education Services,Bishop Wilson J&I,Capitation,D11001,30/09/2014,PC05487,4.22,Amazon *Mktplce Eu-Uk
Solihull MBC,Children & Education Services,Marston Green Jnr,Capitation,D11001,04/09/2014,PC16984,4.23,Amazon *Mktplce Eu-Uk
Solihull MBC,Children & Education Services,Berkswell J&I,Capitation,D11001,08/09/2014,PC35789,4.29,Amazon *Mktplce Eu-Uk
Solihull MBC,Children & Education Services,Dickens Hth Primary,Capitation,D11001,22/09/2014,PC95797,4.29,Amazon *Mktplce Eu-Uk
Solihull MBC,Cultural & Related Services,Arts Complex Hirings,Other Fees,D52000,10/09/2014,PC01207,4.41,Amazon *Mktplce Eu-Uk
Solihull MBC,Children & Education Services,Kingshurst Primary,Purchase Card Statement Summary,D11002,19/09/2014,PC30170,4.48,Amazon *Mktplce Eu-Uk
Solihull MBC,Children & Education Services,Dickens Hth Primary,Capitation,D11001,30/09/2014,PC71322,4.48,Amazon *Mktplce Eu-Uk
Solihull MBC,Children & Education Services,Dickens Hth Primary,Capitation,D11001,21/09/2014,PC12626,4.49,Amazon *Mktplce Eu-Uk
Solihull MBC,Children & Education Services,St Andrew's J&I,IT Equipment & Software,D32000,23/09/2014,PC20488,4.52,Amazon *Mktplce Eu-Uk
Solihull MBC,Children & Education Services,Chapel Fields Jnr,Capitation,D11001,09/09/2014,PC05193,4.54,Amazon *Mktplce Eu-Uk
Solihull MBC,Children & Education Services,Coronation Youth Centre,Furniture & Equipment,D10000,16/09/2014,PC53962,4.58,Amazon *Mktplce Eu-Uk
Solihull MBC,Children & Education Services,Marston Green Jnr,Capitation,D11001,04/09/2014,PC80731,4.60,Amazon *Mktplce Eu-Uk
Solihull MBC,Children & Education Services,Marston Green Jnr,Capitation,D11001,04/09/2014,PC79034,4.62,Amazon *Mktplce Eu-Uk
Solihull MBC,Children & Education Services,Dickens Hth Primary,Capitation,D11001,29/09/2014,PC03761,4.62,Amazon *Mktplce Eu-Uk
Solihull MBC,Children & Education Services,Coppice Jnr,Capitation,D11001,09/09/2014,PC53858,4.66,Amazon *Mktplce Eu-Uk
Solihull MBC,Children & Education Services,Ulverley J&I,IT Equipment & Software,D32000,25/09/2014,PC24868,4.76,Amazon *Mktplce Eu-Uk
Solihull MBC,Children & Education Services,Hazel Oak,Capitation,D11001,24/09/2014,PC45229,4.77,Amazon *Mktplce Eu-Uk
Solihull MBC,Children & Education Services,Summerfield Centre,Capitation,D11001,08/09/2014,PC93537,4.78,Amazon *Mktplce Eu-Uk
Solihull MBC,Children & Education Services,St John The Baptist J&I,IT Equipment & Software,D32000,29/09/2014,PC58776,4.78,Amazon *Mktplce Eu-Uk
Solihull MBC,Children & Education Services,Chapel Fields Jnr,Capitation,D11001,10/09/2014,PC91696,4.79,Amazon *Mktplce Eu-Uk
Solihull MBC,Children & Education Services,Forest Oak,Capitation,D11001,24/09/2014,PC99946,4.95,Amazon *Mktplce Eu-Uk
Solihull MBC,Children & Education Services,Coronation Youth Centre,Furniture & Equipment,D10000,16/09/2014,PC51732,5.16,Amazon *Mktplce Eu-Uk
Solihull MBC,Children & Education Services,Coppice Jnr,Capitation,D11001,08/09/2014,PC34356,5.19,Amazon *Mktplce Eu-Uk
Solihull MBC,Children & Education Services,Dickens Hth Primary,Capitation,D11001,14/09/2014,PC13892,5.19,Amazon *Mktplce Eu-Uk
Solihull MBC,Children & Education Services,Marston Green Jnr,Capitation,D11001,04/09/2014,PC30313,5.2,Amazon *Mktplce Eu-Uk
Solihull MBC,Children & Education Services,Dickens Hth Primary,Capitation,D11001,16/09/2014,PC76253,5.24,Amazon *Mktplce Eu-Uk
Solihull MBC,Children & Education Services,C Brom Infants Club,Capitation,D11001,17/09/2014,PC99472,5.41,Amazon *Mktplce Eu-Uk
Solihull MBC,Children & Education Services,Forest Oak,Capitation,D11001,19/09/2014,PC35312,5.49,Amazon *Mktplce Eu-Uk
Solihull MBC,Children & Education Services,Dickens Hth Primary,Capitation,D11001,20/09/2014,PC65752,5.51,Amazon *Mktplce Eu-Uk
Solihull MBC,Children & Education Services,Oak Cottage J&I,Capitation,D11001,18/09/2014,PC04960,5.58,Amazon *Mktplce Eu-Uk
Solihull MBC,Children & Education Services,Marston Green Jnr,Capitation,D11001,03/09/2014,PC79309,5.62,Amazon *Mktplce Eu-Uk
Solihull MBC,Children & Education Services,Marston Green Jnr,Capitation,D11001,03/09/2014,PC72945,5.62,Amazon *Mktplce Eu-Uk
Solihull MBC,Children & Education Services,Dickens Hth Primary,Capitation,D11001,23/09/2014,PC18517,5.78,Amazon *Mktplce Eu-Uk
Solihull MBC,Children & Education Services,Berkswell J&I,Capitation,D11001,08/09/2014,PC48986,5.79,Amazon *Mktplce Eu-Uk
Solihull MBC,Children & Education Services,Bishop Wilson J&I,Capitation,D11001,30/09/2014,PC59625,5.79,Amazon *Mktplce Eu-Uk
Solihull MBC,Children & Education Services,Monkspath J&I,Capitation,D11001,08/09/2014,PC78502,5.80,Amazon *Mktplce Eu-Uk
Solihull MBC,Children & Education Services,Coppice Jnr,IT Equipment & Software,D32000,03/09/2014,PC21967,5.98,Amazon *Mktplce Eu-Uk
Solihull MBC,Children & Education Services,Dickens Hth Primary,Capitation,D11001,24/09/2014,PC54295,5.98,Amazon *Mktplce Eu-Uk
Solihull MBC,Children & Education Services,St John The Baptist J&I,Capitation,D11001,15/09/2014,PC43050,5.99,Amazon *Mktplce Eu-Uk
Solihull MBC,Children & Education Services,Dickens Hth Primary,Capitation,D11001,26/09/2014,PC22588,6,Amazon *Mktplce Eu-Uk
Solihull MBC,Children & Education Services,Lyndon,Capitation,D11001,23/09/2014,PC60379,6.01,Amazon *Mktplce Eu-Uk
Solihull MBC,Children & Education Services,Monkspath J&I,Capitation,D11001,09/09/2014,PC97731,6.18,Amazon *Mktplce Eu-Uk
Solihull MBC,Children & Education Services,Marston Green Jnr,Capitation,D11001,03/09/2014,PC32327,6.23,Amazon *Mktplce Eu-Uk
Solihull MBC,Children & Education Services,St Margaret's J&I,Capitation,D11001,10/09/2014,PC13637,6.25,Amazon *Mktplce Eu-Uk
Solihull MBC,Children & Education Services,Marston Green Jnr,Capitation,D11001,03/09/2014,PC83263,6.26,Amazon *Mktplce Eu-Uk
Solihull MBC,Children & Education Services,Reynalds Cross,Capitation,D11001,13/09/2014,PC26327,6.39,Amazon *Mktplce Eu-Uk
Solihull MBC,Children & Education Services,Marston Green Jnr,Capitation,D11001,03/09/2014,PC76456,6.65,Amazon *Mktplce Eu-Uk
Solihull MBC,Children & Education Services,Damson Wood Inf,Capitation,D11001,26/09/2014,PC99913,6.75,Amazon *Mktplce Eu-Uk
Solihull MBC,Children & Education Services,Kingshurst Primary,Purchase Card Statement Summary,D11002,10/09/2014,PC03666,6.98,Amazon *Mktplce Eu-Uk
Solihull MBC,Children & Education Services,St Andrew's J&I,IT Equipment & Software,D32000,22/09/2014,PC00276,6.99,Amazon *Mktplce Eu-Uk
Solihull MBC,Children & Education Services,Burman Inf,Capitation,D11001,11/09/2014,PC46701,7,Amazon *Mktplce Eu-Uk
Solihull MBC,Children & Education Services,St John The Baptist J&I,IT Equipment & Software,D32000,16/09/2014,PC66560,7.00,Amazon *Mktplce Eu-Uk
Solihull MBC,Children & Education Services,Marston Green Jnr,Capitation,D11001,02/10/2014,PC44598,7.05,Amazon *Mktplce Eu-Uk
Solihull MBC,Children & Education Services,Dickens Hth Primary,Capitation,D11001,22/09/2014,PC33935,7.3,Amazon *Mktplce Eu-Uk
Solihull MBC,Children & Education Services,Ark,Capitation,D11001,11/09/2014,PC76684,7.38,Amazon *Mktplce Eu-Uk
Solihull MBC,Children & Education Services,Smith's Wood,Capitation,D11001,30/09/2014,PC79509,7.48,Amazon *Mktplce Eu-Uk
Solihull MBC,Children & Education Services,Marston Green Jnr,Capitation,D11001,02/10/2014,PC79930,7.52,Amazon *Mktplce Eu-Uk
Solihull MBC,Children & Education Services,Coppice Jnr,Capitation,D11001,09/09/2014,PC83907,7.58,Amazon *Mktplce Eu-Uk
Solihull MBC,Children & Education Services,St John The Baptist J&I,Capitation,D11001,30/09/2014,PC98552,7.64,Amazon *Mktplce Eu-Uk
Solihull MBC,Children & Education Services,Meriden J&I,Stationery,D41000,11/09/2014,PC18320,7.69,Amazon *Mktplce Eu-Uk
Solihull MBC,Children & Education Services,Smith's Wood,Capitation,D11001,30/09/2014,PC34769,7.69,Amazon *Mktplce Eu-Uk
Solihull MBC,Children & Education Services,Wrap Around Club,Capitation,D11001,13/09/2014,PC27434,7.73,Amazon *Mktplce Eu-Uk
Solihull MBC,Children & Education Services,St Margaret's J&I,Capitation,D11001,29/09/2014,PC72762,7.75,Amazon *Mktplce Eu-Uk
Solihull MBC,Children & Education Services,Dickens Hth Primary,Capitation,D11001,16/09/2014,PC71903,7.78,Amazon *Mktplce Eu-Uk
Solihull MBC,Children & Education Services,Dickens Hth Primary,Capitation,D11001,28/09/2014,PC07532,7.80,Amazon *Mktplce Eu-Uk
Solihull MBC,Children & Education Services,C Brom Infants Club,Capitation,D11001,18/09/2014,PC23510,7.95,Amazon *Mktplce Eu-Uk
Solihull MBC,Children & Education Services,Burman Inf,Capitation,D11001,18/09/2014,PC63059,7.96,Amazon *Mktplce Eu-Uk
Solihull MBC,Children & Education Services,Smith's Wood,Capitation,D11001,29/09/2014,PC08407,8.1,Amazon *Mktplce Eu-Uk
Solihull MBC,Children & Education Services,Marston Green Jnr,Capitation,D11001,25/09/2014,PC77482,8.15,Amazon *Mktplce Eu-Uk
Solihull MBC,Children & Education Services,Widney Jnr,Capitation,D11001,03/09/2014,PC04826,8.34,Amazon *Mktplce Eu-Uk
Solihull MBC,Children & Education Services,Merstone,Capitation,D11001,19/09/2014,PC65286,8.48,Amazon *Mktplce Eu-Uk
Solihull MBC,Children & Education Services,Coppice Jnr,Capitation,D11001,09/09/2014,PC09595,8.49,Amazon *Mktplce Eu-Uk
Solihull MBC,Central Services to the Public,Corp Perform Policy & Info,General Office Expenses,D42000,30/09/2014,PC98631,8.5,Amazon *Mktplce Eu-Uk
Solihull MBC,Children & Education Services,Dickens Hth Primary,Capitation,D11001,15/09/2014,PC22816,8.55,Amazon *Mktplce Eu-Uk
Solihull MBC,Children & Education Services,Berkswell J&I,Capitation,D11001,05/09/2014,PC39293,8.8,Amazon *Mktplce Eu-Uk
Solihull MBC,Children & Education Services,Oak Cottage J&I,Capitation,D11001,04/09/2014,PC88346,8.86,Amazon *Mktplce Eu-Uk
Solihull MBC,Children & Education Services,Kingshurst Primary,Purchase Card Statement Summary,D11002,19/09/2014,PC96511,8.88,Amazon *Mktplce Eu-Uk
Solihull MBC,Children & Education Services,Dickens Hth Primary,Capitation,D11001,15/09/2014,PC17214,8.95,Amazon *Mktplce Eu-Uk
Solihull MBC,Children & Education Services,George Fentham J&I,Capitation,D11001,01/10/2014,PC06772,8.98,Amazon *Mktplce Eu-Uk
Solihull MBC,Adult Social Care,25 Stapleton Drive,Other Premise Costs,B43000,02/10/2014,PC80812,9.00,Amazon *Mktplce Eu-Uk
Solihull MBC,Children & Education Services,Our Lady Compassion  J&I,Capitation,D11001,06/09/2014,PC36238,9.18,Amazon *Mktplce Eu-Uk
Solihull MBC,Children & Education Services,Windy Arbor J&I,Capitation,D11001,16/09/2014,PC02300,9.25,Amazon *Mktplce Eu-Uk
Solihull MBC,Children & Education Services,Woodlands Solihull Inf,Capitation,D11001,22/09/2014,PC13377,9.26,Amazon *Mktplce Eu-Uk
Solihull MBC,Children & Education Services,Marston Green Jnr,Capitation,D11001,12/09/2014,PC44401,9.67,Amazon *Mktplce Eu-Uk
Solihull MBC,Children & Education Services,Peterbrook J&I,Other Fees,D52000,23/09/2014,PC12715,9.69,Amazon *Mktplce Eu-Uk
Solihull MBC,Children & Education Services,Summerfield Centre,Capitation,D11001,06/09/2014,PC95242,9.70,Amazon *Mktplce Eu-Uk
Solihull MBC,Children & Education Services,Dickens Hth Primary,Capitation,D11001,15/09/2014,PC62878,9.70,Amazon *Mktplce Eu-Uk
Solihull MBC,Children & Education Services,Our Lady Compassion  J&I,Capitation,D11001,09/09/2014,PC64198,9.74,Amazon *Mktplce Eu-Uk
Solihull MBC,Housing Revenue Account,Purchase Card Acquisitions,General Debtors,R20000,26/09/2014,PC26761,9.84,Amazon *Mktplce Eu-Uk
Solihull MBC,Children & Education Services,Coppice Jnr,IT Equipment & Software,D32000,05/09/2014,PC44703,9.88,Amazon *Mktplce Eu-Uk
Solihull MBC,Children & Education Services,Damson Wood Inf,Capitation,D11001,04/09/2014,PC74231,9.90,Amazon *Mktplce Eu-Uk
Solihull MBC,Children & Education Services,Dickens Hth Primary,IT Equipment & Software,D32000,08/09/2014,PC87030,9.95,Amazon *Mktplce Eu-Uk
Solihull MBC,Children & Education Services,Our Lady Compassion  J&I,Capitation,D11001,09/09/2014,PC96844,9.95,Amazon *Mktplce Eu-Uk
Solihull MBC,Children & Education Services,Langley J&I,Furniture & Equipment,D10000,11/09/2014,PC02671,9.95,Amazon *Mktplce Eu-Uk
Solihull MBC,Children & Education Services,Coppice Jnr,IT Equipment & Software,D32000,19/09/2014,PC46166,9.99,Amazon *Mktplce Eu-Uk
Solihull MBC,Central Services to the Public,Corporate Governance,Materials,D11000,29/09/2014,PC98497,9.99,Amazon *Mktplce Eu-Uk
Solihull MBC,Children & Education Services,Reynalds Cross,Capitation,D11001,12/09/2014,PC42273,10.00,Amazon *Mktplce Eu-Uk
Solihull MBC,Children & Education Services,Burman Inf,Capitation,D11001,13/09/2014,PC22832,10.00,Amazon *Mktplce Eu-Uk
Solihull MBC,Children & Education Services,Coronation Youth Centre,Furniture & Equipment,D10000,16/09/2014,PC86836,10.70,Amazon *Mktplce Eu-Uk
Solihull MBC,Housing Revenue Account,Purchase Card Acquisitions,General Debtors,R20000,13/09/2014,PC68924,10.85,Amazon *Mktplce Eu-Uk
Solihull MBC,Children & Education Services,Coppice Jnr,Capitation,D11001,16/09/2014,PC62911,10.96,Amazon *Mktplce Eu-Uk
Solihull MBC,Children & Education Services,The Den - Youth,Furniture & Equipment,D10000,25/09/2014,PC07539,10.99,Amazon *Mktplce Eu-Uk
Solihull MBC,Children & Education Services,St John The Baptist J&I Club,Capitation,D11001,30/09/2014,PC09481,10.99,Amazon *Mktplce Eu-Uk
Solihull MBC,Children & Education Services,George Fentham J&I,Capitation,D11001,01/10/2014,PC92416,11.08,Amazon *Mktplce Eu-Uk
Solihull MBC,Children & Education Services,Marston Green Jnr,Capitation,D11001,03/09/2014,PC22503,11.26,Amazon *Mktplce Eu-Uk
Solihull MBC,Children & Education Services,George Fentham J&I,Capitation,D11001,01/10/2014,PC41861,11.42,Amazon *Mktplce Eu-Uk
Solihull MBC,Children & Education Services,Monkspath J&I,Capitation,D11001,04/09/2014,PC47298,11.49,Amazon *Mktplce Eu-Uk
Solihull MBC,Children & Education Services,Peterbrook J&I,Other Fees,D52000,19/09/2014,PC28086,11.49,Amazon *Mktplce Eu-Uk
Solihull MBC,Children & Education Services,Monkspath J&I,Capitation,D11001,09/09/2014,PC97899,11.6,Amazon *Mktplce Eu-Uk
Solihull MBC,Children & Education Services,Dickens Hth Primary,Capitation,D11001,16/09/2014,PC71914,11.75,Amazon *Mktplce Eu-Uk
Solihull MBC,Children & Education Services,Langley J&I,Capitation,D11001,24/09/2014,PC40743,11.76,Amazon *Mktplce Eu-Uk
Solihull MBC,Children & Education Services,Dickens Hth Primary,Capitation,D11001,21/09/2014,PC26047,11.79,Amazon *Mktplce Eu-Uk
Solihull MBC,Children & Education Services,Marston Green Jnr,Capitation,D11001,04/09/2014,PC07516,11.98,Amazon *Mktplce Eu-Uk
Solihull MBC,Children & Education Services,Fieldwork Sector And Court,General Office Expenses,D42000,10/09/2014,PC92577,11.98,Amazon *Mktplce Eu-Uk
Solihull MBC,Children & Education Services,Summerfield Centre,Capitation,D11001,05/09/2014,PC45561,11.99,Amazon *Mktplce Eu-Uk
Solihull MBC,Children & Education Services,Our Lady Wayside J&I,Capitation,D11001,08/09/2014,PC36869,12.00,Amazon *Mktplce Eu-Uk
Solihull MBC,Children & Education Services,Summerfield Centre,Capitation,D11001,07/09/2014,PC45961,12.00,Amazon *Mktplce Eu-Uk
Solihull MBC,Children & Education Services,George Fentham J&I,Capitation,D11001,01/10/2014,PC52759,12.24,Amazon *Mktplce Eu-Uk
Solihull MBC,Children & Education Services,C Brom Infants Club,Capitation,D11001,19/09/2014,PC53543,12.36,Amazon *Mktplce Eu-Uk
Solihull MBC,Children & Education Services,Castle Bromwich Jnr,Capitation,D11001,22/09/2014,PC36539,12.5,Amazon *Mktplce Eu-Uk
Solihull MBC,Children & Education Services,Kingshurst Primary,Purchase Card Statement Summary,D11002,19/09/2014,PC58509,12.9,Amazon *Mktplce Eu-Uk
Solihull MBC,Children & Education Services,Dickens Hth Primary,Capitation,D11001,01/10/2014,PC67677,13.32,Amazon *Mktplce Eu-Uk
Solihull MBC,Highways & Transport Services,Urban Traffic Control,Furniture & Equipment,D10000,15/09/2014,PC13270,13.38,Amazon *Mktplce Eu-Uk
Solihull MBC,Children & Education Services,Dickens Hth Primary,Capitation,D11001,21/09/2014,PC28702,13.68,Amazon *Mktplce Eu-Uk
Solihull MBC,Children & Education Services,Coronation Youth Centre,Furniture & Equipment,D10000,24/09/2014,PC87853,13.76,Amazon *Mktplce Eu-Uk
Solihull MBC,Children & Education Services,Windy Arbor J&I,Capitation,D11001,16/09/2014,PC02359,13.83,Amazon *Mktplce Eu-Uk
Solihull MBC,Children & Education Services,Reynalds Cross,Capitation,D11001,23/09/2014,PC90706,13.99,Amazon *Mktplce Eu-Uk
Solihull MBC,Cultural & Related Services,Arts Complex Hirings,Other Fees,D52000,10/09/2014,PC54026,14.03,Amazon *Mktplce Eu-Uk
Solihull MBC,Children & Education Services,Dickens Hth Primary,Capitation,D11001,25/09/2014,PC21669,14.21,Amazon *Mktplce Eu-Uk
Solihull MBC,Children & Education Services,The Den - Youth,Furniture & Equipment,D10000,26/09/2014,PC11139,14.25,Amazon *Mktplce Eu-Uk
Solihull MBC,Children & Education Services,Reynalds Cross,Capitation,D11001,10/09/2014,PC33172,14.47,Amazon *Mktplce Eu-Uk
Solihull MBC,Children & Education Services,Dickens Hth Primary,Capitation,D11001,22/09/2014,PC02814,14.95,Amazon *Mktplce Eu-Uk
Solihull MBC,Children & Education Services,Fordbridge Community Primary,Capitation,D11001,01/10/2014,PC95050,14.97,Amazon *Mktplce Eu-Uk
Solihull MBC,Children & Education Services,Sports Co-Ordinators Prog,Materials,D11000,17/09/2014,PC64710,14.99,Amazon *Mktplce Eu-Uk
Solihull MBC,Children & Education Services,Widney Jnr,Capitation,D11001,02/10/2014,PC38307,15.53,Amazon *Mktplce Eu-Uk
Solihull MBC,Children & Education Services,Dickens Hth Primary,Capitation,D11001,28/09/2014,PC66092,15.60,Amazon *Mktplce Eu-Uk
Solihull MBC,Children & Education Services,Reynalds Cross,Capitation,D11001,07/09/2014,PC88294,15.65,Amazon *Mktplce Eu-Uk
Solihull MBC,Children & Education Services,Marston Green Jnr,Capitation,D11001,03/09/2014,PC10522,15.66,Amazon *Mktplce Eu-Uk
Solihull MBC,Cultural & Related Services,Arts Complex Hirings,Other Fees,D52000,10/09/2014,PC75556,15.68,Amazon *Mktplce Eu-Uk
Solihull MBC,Children & Education Services,Langley J&I,Health & Safety,B43003,07/09/2014,PC41461,15.99,Amazon *Mktplce Eu-Uk
Solihull MBC,Children & Education Services,Forest Oak,Capitation,D11001,16/09/2014,PC66063,16.09,Amazon *Mktplce Eu-Uk
Solihull MBC,Children & Education Services,Kingshurst Primary,Purchase Card Statement Summary,D11002,04/09/2014,PC73930,16.11,Amazon *Mktplce Eu-Uk
Solihull MBC,Children & Education Services,Monkspath J&I,Capitation,D11001,09/09/2014,PC72014,16.18,Amazon *Mktplce Eu-Uk
Solihull MBC,Children & Education Services,Kingshurst Primary,Purchase Card Statement Summary,D11002,19/09/2014,PC71827,16.28,Amazon *Mktplce Eu-Uk
Solihull MBC,Children & Education Services,Marston Green Jnr,Capitation,D11001,22/09/2014,PC57895,16.30,Amazon *Mktplce Eu-Uk
Solihull MBC,Children & Education Services,Ulverley J&I,Capitation,D11001,19/09/2014,PC94201,16.66,Amazon *Mktplce Eu-Uk
Solihull MBC,Children & Education Services,Meriden J&I,Furniture & Equipment,D10000,05/09/2014,PC66590,17.15,Amazon *Mktplce Eu-Uk
Solihull MBC,Children & Education Services,Chapel Fields Jnr,Capitation,D11001,15/09/2014,PC70458,17.65,Amazon *Mktplce Eu-Uk
Solihull MBC,Children & Education Services,Coppice Jnr,Capitation,D11001,09/09/2014,PC01975,17.79,Amazon *Mktplce Eu-Uk
Solihull MBC,Cultural & Related Services,Arts Complex Hirings,Other Fees,D52000,11/09/2014,PC30872,17.96,Amazon *Mktplce Eu-Uk
Solihull MBC,Children & Education Services,Berkswell J&I,Capitation,D11001,10/09/2014,PC88530,18.67,Amazon *Mktplce Eu-Uk
Solihull MBC,Children & Education Services,CSW Team B U18 Local Clients,Clients Expenses,D62000,19/09/2014,PC92094,18.76,Amazon *Mktplce Eu-Uk
Solihull MBC,Children & Education Services,Dickens Hth Primary,Capitation,D11001,14/09/2014,PC12612,18.79,Amazon *Mktplce Eu-Uk
Solihull MBC,Children & Education Services,Smith's Wood,Capitation,D11001,01/10/2014,PC01435,18.89,Amazon *Mktplce Eu-Uk
Solihull MBC,Children & Education Services,Hazel Oak,IT Equipment & Software,D32000,17/09/2014,PC42086,19.25,Amazon *Mktplce Eu-Uk
Solihull MBC,Children & Education Services,Marston Green Jnr,Capitation,D11001,01/10/2014,PC40964,19.4,Amazon *Mktplce Eu-Uk
Solihull MBC,Children & Education Services,Hazel Oak,Capitation,D11001,29/09/2014,PC94260,19.49,Amazon *Mktplce Eu-Uk
Solihull MBC,Children & Education Services,Summerfield Centre,Capitation,D11001,08/09/2014,PC69126,19.98,Amazon *Mktplce Eu-Uk
Solihull MBC,Children & Education Services,C Brom Infants Club,Capitation,D11001,19/09/2014,PC06472,19.99,Amazon *Mktplce Eu-Uk
Solihull MBC,Children & Education Services,Shirley Heath Jnr,Capitation,D11001,21/09/2014,PC72204,20.25,Amazon *Mktplce Eu-Uk
Solihull MBC,Children & Education Services,Bishop Wilson J&I,Capitation,D11001,02/10/2014,PC77807,20.48,Amazon *Mktplce Eu-Uk
Solihull MBC,Children & Education Services,Cranmore Inf,Capitation,D11001,08/09/2014,PC62627,20.61,Amazon *Mktplce Eu-Uk
Solihull MBC,Children & Education Services,Monkspath J&I,Capitation,D11001,24/09/2014,PC37420,20.67,Amazon *Mktplce Eu-Uk
Solihull MBC,Central Services to the Public,ICT: Desktop Team Helpdesk,IT Equipment & Software,D32000,25/09/2014,PC34296,21.28,Amazon *Mktplce Eu-Uk
Solihull MBC,Children & Education Services,Greswold J&I,Capitation,D11001,15/09/2014,PC90259,21.44,Amazon *Mktplce Eu-Uk
Solihull MBC,Children & Education Services,Oak Cottage J&I,Capitation,D11001,10/09/2014,PC51767,21.62,Amazon *Mktplce Eu-Uk
Solihull MBC,Children & Education Services,Dickens Hth Primary,Capitation,D11001,15/09/2014,PC10517,21.97,Amazon *Mktplce Eu-Uk
Solihull MBC,Children & Education Services,Dickens Hth Primary,Capitation,D11001,22/09/2014,PC34300,22.11,Amazon *Mktplce Eu-Uk
Solihull MBC,Children & Education Services,St Alphege Jnr,Capitation,D11001,04/09/2014,PC63443,22.59,Amazon *Mktplce Eu-Uk
Solihull MBC,Children & Education Services,Reynalds Cross,Capitation,D11001,05/09/2014,PC38013,23.48,Amazon *Mktplce Eu-Uk
Solihull MBC,Adult Social Care,Bacons End,Furniture & Equipment,D10000,04/09/2014,PC25243,23.8,Amazon *Mktplce Eu-Uk
Solihull MBC,Children & Education Services,Smith's Wood,IT Equipment & Software,D32000,18/09/2014,PC90998,23.99,Amazon *Mktplce Eu-Uk
Solihull MBC,Children & Education Services,Lyndon,Capitation,D11001,18/09/2014,PC87780,24.14,Amazon *Mktplce Eu-Uk
Solihull MBC,Children & Education Services,Lyndon,Capitation,D11001,23/09/2014,PC52730,24.50,Amazon *Mktplce Eu-Uk
Solihull MBC,Children & Education Services,Langley J&I,IT Equipment & Software,D32000,01/10/2014,PC71732,24.7,Amazon *Mktplce Eu-Uk
Solihull MBC,Children & Education Services,St John The Baptist J&I,Capitation,D11001,29/09/2014,PC20789,24.75,Amazon *Mktplce Eu-Uk
Solihull MBC,Central Services to the Public,Organisational Development,Training,A32000,25/09/2014,PC56565,24.88,Amazon *Mktplce Eu-Uk
Solihull MBC,Children & Education Services,St Anne's J&I,Capitation,D11001,04/09/2014,PC73082,24.95,Amazon *Mktplce Eu-Uk
Solihull MBC,Children & Education Services,Dickens Hth Primary,IT Equipment & Software,D32000,19/09/2014,PC65399,24.95,Amazon *Mktplce Eu-Uk
Solihull MBC,Children & Education Services,Marston Green Jnr,Capitation,D11001,08/09/2014,PC73111,25.36,Amazon *Mktplce Eu-Uk
Solihull MBC,Children & Education Services,Bishop Wilson J&I,Capitation,D11001,30/09/2014,PC03404,25.85,Amazon *Mktplce Eu-Uk
Solihull MBC,Children & Education Services,Marston Green Jnr,Capitation,D11001,05/09/2014,PC38969,26.12,Amazon *Mktplce Eu-Uk
Solihull MBC,Children & Education Services,Hazel Oak,Building Maint Day To Day,B31001,25/09/2014,PC65423,26.60,Amazon *Mktplce Eu-Uk
Solihull MBC,Children & Education Services,Dickens Hth Primary,Capitation,D11001,24/09/2014,PC56122,26.87,Amazon *Mktplce Eu-Uk
Solihull MBC,Children & Education Services,Kingshurst Primary,Purchase Card Statement Summary,D11002,18/09/2014,PC19172,27.35,Amazon *Mktplce Eu-Uk
Solihull MBC,Children & Education Services,Reynalds Cross,Capitation,D11001,14/09/2014,PC94552,27.36,Amazon *Mktplce Eu-Uk
Solihull MBC,Children & Education Services,Coppice Jnr,IT Equipment & Software,D32000,18/09/2014,PC67180,27.58,Amazon *Mktplce Eu-Uk
Solihull MBC,Children & Education Services,C Brom Infants Club,Capitation,D11001,19/09/2014,PC17878,27.92,Amazon *Mktplce Eu-Uk
Solihull MBC,Children & Education Services,Smith's Wood,Capitation,D11001,30/09/2014,PC74569,27.95,Amazon *Mktplce Eu-Uk
Solihull MBC,Children & Education Services,Burman Inf,Visits & Pupil Activities,D52002,17/09/2014,PC63902,28.8,Amazon *Mktplce Eu-Uk
Solihull MBC,Children & Education Services,Smith's Wood,Capitation,D11001,24/09/2014,PC64761,28.93,Amazon *Mktplce Eu-Uk
Solihull MBC,Children & Education Services,Hazel Oak,Capitation,D11001,25/09/2014,PC39591,28.96,Amazon *Mktplce Eu-Uk
Solihull MBC,Children & Education Services,Our Lady Compassion  J&I,Capitation,D11001,08/09/2014,PC74509,29.08,Amazon *Mktplce Eu-Uk
Solihull MBC,Adult Social Care,LD - Day Centre Park View,General Office Expenses,D42000,21/09/2014,PC11304,29.47,Amazon *Mktplce Eu-Uk
Solihull MBC,Children & Education Services,Youth Offending Team,General Office Expenses,D42000,08/09/2014,PC05035,29.92,Amazon *Mktplce Eu-Uk
Solihull MBC,Children & Education Services,Dickens Hth Primary,Capitation,D11001,24/09/2014,PC78285,30.00,Amazon *Mktplce Eu-Uk
Solihull MBC,Children & Education Services,Coleshill Heath J&I,Capitation,D11001,10/09/2014,PC85232,30.11,Amazon *Mktplce Eu-Uk
Solihull MBC,Children & Education Services,Chapel Fields Jnr,Capitation,D11001,12/09/2014,PC27028,30.54,Amazon *Mktplce Eu-Uk
Solihull MBC,Children & Education Services,Youth Council / YID,Other Transport Costs,C42000,01/10/2014,PC42289,30.69,Amazon *Mktplce Eu-Uk
Solihull MBC,Children & Education Services,Dickens Hth Primary,Capitation,D11001,22/09/2014,PC17190,30.97,Amazon *Mktplce Eu-Uk
Solihull MBC,Children & Education Services,Windy Arbor J&I,Capitation,D11001,22/09/2014,PC06932,31.19,Amazon *Mktplce Eu-Uk
Solihull MBC,Children & Education Services,Smith's Wood,Capitation,D11001,30/09/2014,PC36232,31.26,Amazon *Mktplce Eu-Uk
Solihull MBC,Children & Education Services,Cheswick Green J&I,Capitation,D11001,11/09/2014,PC18658,31.48,Amazon *Mktplce Eu-Uk
Solihull MBC,Children & Education Services,Meriden J&I,Furniture & Equipment,D10000,05/09/2014,PC03473,31.98,Amazon *Mktplce Eu-Uk
Solihull MBC,Children & Education Services,Marston Green Jnr,Capitation,D11001,24/09/2014,PC91715,32.04,Amazon *Mktplce Eu-Uk
Solihull MBC,Children & Education Services,St John The Baptist J&I,Capitation,D11001,01/10/2014,PC18394,32.3,Amazon *Mktplce Eu-Uk
Solihull MBC,Children & Education Services,Forest Oak,Capitation,D11001,24/09/2014,PC62169,32.94,Amazon *Mktplce Eu-Uk
Solihull MBC,Children & Education Services,Lady K Levesons J&I,Capitation,D11001,26/09/2014,PC95686,33.7,Amazon *Mktplce Eu-Uk
Solihull MBC,Children & Education Services,Afterschool Club,Catering Provisions,D20000,04/09/2014,PC34090,34.64,Amazon *Mktplce Eu-Uk
Solihull MBC,Adult Social Care,OP - Locality SW South A,General Office Expenses,D42000,19/09/2014,PC22723,34.98,Amazon *Mktplce Eu-Uk
Solihull MBC,Central Services to the Public,ICT Data Base Analysis,IT Equipment & Software,D32000,02/10/2014,PC74342,34.99,Amazon *Mktplce Eu-Uk
Solihull MBC,Children & Education Services,Peterbrook J&I,Stationery,D41000,18/09/2014,PC36877,35.20,Amazon *Mktplce Eu-Uk
Solihull MBC,Children & Education Services,Marston Green Jnr,Capitation,D11001,08/09/2014,PC77808,35.52,Amazon *Mktplce Eu-Uk
Solihull MBC,Children & Education Services,Widney Jnr,Capitation,D11001,10/09/2014,PC72087,35.6,Amazon *Mktplce Eu-Uk
Solihull MBC,Children & Education Services,Coppice Jnr,Capitation,D11001,16/09/2014,PC17273,35.88,Amazon *Mktplce Eu-Uk
Solihull MBC,Children & Education Services,Kineton Green Primary,Capitation,D11001,17/09/2014,PC25197,35.94,Amazon *Mktplce Eu-Uk
Solihull MBC,Children & Education Services,Summerfield Centre,Capitation,D11001,06/09/2014,PC84295,37.25,Amazon *Mktplce Eu-Uk
Solihull MBC,Children & Education Services,Our Lady Wayside J&I,Capitation,D11001,05/09/2014,PC04904,37.70,Amazon *Mktplce Eu-Uk
Solihull MBC,Children & Education Services,Woodlands Solihull Inf,Capitation,D11001,25/09/2014,PC17099,38.24,Amazon *Mktplce Eu-Uk
Solihull MBC,Children & Education Services,Dickens Hth Primary,IT Equipment & Software,D32000,11/09/2014,PC45839,38.32,Amazon *Mktplce Eu-Uk
Solihull MBC,Children & Education Services,St Alphege Jnr,Capitation,D11001,03/09/2014,PC63205,38.96,Amazon *Mktplce Eu-Uk
Solihull MBC,Children & Education Services,Widney Jnr,Capitation,D11001,05/09/2014,PC09145,39.92,Amazon *Mktplce Eu-Uk
Solihull MBC,Children & Education Services,Marston Green Jnr,Capitation,D11001,11/09/2014,PC39414,40.25,Amazon *Mktplce Eu-Uk
Solihull MBC,Children & Education Services,Our Lady Compassion  J&I,Capitation,D11001,10/09/2014,PC71555,40.79,Amazon *Mktplce Eu-Uk
Solihull MBC,Children & Education Services,St Anne's J&I,Capitation,D11001,04/09/2014,PC50227,40.99,Amazon *Mktplce Eu-Uk
Solihull MBC,Children & Education Services,Shirley Heath Jnr,Capitation,D11001,10/09/2014,PC91784,41.00,Amazon *Mktplce Eu-Uk
Solihull MBC,Children & Education Services,Castle Bromwich Jnr,Capitation,D11001,22/09/2014,PC38239,41.13,Amazon *Mktplce Eu-Uk
Solihull MBC,Children & Education Services,Fieldwork Sector And Court,General Office Expenses,D42000,12/09/2014,PC01848,41.31,Amazon *Mktplce Eu-Uk
Solihull MBC,Children & Education Services,Langley J&I,Capitation,D11001,10/09/2014,PC00030,41.80,Amazon *Mktplce Eu-Uk
Solihull MBC,Children & Education Services,Ark,Capitation,D11001,10/09/2014,PC09037,41.96,Amazon *Mktplce Eu-Uk
Solihull MBC,Children & Education Services,St John The Baptist J&I,IT Equipment & Software,D32000,18/09/2014,PC01934,42.68,Amazon *Mktplce Eu-Uk
Solihull MBC,Children & Education Services,St John The Baptist J&I,Capitation,D11001,29/09/2014,PC13795,42.72,Amazon *Mktplce Eu-Uk
Solihull MBC,Housing Revenue Account,Purchase Card Acquisitions,General Debtors,R20000,26/09/2014,PC79691,42.90,Amazon *Mktplce Eu-Uk
Solihull MBC,Children & Education Services,Monkspath J&I,Capitation,D11001,10/09/2014,PC61552,42.94,Amazon *Mktplce Eu-Uk
Solihull MBC,Children & Education Services,St George & Teresa J&I,IT Equipment & Software,D32000,03/09/2014,PC71411,43.53,Amazon *Mktplce Eu-Uk
Solihull MBC,Children & Education Services,St John The Baptist J&I,IT Equipment & Software,D32000,26/09/2014,PC15660,43.90,Amazon *Mktplce Eu-Uk
Solihull MBC,Children & Education Services,Lady K Levesons J&I,Purchase Card Statement Summary,D11002,25/09/2014,PC02411,44.92,Amazon *Mktplce Eu-Uk
Solihull MBC,Children & Education Services,Reynalds Cross,Capitation,D11001,12/09/2014,PC96047,46.1,Amazon *Mktplce Eu-Uk
Solihull MBC,Children & Education Services,Marston Green Jnr,Capitation,D11001,03/09/2014,PC43805,46.36,Amazon *Mktplce Eu-Uk
Solihull MBC,Children & Education Services,Marston Green Jnr,Capitation,D11001,04/09/2014,PC91442,46.61,Amazon *Mktplce Eu-Uk
Solihull MBC,Children & Education Services,Ark,Capitation,D11001,11/09/2014,PC69807,47.76,Amazon *Mktplce Eu-Uk
Solihull MBC,Children & Education Services,Shirley Heath Jnr,Capitation,D11001,02/10/2014,PC16014,48.79,Amazon *Mktplce Eu-Uk
Solihull MBC,Children & Education Services,Smith's Wood,Capitation,D11001,19/09/2014,PC09289,48.80,Amazon *Mktplce Eu-Uk
Solihull MBC,Children & Education Services,Lady K Levesons J&I,Capitation,D11001,25/09/2014,PC37485,49.50,Amazon *Mktplce Eu-Uk
Solihull MBC,Children & Education Services,Reynalds Cross,Capitation,D11001,04/09/2014,PC29151,51.96,Amazon *Mktplce Eu-Uk
Solihull MBC,Children & Education Services,Hazel Oak,Building Maint Day To Day,B31001,30/09/2014,PC38808,52.50,Amazon *Mktplce Eu-Uk
Solihull MBC,Children & Education Services,Specialist Inclusion Support Service,General Office Expenses,D42000,17/09/2014,PC57350,52.79,Amazon *Mktplce Eu-Uk
Solihull MBC,Children & Education Services,Marston Green Jnr,Capitation,D11001,15/09/2014,PC88570,53.40,Amazon *Mktplce Eu-Uk
Solihull MBC,Children & Education Services,Dickens Hth Primary,IT Equipment & Software,D32000,21/09/2014,PC59938,53.58,Amazon *Mktplce Eu-Uk
Solihull MBC,Children & Education Services,Marston Green Jnr,Capitation,D11001,12/09/2014,PC98126,54.85,Amazon *Mktplce Eu-Uk
Solihull MBC,Children & Education Services,St Margaret's J&I,Capitation,D11001,12/09/2014,PC19929,54.96,Amazon *Mktplce Eu-Uk
Solihull MBC,Central Services to the Public,Solihull Connect,Materials,D11000,08/09/2014,PC71480,54.97,Amazon *Mktplce Eu-Uk
Solihull MBC,Children & Education Services,Hazel Oak,Capitation,D11001,01/10/2014,PC82888,55.43,Amazon *Mktplce Eu-Uk
Solihull MBC,Children & Education Services,Dickens Hth Primary,Capitation,D11001,15/09/2014,PC11132,56.13,Amazon *Mktplce Eu-Uk
Solihull MBC,Children & Education Services,The Den - Youth,Furniture & Equipment,D10000,12/09/2014,PC28992,56.54,Amazon *Mktplce Eu-Uk
Solihull MBC,Adult Social Care,ASC - Joint Stores,Furniture & Equipment,D10000,25/09/2014,PC15461,58.61,Amazon *Mktplce Eu-Uk
Solihull MBC,Adult Social Care,ASC - Telecare,General Office Expenses,D42000,30/09/2014,PC52763,59.98,Amazon *Mktplce Eu-Uk
Solihull MBC,Children & Education Services,Coppice Jnr,IT Equipment & Software,D32000,22/09/2014,PC66551,66.81,Amazon *Mktplce Eu-Uk
Solihull MBC,Children & Education Services,Sharmans Cross Jnr,Capitation,D11001,11/09/2014,PC57722,69.99,Amazon *Mktplce Eu-Uk
Solihull MBC,Children & Education Services,Fordbridge Community Primary,Capitation,D11001,01/10/2014,PC46627,69.99,Amazon *Mktplce Eu-Uk
Solihull MBC,Children & Education Services,Specialist Inclusion Support Service,General Office Expenses,D42000,01/10/2014,PC04158,74.45,Amazon *Mktplce Eu-Uk
Solihull MBC,Children & Education Services,Lyndon,Capitation,D11001,07/09/2014,PC97601,75.00,Amazon *Mktplce Eu-Uk
Solihull MBC,Children & Education Services,Langley J&I,Health & Safety,B43003,23/09/2014,PC41543,77.00,Amazon *Mktplce Eu-Uk
Solihull MBC,Children & Education Services,Marston Green Jnr,Capitation,D11001,15/09/2014,PC02572,77.61,Amazon *Mktplce Eu-Uk
Solihull MBC,Children & Education Services,Chapel Fields Jnr,Capitation,D11001,09/09/2014,PC10746,79.8,Amazon *Mktplce Eu-Uk
Solihull MBC,Children & Education Services,Kingshurst Primary,Purchase Card Statement Summary,D11002,01/10/2014,PC96312,79.99,Amazon *Mktplce Eu-Uk
Solihull MBC,Children & Education Services,Hazel Oak,Capitation,D11001,29/09/2014,PC95710,82.95,Amazon *Mktplce Eu-Uk
Solihull MBC,Children & Education Services,Chapel Fields Jnr,Capitation,D11001,11/09/2014,PC31767,83.7,Amazon *Mktplce Eu-Uk
Solihull MBC,Children & Education Services,Chapel Fields Jnr,Capitation,D11001,03/09/2014,PC89638,83.80,Amazon *Mktplce Eu-Uk
Solihull MBC,Children & Education Services,Oak Cottage J&I,IT Equipment & Software,D32000,01/10/2014,PC08951,84.00,Amazon *Mktplce Eu-Uk
Solihull MBC,Children & Education Services,Specialist Inclusion Support Service,General Office Expenses,D42000,29/09/2014,PC76986,84.35,Amazon *Mktplce Eu-Uk
Solihull MBC,Children & Education Services,Valley Inf,Capitation,D11001,01/10/2014,PC82440,86.32,Amazon *Mktplce Eu-Uk
Solihull MBC,Children & Education Services,Ulverley J&I,Capitation,D11001,18/09/2014,PC25714,91.38,Amazon *Mktplce Eu-Uk
Solihull MBC,Children & Education Services,Marston Green Jnr,Capitation,D11001,06/09/2014,PC48298,93.51,Amazon *Mktplce Eu-Uk
Solihull MBC,Children & Education Services,Marston Green Jnr,Capitation,D11001,12/09/2014,PC32178,97.37,Amazon *Mktplce Eu-Uk
Solihull MBC,Children & Education Services,Shirley Heath Jnr,Capitation,D11001,23/09/2014,PC64065,97.57,Amazon *Mktplce Eu-Uk
Solihull MBC,Children & Education Services,St Andrew's J&I,Furniture & Equipment,D10000,04/09/2014,PC59105,99.96,Amazon *Mktplce Eu-Uk
Solihull MBC,Children & Education Services,Smith's Wood,Stationery,D41000,22/09/2014,PC18807,103.98,Amazon *Mktplce Eu-Uk
Solihull MBC,Children & Education Services,Chapel Fields Jnr,Capitation,D11001,09/09/2014,PC74057,111.60,Amazon *Mktplce Eu-Uk
Solihull MBC,Children & Education Services,Ulverley J&I,IT Equipment & Software,D32000,17/09/2014,PC91069,111.93,Amazon *Mktplce Eu-Uk
Solihull MBC,Children & Education Services,Marston Green Jnr,IT Equipment & Software,D32000,20/09/2014,PC29659,113.88,Amazon *Mktplce Eu-Uk
Solihull MBC,Children & Education Services,Coppice Jnr,IT Equipment & Software,D32000,03/09/2014,PC81653,114.8,Amazon *Mktplce Eu-Uk
Solihull MBC,Children & Education Services,Summerfield Centre,Capitation,D11001,06/09/2014,PC55456,114.99,Amazon *Mktplce Eu-Uk
Solihull MBC,Children & Education Services,Our Lady Compassion  J&I,Capitation,D11001,02/10/2014,PC88087,137.55,Amazon *Mktplce Eu-Uk
Solihull MBC,Children & Education Services,Youth Council / YID,Other Transport Costs,C42000,02/10/2014,PC89431,141.9,Amazon *Mktplce Eu-Uk
Solihull MBC,Children & Education Services,Hazel Oak,Health & Safety,B43003,01/10/2014,PC23688,147.69,Amazon *Mktplce Eu-Uk
Solihull MBC,Children & Education Services,Marston Green Jnr,Capitation,D11001,04/09/2014,PC94083,170.25,Amazon *Mktplce Eu-Uk
Solihull MBC,Adult Social Care,Charity,General Creditors,S00000,08/09/2014,PC64428,177.55,Amazon *Mktplce Eu-Uk
Solihull MBC,Children & Education Services,Ulverley J&I,IT Equipment & Software,D32000,29/09/2014,PC75202,200.32,Amazon *Mktplce Eu-Uk
Solihull MBC,Children & Education Services,Adoption Team,IT Equipment & Software,D32000,24/09/2014,PC80962,224.85,Amazon *Mktplce Eu-Uk
Solihull MBC,Children & Education Services,Our Lady Wayside J&I,Capitation,D11001,05/09/2014,PC45587,226.00,Amazon *Mktplce Eu-Uk
Solihull MBC,Children & Education Services,Specialist Inclusion Support Service,General Office Expenses,D42000,17/09/2014,PC09037,243.91,Amazon *Mktplce Eu-Uk
Solihull MBC,Adult Social Care,LD - Day Centre Park View,General Office Expenses,D42000,22/09/2014,PC79774,264.92,Amazon *Mktplce Eu-Uk
Solihull MBC,Adult Social Care,ASC - Joint Stores,Furniture & Equipment,D10000,19/09/2014,PC55092,399,Amazon *Mktplce Eu-Uk
Solihull MBC,Children & Education Services,Windy Arbor J&I,Capitation,D11001,03/09/2014,PC47550,406.99,Amazon *Mktplce Eu-Uk
Solihull MBC,Children & Education Services,Marston Green Jnr,Capitation,D11001,13/09/2014,PC21787,546.00,Amazon *Mktplce Eu-Uk
Solihull MBC,Children & Education Services,Langley J&I,IT Equipment & Software,D32000,12/09/2014,PC92009,558.60,Amazon *Mktplce Eu-Uk
Solihull MBC,Children & Education Services,Ulverley J&I,Capitation,D11001,04/09/2014,PC26223,779.99,Amazon *Mktplce Eu-Uk
Solihull MBC,Children & Education Services,Smith's Wood,Capitation,D11001,24/09/2014,PC33009,-27.39,Amazon Eu
Solihull MBC,Children & Education Services,Dickens Hth Primary,Capitation,D11001,25/09/2014,PC56278,3.2,Amazon Eu
Solihull MBC,Children & Education Services,Dickens Hth Primary,Capitation,D11001,16/09/2014,PC31015,4.08,Amazon Eu
Solihull MBC,Children & Education Services,Berkswell J&I,Capitation,D11001,11/09/2014,PC47873,4.1,Amazon Eu
Solihull MBC,Children & Education Services,St Andrew's J&I,Capitation,D11001,16/09/2014,PC71467,5.20,Amazon Eu
Solihull MBC,Children & Education Services,Dickens Hth Primary,Capitation,D11001,27/09/2014,PC32615,5.59,Amazon Eu
Solihull MBC,Children & Education Services,Dickens Hth Primary,Capitation,D11001,26/09/2014,PC26189,5.66,Amazon Eu
Solihull MBC,Children & Education Services,Dickens Hth Primary,Capitation,D11001,29/09/2014,PC65703,5.86,Amazon Eu
Solihull MBC,Children & Education Services,Marston Green Jnr,Capitation,D11001,04/09/2014,PC69170,5.87,Amazon Eu
Solihull MBC,Children & Education Services,St John The Baptist J&I Club,Capitation,D11001,29/09/2014,PC51465,5.99,Amazon Eu
Solihull MBC,Central Services to the Public,ICT Data Base Analysis,IT Equipment & Software,D32000,05/09/2014,PC83163,6.03,Amazon Eu
Solihull MBC,Children & Education Services,St Margaret's J&I,Capitation,D11001,13/09/2014,PC76513,6.04,Amazon Eu
Solihull MBC,Children & Education Services,St Margaret's J&I,Capitation,D11001,09/09/2014,PC21665,6.36,Amazon Eu
Solihull MBC,Children & Education Services,Dickens Hth Primary,Capitation,D11001,25/09/2014,PC56930,6.46,Amazon Eu
Solihull MBC,Children & Education Services,Welfare Service,General Office Expenses,D42000,17/09/2014,PC13800,6.74,Amazon Eu
Solihull MBC,Children & Education Services,Chapel Fields Jnr,Capitation,D11001,08/09/2014,PC81540,6.99,Amazon Eu
Solihull MBC,Children & Education Services,Dickens Hth Primary,Capitation,D11001,26/09/2014,PC75462,7.12,Amazon Eu
Solihull MBC,Children & Education Services,Hazel Oak,Capitation,D11001,29/09/2014,PC17224,7.36,Amazon Eu
Solihull MBC,Children & Education Services,Hazel Oak,Capitation,D11001,09/09/2014,PC96011,8.5,Amazon Eu
Solihull MBC,Children & Education Services,St John The Baptist J&I,Capitation,D11001,05/09/2014,PC33212,9.00,Amazon Eu
Solihull MBC,Children & Education Services,Kingshurst Primary,Purchase Card Statement Summary,D11002,30/09/2014,PC00134,9.10,Amazon Eu
Solihull MBC,Children & Education Services,George Fentham J&I,Capitation,D11001,02/10/2014,PC93436,9.74,Amazon Eu
Solihull MBC,Children & Education Services,Monkspath J&I,Capitation,D11001,10/09/2014,PC17135,10.20,Amazon Eu
Solihull MBC,Children & Education Services,Marston Green Jnr,IT Equipment & Software,D32000,30/09/2014,PC00567,10.58,Amazon Eu
Solihull MBC,Children & Education Services,Dickens Hth Primary,Capitation,D11001,03/09/2014,PC00053,11.03,Amazon Eu
Solihull MBC,Children & Education Services,Research & Policy,General Office Expenses,D42000,17/09/2014,PC54126,11.19,Amazon Eu
Solihull MBC,Children & Education Services,St Margaret's J&I,Capitation,D11001,10/09/2014,PC39082,11.29,Amazon Eu
Solihull MBC,Children & Education Services,Triple Crown PRU,Purchase Card Statement Summary,D11002,08/09/2014,PC13315,11.98,Amazon Eu
Solihull MBC,Children & Education Services,Adoption Team,Materials,D11000,12/09/2014,PC81311,11.99,Amazon Eu
Solihull MBC,Children & Education Services,Peterbrook J&I,Other Fees,D52000,19/09/2014,PC35547,12.99,Amazon Eu
Solihull MBC,Children & Education Services,St John The Baptist J&I,Capitation,D11001,18/09/2014,PC99272,13.15,Amazon Eu
Solihull MBC,Children & Education Services,St George & Teresa J&I,Capitation,D11001,19/09/2014,PC58146,13.31,Amazon Eu
Solihull MBC,Children & Education Services,Fordbridge Community Primary,Capitation,D11001,12/09/2014,PC64530,13.87,Amazon Eu
Solihull MBC,Children & Education Services,Coleshill Heath J&I,Capitation,D11001,10/09/2014,PC13087,13.88,Amazon Eu
Solihull MBC,Children & Education Services,St Anne's J&I,Capitation,D11001,11/09/2014,PC15432,13.99,Amazon Eu
Solihull MBC,Children & Education Services,Reynalds Cross,Capitation,D11001,08/09/2014,PC59541,14,Amazon Eu
Solihull MBC,Children & Education Services,Greswold J&I,Capitation,D11001,12/09/2014,PC45793,14.27,Amazon Eu
Solihull MBC,Children & Education Services,Monkspath Monkeys,Capitation,D11001,28/09/2014,PC67206,14.49,Amazon Eu
Solihull MBC,Children & Education Services,Youth Offending Team,General Office Expenses,D42000,05/09/2014,PC44690,14.64,Amazon Eu
Solihull MBC,Children & Education Services,St John The Baptist J&I,Capitation,D11001,16/09/2014,PC92436,14.99,Amazon Eu
Solihull MBC,Children & Education Services,Summerfield Centre,Capitation,D11001,03/09/2014,PC23037,15,Amazon Eu
Solihull MBC,Children & Education Services,Smith's Wood,Capitation,D11001,04/09/2014,PC37129,15,Amazon Eu
Solihull MBC,Children & Education Services,Peterbrook J&I,Capitation,D11001,10/09/2014,PC94231,16.48,Amazon Eu
Solihull MBC,Children & Education Services,St Margaret's J&I,Capitation,D11001,11/09/2014,PC33357,16.53,Amazon Eu
Solihull MBC,Children & Education Services,Smith's Wood,Capitation,D11001,17/09/2014,PC54985,16.84,Amazon Eu
Solihull MBC,Children & Education Services,Woodlands Solihull Inf,IT Equipment & Software,D32000,22/09/2014,PC96491,17.30,Amazon Eu
Solihull MBC,Children & Education Services,Specialist Inclusion Support Service,Health & Safety,B43003,17/09/2014,PC35422,17.97,Amazon Eu
Solihull MBC,Children & Education Services,Castle Bromwich Inf,Capitation,D11001,01/10/2014,PC08180,18.29,Amazon Eu
Solihull MBC,Children & Education Services,Hazel Oak,Health & Safety,B43003,09/09/2014,PC08571,18.85,Amazon Eu
Solihull MBC,Children & Education Services,Smith's Wood,Capitation,D11001,12/09/2014,PC82387,19.30,Amazon Eu
Solihull MBC,Children & Education Services,Smith's Wood,Capitation,D11001,01/10/2014,PC38302,19.98,Amazon Eu
Solihull MBC,Children & Education Services,St Margaret's J&I,Capitation,D11001,09/09/2014,PC31445,19.99,Amazon Eu
Solihull MBC,Children & Education Services,Fieldwork Sector And Court,General Office Expenses,D42000,10/09/2014,PC73385,20.53,Amazon Eu
Solihull MBC,Children & Education Services,Coleshill Heath J&I,Meetings & Other Expenses,D61002,08/09/2014,PC20098,21.94,Amazon Eu
Solihull MBC,Children & Education Services,Dickens Hth Primary,Capitation,D11001,29/09/2014,PC40329,22.65,Amazon Eu
Solihull MBC,Children & Education Services,Section 17 DART,Materials,D11000,19/09/2014,PC58583,22.96,Amazon Eu
Solihull MBC,Children & Education Services,Research & Policy,General Office Expenses,D42000,17/09/2014,PC49449,23.5,Amazon Eu
Solihull MBC,Children & Education Services,Ark,Capitation,D11001,11/09/2014,PC81153,23.76,Amazon Eu
Solihull MBC,Children & Education Services,St Alphege Jnr,Capitation,D11001,04/09/2014,PC05098,23.79,Amazon Eu
Solihull MBC,Children & Education Services,St Alphege Jnr,Capitation,D11001,04/09/2014,PC79541,23.79,Amazon Eu
Solihull MBC,Children & Education Services,Windy Arbor J&I,Capitation,D11001,15/09/2014,PC61641,23.96,Amazon Eu
Solihull MBC,Children & Education Services,George Fentham J&I,Capitation,D11001,05/09/2014,PC42986,24.11,Amazon Eu
Solihull MBC,Children & Education Services,St John The Baptist J&I,Capitation,D11001,18/09/2014,PC88333,24.12,Amazon Eu
Solihull MBC,Housing Revenue Account,Purchase Card Acquisitions,General Debtors,R20000,13/09/2014,PC57917,24.51,Amazon Eu
Solihull MBC,Children & Education Services,Smith's Wood,Capitation,D11001,26/09/2014,PC82664,24.95,Amazon Eu
Solihull MBC,Cultural & Related Services,Arts Complex Hirings,Other Fees,D52000,11/09/2014,PC44757,25.69,Amazon Eu
Solihull MBC,Children & Education Services,St Andrew's J&I,Capitation,D11001,16/09/2014,PC94454,25.7,Amazon Eu
Solihull MBC,Children & Education Services,Berkswell J&I,Capitation,D11001,16/09/2014,PC04828,25.97,Amazon Eu
Solihull MBC,Children & Education Services,Our Lady Compassion  J&I,Capitation,D11001,27/09/2014,PC13876,25.98,Amazon Eu
Solihull MBC,Children & Education Services,St Andrew's J&I,Capitation,D11001,15/09/2014,PC94126,26.06,Amazon Eu
Solihull MBC,Adult Social Care,25 Stapleton Drive,Other Premise Costs,B43000,02/10/2014,PC50767,26.99,Amazon Eu
Solihull MBC,Children & Education Services,St John The Baptist J&I,Capitation,D11001,06/09/2014,PC43311,27,Amazon Eu
Solihull MBC,Children & Education Services,Chapel Fields Jnr,Capitation,D11001,15/09/2014,PC14430,27.53,Amazon Eu
Solihull MBC,Children & Education Services,Youth Offending Team,General Office Expenses,D42000,05/09/2014,PC89516,27.7,Amazon Eu
Solihull MBC,Children & Education Services,Our Lady Wayside J&I,Capitation,D11001,07/09/2014,PC52670,27.98,Amazon Eu
Solihull MBC,Central Services to the Public,CMT Secretariat,Purchase Card Statement Summary,D11002,23/09/2014,PC67107,27.98,Amazon Eu
Solihull MBC,Children & Education Services,Meriden J&I,Capitation,D11001,04/09/2014,PC58250,28.04,Amazon Eu
Solihull MBC,Children & Education Services,Kingshurst Primary,Purchase Card Statement Summary,D11002,26/09/2014,PC58923,28.57,Amazon Eu
Solihull MBC,Children & Education Services,Monkspath Monkeys,Capitation,D11001,29/09/2014,PC38333,28.97,Amazon Eu
Solihull MBC,Children & Education Services,Monkspath Monkeys,Capitation,D11001,29/09/2014,PC69846,28.98,Amazon Eu
Solihull MBC,Central Services to the Public,ICT Data Base Analysis,IT Equipment & Software,D32000,04/09/2014,PC44578,29.24,Amazon Eu
Solihull MBC,Children & Education Services,Ulverley J&I,Capitation,D11001,19/09/2014,PC76411,29.57,Amazon Eu
Solihull MBC,Children & Education Services,Our Lady Compassion  J&I,Capitation,D11001,02/10/2014,PC15910,29.9,Amazon Eu
Solihull MBC,Children & Education Services,Smith's Wood,Materials For Resale,D11202,04/09/2014,PC19864,30.76,Amazon Eu
Solihull MBC,Children & Education Services,Kingshurst Primary,Purchase Card Statement Summary,D11002,06/09/2014,PC35968,30.89,Amazon Eu
Solihull MBC,Children & Education Services,Marston Green Jnr,Capitation,D11001,27/09/2014,PC01198,31.44,Amazon Eu
Solihull MBC,Children & Education Services,Dickens Hth Primary,IT Equipment & Software,D32000,12/09/2014,PC78217,31.97,Amazon Eu
Solihull MBC,Children & Education Services,Smith's Wood,Capitation,D11001,12/09/2014,PC55728,32.50,Amazon Eu
Solihull MBC,Children & Education Services,Windy Arbor J&I,Capitation,D11001,05/09/2014,PC78706,33.56,Amazon Eu
Solihull MBC,Children & Education Services,Marston Green Jnr,Capitation,D11001,10/09/2014,PC40122,35.98,Amazon Eu
Solihull MBC,Children & Education Services,Smith's Wood,Capitation,D11001,12/09/2014,PC62918,35.98,Amazon Eu
Solihull MBC,Children & Education Services,Lyndon,Capitation,D11001,26/09/2014,PC11214,36.14,Amazon Eu
Solihull MBC,Children & Education Services,Mill Lodge J&I,Capitation,D11001,11/09/2014,PC56639,36.68,Amazon Eu
Solihull MBC,Children & Education Services,Mill Lodge J&I,Training,A32000,08/09/2014,PC40303,38.08,Amazon Eu
Solihull MBC,Children & Education Services,Monkspath J&I,Capitation,D11001,02/10/2014,PC13610,38.74,Amazon Eu
Solihull MBC,Children & Education Services,Smith's Wood,Capitation,D11001,10/09/2014,PC33238,41.94,Amazon Eu
Solihull MBC,Children & Education Services,Marston Green Jnr,Capitation,D11001,02/10/2014,PC62227,42.61,Amazon Eu
Solihull MBC,Children & Education Services,Smith's Wood,Capitation,D11001,02/10/2014,PC99129,43.95,Amazon Eu
Solihull MBC,Children & Education Services,Smith's Wood,Capitation,D11001,06/09/2014,PC80232,45.9,Amazon Eu
Solihull MBC,Children & Education Services,Castle Bromwich Inf,Capitation,D11001,07/09/2014,PC17770,46.12,Amazon Eu
Solihull MBC,Children & Education Services,Dickens Hth Primary,Capitation,D11001,26/09/2014,PC07915,47.05,Amazon Eu
Solihull MBC,Children & Education Services,Sharmans Cross Jnr,Capitation,D11001,12/09/2014,PC80955,47.08,Amazon Eu
Solihull MBC,Children & Education Services,St John The Baptist J&I,Capitation,D11001,15/09/2014,PC21637,49.94,Amazon Eu
Solihull MBC,Children & Education Services,Lyndon,Stationery,D41000,12/09/2014,PC56908,50.61,Amazon Eu
Solihull MBC,Children & Education Services,Berkswell J&I,Capitation,D11001,12/09/2014,PC84449,51.40,Amazon Eu
Solihull MBC,Children & Education Services,Coppice Jnr,Capitation,D11001,18/09/2014,PC86688,52.4,Amazon Eu
Solihull MBC,Children & Education Services,St Margaret's J&I,Capitation,D11001,18/09/2014,PC24131,52.40,Amazon Eu
Solihull MBC,Adult Social Care,LD - Day Centre Park View,General Office Expenses,D42000,20/09/2014,PC13233,53.26,Amazon Eu
Solihull MBC,Children & Education Services,Marston Green Jnr,Capitation,D11001,01/10/2014,PC50657,54.92,Amazon Eu
Solihull MBC,Children & Education Services,Smith's Wood,Capitation,D11001,11/09/2014,PC72940,56.49,Amazon Eu
Solihull MBC,Children & Education Services,Dickens Hth Primary,Capitation,D11001,17/09/2014,PC55289,58.38,Amazon Eu
Solihull MBC,Children & Education Services,Marston Green Jnr,Capitation,D11001,10/09/2014,PC15462,59.09,Amazon Eu
Solihull MBC,Children & Education Services,St Anne's J&I,Capitation,D11001,03/09/2014,PC96302,59.43,Amazon Eu
Solihull MBC,Children & Education Services,St George & Teresa J&I,Capitation,D11001,03/09/2014,PC71461,60.05,Amazon Eu
Solihull MBC,Children & Education Services,Monkspath J&I,Capitation,D11001,18/09/2014,PC85786,60.68,Amazon Eu
Solihull MBC,Children & Education Services,Dickens Hth Primary,Capitation,D11001,16/09/2014,PC40375,63.01,Amazon Eu
Solihull MBC,Children & Education Services,Reynalds Cross,Capitation,D11001,07/09/2014,PC27140,65.93,Amazon Eu
Solihull MBC,Children & Education Services,Monkspath J&I,Capitation,D11001,17/09/2014,PC45012,67.70,Amazon Eu
Solihull MBC,Children & Education Services,St Alphege Jnr,Capitation,D11001,05/09/2014,PC28851,68.94,Amazon Eu
Solihull MBC,Children & Education Services,Monkspath J&I,Capitation,D11001,22/09/2014,PC56023,73.36,Amazon Eu
Solihull MBC,Children & Education Services,St Anne's J&I,Capitation,D11001,03/09/2014,PC65273,73.81,Amazon Eu
Solihull MBC,Children & Education Services,St Alphege Jnr,Capitation,D11001,05/09/2014,PC92593,77.19,Amazon Eu
Solihull MBC,Children & Education Services,Smith's Wood,Materials For Resale,D11202,05/09/2014,PC45102,77.37,Amazon Eu
Solihull MBC,Children & Education Services,St Anne's J&I,Capitation,D11001,04/09/2014,PC65036,80.74,Amazon Eu
Solihull MBC,Children & Education Services,Widney Jnr,Capitation,D11001,03/09/2014,PC00205,81.81,Amazon Eu
Solihull MBC,Children & Education Services,Lyndon,Capitation,D11001,27/09/2014,PC12719,82.26,Amazon Eu
Solihull MBC,Children & Education Services,Smith's Wood,Capitation,D11001,06/09/2014,PC88450,82.52,Amazon Eu
Solihull MBC,Children & Education Services,Reynalds Cross,Capitation,D11001,04/09/2014,PC66425,94.98,Amazon Eu
Solihull MBC,Children & Education Services,St Margaret's J&I,Capitation,D11001,18/09/2014,PC67856,99.56,Amazon Eu
Solihull MBC,Children & Education Services,Smith's Wood,Capitation,D11001,05/09/2014,PC10470,100.62,Amazon Eu
Solihull MBC,Children & Education Services,Smith's Wood,Capitation,D11001,30/09/2014,PC86429,106.62,Amazon Eu
Solihull MBC,Children & Education Services,Monkspath J&I,Capitation,D11001,01/10/2014,PC12258,107.82,Amazon Eu
Solihull MBC,Children & Education Services,Marston Green Jnr,IT Equipment & Software,D32000,02/10/2014,PC69274,115.40,Amazon Eu
Solihull MBC,Children & Education Services,Hazel Oak,IT Equipment & Software,D32000,01/10/2014,PC10988,116.27,Amazon Eu
Solihull MBC,Children & Education Services,Widney Jnr,Capitation,D11001,04/09/2014,PC71150,118.74,Amazon Eu
Solihull MBC,Children & Education Services,Monkspath J&I,Capitation,D11001,12/09/2014,PC25337,119.18,Amazon Eu
Solihull MBC,Children & Education Services,Smith's Wood,Capitation,D11001,30/09/2014,PC60872,121.86,Amazon Eu
Solihull MBC,Children & Education Services,Smith's Wood,Capitation,D11001,11/09/2014,PC01669,132.81,Amazon Eu
Solihull MBC,Children & Education Services,Monkspath J&I,Capitation,D11001,24/09/2014,PC06321,141.48,Amazon Eu
Solihull MBC,Children & Education Services,Widney Jnr,Capitation,D11001,17/09/2014,PC89442,143.7,Amazon Eu
Solihull MBC,Children & Education Services,Smith's Wood,Capitation,D11001,30/09/2014,PC84185,144.70,Amazon Eu
Solihull MBC,Children & Education Services,Hazel Oak,Capitation,D11001,14/09/2014,PC26126,153.09,Amazon Eu
Solihull MBC,Children & Education Services,Smith's Wood,Capitation,D11001,08/09/2014,PC47811,157.20,Amazon Eu
Solihull MBC,Children & Education Services,Monkspath J&I,Capitation,D11001,24/09/2014,PC87361,162.47,Amazon Eu
Solihull MBC,Children & Education Services,Widney Jnr,Capitation,D11001,10/09/2014,PC20854,167.70,Amazon Eu
Solihull MBC,Children & Education Services,Smith's Wood,Capitation,D11001,30/09/2014,PC02899,175.17,Amazon Eu
Solihull MBC,Children & Education Services,Smith's Wood,Capitation,D11001,30/09/2014,PC86064,175.17,Amazon Eu
Solihull MBC,Children & Education Services,Smith's Wood,Capitation,D11001,08/09/2014,PC98965,178.61,Amazon Eu
Solihull MBC,Children & Education Services,Monkspath J&I,Capitation,D11001,11/09/2014,PC20573,183.84,Amazon Eu
Solihull MBC,Children & Education Services,Windy Arbor J&I,Capitation,D11001,17/09/2014,PC69333,187,Amazon Eu
Solihull MBC,Children & Education Services,Monkspath J&I,Capitation,D11001,10/09/2014,PC17369,188.55,Amazon Eu
Solihull MBC,Children & Education Services,Marston Green Jnr,Capitation,D11001,10/09/2014,PC04361,188.57,Amazon Eu
Solihull MBC,Children & Education Services,Smith's Wood,Capitation,D11001,30/09/2014,PC33980,190.4,Amazon Eu
Solihull MBC,Children & Education Services,Summerfield Centre,Capitation,D11001,12/09/2014,PC41901,190.85,Amazon Eu
Solihull MBC,Children & Education Services,Smith's Wood,Materials For Resale,D11202,04/09/2014,PC19852,197.91,Amazon Eu
Solihull MBC,Children & Education Services,Smith's Wood,Capitation,D11001,09/09/2014,PC95414,209.70,Amazon Eu
Solihull MBC,Children & Education Services,Monkspath J&I,Capitation,D11001,12/09/2014,PC09058,235.8,Amazon Eu
Solihull MBC,Children & Education Services,Windy Arbor J&I,IT Equipment & Software,D32000,12/09/2014,PC06365,239.99,Amazon Eu
Solihull MBC,Children & Education Services,Windy Arbor J&I,IT Equipment & Software,D32000,12/09/2014,PC06316,719.97,Amazon Eu
Solihull MBC,Children & Education Services,Valley Inf,Capitation,D11001,15/08/2014,PC73248,-399.99,Amazon Eu
Solihull MBC,Children & Education Services,Widney Jnr,Capitation,D11001,29/09/2014,PC82135,0.69,Amazon Eu Sarl
Solihull MBC,Children & Education Services,Widney Jnr,Capitation,D11001,19/09/2014,PC38375,2.99,Amazon Eu Sarl
Solihull MBC,Children & Education Services,Widney Jnr,Capitation,D11001,15/09/2014,PC26083,4.99,Amazon Eu Sarl
Solihull MBC,Children & Education Services,Meriden J&I,Capitation,D11001,05/09/2014,PC19904,79.00,Amazon Prime
Solihull MBC,Children & Education Services,Our Lady Compassion  J&I,Capitation,D11001,11/09/2014,PC59765,10.74,Amazonpayments.co.uk
Solihull MBC,Children & Education Services,Shirley Heath Jnr,Building Maint Planned,B31002,05/09/2014,PC97069,86.65,Amazonpayments.co.uk
Solihull MBC,Children & Education Services,Valley Inf,Capitation,D11001,13/08/2014,PC34669,-549.00,Apple Online Store Gbp
Solihull MBC,Central Services to the Public,SCH ICT Team,IT Equipment & Software,D32000,15/09/2014,PC07334,15.00,Apple Store R255
Solihull MBC,Central Services to the Public,SCH ICT Team,IT Equipment & Software,D32000,22/09/2014,PC35400,30.00,Apple Store R255
Solihull MBC,Central Services to the Public,CMT Secretariat,Materials,D11000,01/10/2014,PC63924,40,Apple Store R255
Solihull MBC,Children & Education Services,Berkswell J&I,Officers Expenses,D61000,18/09/2014,PC31715,20,Ardencote Manor Hotel
Solihull MBC,Children & Education Services,Auckland Centre,Furniture & Equipment,D10000,01/10/2014,PC95040,5.98,Argos Ltd
Solihull MBC,Children & Education Services,Meriden Breakfast Club,Catering Provisions,D20000,25/09/2014,PC61790,8.97,Argos Ltd
Solihull MBC,Children & Education Services,Section 17 Chelmsley Wood,Clients Expenses,D62000,09/09/2014,PC97220,9.99,Argos Ltd
Solihull MBC,Children & Education Services,Peterbrook Club,Capitation,D11001,13/09/2014,PC54331,9.99,Argos Ltd
Solihull MBC,Children & Education Services,Coleshill Heath J&I,Meetings & Other Expenses,D61002,16/09/2014,PC38909,12.99,Argos Ltd
Solihull MBC,Children & Education Services,Fordbridge Community Primary,Repair & Maintn Of Buildings,B31000,02/10/2014,PC62973,13.98,Argos Ltd
Solihull MBC,Children & Education Services,Bishop Wilson J&I,Capitation,D11001,30/09/2014,PC14486,19.16,Argos Ltd
Solihull MBC,Children & Education Services,Section 17 Chelmsley Wood,Clients Expenses,D62000,10/09/2014,PC16933,19.49,Argos Ltd
Solihull MBC,Children & Education Services,Section 17 Chelmsley Wood,Clients Expenses,D62000,26/09/2014,PC86907,22.50,Argos Ltd
Solihull MBC,Children & Education Services,Section 17 DART,Materials,D11000,18/09/2014,PC48688,24.98,Argos Ltd
Solihull MBC,Children & Education Services,Merstone,Capitation,D11001,21/09/2014,PC40527,24.99,Argos Ltd
Solihull MBC,Children & Education Services,Tidbury Green J&I,Capitation,D11001,28/09/2014,PC44264,24.99,Argos Ltd
Solihull MBC,Adult Social Care,ASC - Acute Team SW,General Office Expenses,D42000,11/09/2014,PC97440,26.66,Argos Ltd
Solihull MBC,Children & Education Services,Auckland Centre,Furniture & Equipment,D10000,13/09/2014,PC24191,29.97,Argos Ltd
Solihull MBC,Children & Education Services,St Anthony's J&I,Building Maint Day To Day,B31001,18/09/2014,PC48149,29.99,Argos Ltd
Solihull MBC,Children & Education Services,Reynalds Cross,Capitation,D11001,10/09/2014,PC95340,64.98,Argos Ltd
Solihull MBC,Children & Education Services,Dickens Hth Primary,Furniture & Equipment,D10000,11/09/2014,PC46920,69.98,Argos Ltd
Solihull MBC,Adult Social Care,7 Downing Close,Furniture & Equipment,D10000,18/09/2014,PC30827,72.94,Argos Ltd
Solihull MBC,Children & Education Services,Forest Oak,Capitation,D11001,18/09/2014,PC99020,100,Argos Ltd
Solihull MBC,Children & Education Services,Cranmore Inf,Furniture & Equipment,D10000,09/09/2014,PC42190,189.97,Argos Ltd
Solihull MBC,Children & Education Services,Streetsbrook Inf,Capitation,D11001,24/09/2014,PC08045,20.62,Argos Retail Group
Solihull MBC,Children & Education Services,Section 17 Chelmsley Wood,Clients Expenses,D62000,16/09/2014,PC70516,23.95,Argos Retail Group
Solihull MBC,Children & Education Services,CSW Team B U18 Local Clients,General Office Expenses,D42000,23/09/2014,PC44505,45.93,Argos Retail Group
Solihull MBC,Children & Education Services,ATC-CSW 18+ Client Team 1,Client Leaving Care Grant,D62020,10/09/2014,PC87970,89.97,Argos Retail Group
Solihull MBC,Children & Education Services,St Alphege Jnr,Capitation,D11001,26/09/2014,PC87919,113.94,Argos Retail Group
Solihull MBC,Children & Education Services,ATC-CSW 18+ Client Team 1,Client Leaving Care Grant,D62020,16/09/2014,PC89962,135.91,Argos Retail Group
Solihull MBC,Children & Education Services,Reynalds Cross,Capitation,D11001,11/09/2014,PC62993,138.94,Argos Retail Group
Solihull MBC,Children & Education Services,UASC 18+,Client Leaving Care Grant,D62020,11/09/2014,PC05790,171.96,Argos Retail Group
Solihull MBC,Children & Education Services,ATC-CSW 18+ Client Team 1,Client Leaving Care Grant,D62020,10/09/2014,PC90014,195.61,Argos Retail Group
Solihull MBC,Children & Education Services,Meriden J&I,Furniture & Equipment,D10000,08/09/2014,PC23373,199.92,Argos Retail Group
Solihull MBC,Children & Education Services,ATC-CSW 18+ Client Team 1,Client Leaving Care Grant,D62020,10/09/2014,PC89135,206.96,Argos Retail Group
Solihull MBC,Children & Education Services,ATC-CSW 18+ Client Team 1,Client Leaving Care Grant,D62020,29/09/2014,PC68128,208.94,Argos Retail Group
Solihull MBC,Children & Education Services,ATC-CSW 18+ Client Team 1,Client Leaving Care Grant,D62020,10/09/2014,PC37378,251.93,Argos Retail Group
Solihull MBC,Children & Education Services,ATC-CSW 18+ Client Team 1,Client Leaving Care Grant,D62020,25/09/2014,PC35159,278.94,Argos Retail Group
Solihull MBC,Children & Education Services,ATC-CSW 18+ Client Team 1,Client Leaving Care Grant,D62020,10/09/2014,PC33615,368.91,Argos Retail Group
Solihull MBC,Children & Education Services,ATC-CSW 18+ Client Team 1,Client Leaving Care Grant,D62020,19/09/2014,PC65270,398.90,Argos Retail Group
Solihull MBC,Children & Education Services,UASC 18+,Client Leaving Care Grant,D62020,11/09/2014,PC61257,603.92,Argos Retail Group
Solihull MBC,Children & Education Services,Tidbury Green J&I,Capitation,D11001,17/09/2014,PC05196,8.50,Asda  Direct Web 4387
Solihull MBC,Children & Education Services,Cheswick Green J&I,Capitation,D11001,22/09/2014,PC41826,4.59,Asda  Stores 5880
Solihull MBC,Children & Education Services,Dorridge Inf,Catering Provisions,D20000,29/09/2014,PC34664,5,Asda  Stores 5880
Solihull MBC,Children & Education Services,Tidbury Green J&I,Capitation,D11001,17/09/2014,PC61633,5,Asda  Stores 5880
Solihull MBC,Children & Education Services,Dorridge Inf,Capitation,D11001,02/10/2014,PC80538,5.65,Asda  Stores 5880
Solihull MBC,Children & Education Services,Dickens Hth Primary,Maintenance Of Grounds,B30000,24/09/2014,PC07881,6,Asda  Stores 5880
Solihull MBC,Children & Education Services,Dickens Heath Afterschool Club,Capitation,D11001,24/09/2014,PC83330,9.86,Asda  Stores 5880
Solihull MBC,Children & Education Services,Hazel Oak,Capitation,D11001,24/09/2014,PC86655,14.87,Asda  Stores 5880
Solihull MBC,Children & Education Services,Woodlands Solihull Inf,Cleaning / Janitrl Materials,B40002,03/09/2014,PC42699,15.55,Asda  Stores 5880
Solihull MBC,Children & Education Services,Cranmore Inf,Meetings & Other Expenses,D61002,08/09/2014,PC92048,20.70,Asda  Stores 5880
Solihull MBC,Children & Education Services,Shirley Heath Kids Club,Capitation,D11001,01/10/2014,PC84922,25.86,Asda  Stores 5880
Solihull MBC,Children & Education Services,Primary Schools Summary,Catering Provisions,D20000,05/09/2014,PC95766,33.18,Asda  Stores 5880
Solihull MBC,Adult Social Care,OP - Day Centre Oaktrees,Catering Provisions,D20000,02/10/2014,PC58658,35.93,Asda  Stores 5880
Solihull MBC,Adult Social Care,222 Bills Lane,Catering Provisions,D20000,15/09/2014,PC55746,41.5,Asda  Stores 5880
Solihull MBC,Children & Education Services,Education Management,General Office Expenses,D42000,25/09/2014,PC50449,44.69,Asda  Stores 5880
Solihull MBC,Adult Social Care,137 Bills Lane,Catering Provisions,D20000,15/09/2014,PC41829,64.92,Asda  Stores 5880
Solihull MBC,Adult Social Care,137 Bills Lane,Catering Provisions,D20000,30/09/2014,PC27765,81.75,Asda  Stores 5880
Solihull MBC,Children & Education Services,Dorridge Inf,Catering Provisions,D20000,27/09/2014,PC84859,6.2,Asda Stores 4602
Solihull MBC,Children & Education Services,Reynolds Cross,Catering Provisions,D20000,13/09/2014,PC68620,18.72,Asda Stores 4602
Solihull MBC,Children & Education Services,Afterschool Club,Catering Provisions,D20000,05/09/2014,PC80401,1.00,Asda Stores 5881
Solihull MBC,Children & Education Services,Yorkswood N'hood Nursery,Meetings & Other Expenses,D61002,03/09/2014,PC12921,1.49,Asda Stores 5881
Solihull MBC,Children & Education Services,Fieldwork Sector And Court,General Office Expenses,D42000,05/09/2014,PC51550,2.44,Asda Stores 5881
Solihull MBC,Children & Education Services,Troubled Families,Clients Expenses,D62000,05/09/2014,PC60965,2.85,Asda Stores 5881
Solihull MBC,Children & Education Services,Troubled Families,Clients Expenses,D62000,23/09/2014,PC34502,5.65,Asda Stores 5881
Solihull MBC,Children & Education Services,Fieldwork Sector And Court,General Office Expenses,D42000,24/09/2014,PC15511,5.89,Asda Stores 5881
Solihull MBC,Children & Education Services,Troubled Families,Clients Expenses,D62000,15/09/2014,PC06209,6.00,Asda Stores 5881
Solihull MBC,Children & Education Services,Evolution Project (BIP),Catering Provisions,D20000,10/09/2014,PC21896,6.48,Asda Stores 5881
Solihull MBC,Children & Education Services,Coleshill Heath J&I,Meetings & Other Expenses,D61002,17/09/2014,PC08284,6.48,Asda Stores 5881
Solihull MBC,Children & Education Services,Afterschool Club,Catering Provisions,D20000,16/09/2014,PC93636,7.00,Asda Stores 5881
Solihull MBC,Housing Revenue Account,Purchase Card Acquisitions,General Debtors,R20000,11/09/2014,PC43552,8.30,Asda Stores 5881
Solihull MBC,Children & Education Services,Fordbridge Community Primary,Capitation,D11001,19/09/2014,PC09784,8.9,Asda Stores 5881
Solihull MBC,Central Services to the Public,Organisational Development,Training,A32000,17/09/2014,PC00497,9.28,Asda Stores 5881
Solihull MBC,Children & Education Services,C Brom Infants Club,Capitation,D11001,25/09/2014,PC99890,9.5,Asda Stores 5881
Solihull MBC,Children & Education Services,St Anne's J&I,Catering Provisions,D20000,08/09/2014,PC26183,10.01,Asda Stores 5881
Solihull MBC,Adult Social Care,2 Kettlewell Close,Catering Provisions,D20000,29/09/2014,PC91283,10.3,Asda Stores 5881
Solihull MBC,Adult Social Care,25 Stapleton Drive,Catering Provisions,D20000,15/09/2014,PC90064,10.79,Asda Stores 5881
Solihull MBC,Children & Education Services,Chuckles,Catering Provisions,D20000,23/09/2014,PC37786,11.96,Asda Stores 5881
Solihull MBC,Children & Education Services,Ark,Capitation,D11001,05/09/2014,PC67390,13,Asda Stores 5881
Solihull MBC,Adult Social Care,25 Stapleton Drive,Cleaning,B40000,10/09/2014,PC54228,13.26,Asda Stores 5881
Solihull MBC,Children & Education Services,Troubled Families,Clients Expenses,D62000,22/09/2014,PC82647,13.39,Asda Stores 5881
Solihull MBC,Adult Social Care,25 Stapleton Drive,Cleaning,B40000,02/10/2014,PC03214,13.43,Asda Stores 5881
Solihull MBC,Children & Education Services,Afterschool Club,Catering Provisions,D20000,26/09/2014,PC51664,13.65,Asda Stores 5881
Solihull MBC,Children & Education Services,Coleshill Heath J&I,Meetings & Other Expenses,D61002,25/09/2014,PC50883,14.58,Asda Stores 5881
Solihull MBC,Adult Social Care,25 Stapleton Drive,Cleaning,B40000,25/09/2014,PC05945,18.36,Asda Stores 5881
Solihull MBC,Adult Social Care,2 Kettlewell Close,Catering Provisions,D20000,15/09/2014,PC97036,18.61,Asda Stores 5881
Solihull MBC,Adult Social Care,25 Stapleton Drive,Cleaning,B40000,29/09/2014,PC87406,19.95,Asda Stores 5881
Solihull MBC,Children & Education Services,Section 17 DART,Materials,D11000,18/09/2014,PC00794,20.42,Asda Stores 5881
Solihull MBC,Children & Education Services,Section 17 DART,Materials,D11000,25/09/2014,PC20753,21,Asda Stores 5881
Solihull MBC,Housing Revenue Account,Purchase Card Acquisitions,General Debtors,R20000,30/09/2014,PC97759,22.00,Asda Stores 5881
Solihull MBC,Adult Social Care,25 Stapleton Drive,Cleaning,B40000,03/09/2014,PC13309,22.07,Asda Stores 5881
Solihull MBC,Children & Education Services,Coleshill Heath J&I,Meetings & Other Expenses,D61002,29/09/2014,PC14705,22.54,Asda Stores 5881
Solihull MBC,Children & Education Services,Catering Management,Catering Provisions,D20000,04/09/2014,PC86478,22.58,Asda Stores 5881
Solihull MBC,Housing Revenue Account,Purchase Card Acquisitions,General Debtors,R20000,25/09/2014,PC94115,26.00,Asda Stores 5881
Solihull MBC,Adult Social Care,25 Stapleton Drive,Cleaning,B40000,18/09/2014,PC82133,26.78,Asda Stores 5881
Solihull MBC,Children & Education Services,Coleshill Heath J&I,Meetings & Other Expenses,D61002,11/09/2014,PC30310,28.64,Asda Stores 5881
Solihull MBC,Adult Social Care,2 Kettlewell Close,Catering Provisions,D20000,22/09/2014,PC64074,29.59,Asda Stores 5881
Solihull MBC,Children & Education Services,Afterschool Club,Catering Provisions,D20000,16/09/2014,PC24323,31.00,Asda Stores 5881
Solihull MBC,Children & Education Services,Afterschool Club,Catering Provisions,D20000,08/09/2014,PC41240,31.24,Asda Stores 5881
Solihull MBC,Central Services to the Public,Chelmsley Wood T/Centre,General Office Expenses,D42000,08/09/2014,PC51447,31.3,Asda Stores 5881
Solihull MBC,Children & Education Services,Windy Arbor J&I,Capitation,D11001,19/09/2014,PC41076,36.89,Asda Stores 5881
Solihull MBC,Children & Education Services,Coleshill Heath J&I,Meetings & Other Expenses,D61002,02/10/2014,PC02695,38.11,Asda Stores 5881
Solihull MBC,Adult Social Care,25 Stapleton Drive,Cleaning,B40000,29/09/2014,PC88602,40.07,Asda Stores 5881
Solihull MBC,Adult Social Care,2 Kettlewell Close,Catering Provisions,D20000,08/09/2014,PC39590,40.40,Asda Stores 5881
Solihull MBC,Children & Education Services,Afterschool Club,Catering Provisions,D20000,11/09/2014,PC32092,43.80,Asda Stores 5881
Solihull MBC,Children & Education Services,Afterschool Club,Catering Provisions,D20000,18/09/2014,PC81556,49,Asda Stores 5881
Solihull MBC,Children & Education Services,Coleshill Heath J&I,Meetings & Other Expenses,D61002,23/09/2014,PC60465,59.32,Asda Stores 5881
Solihull MBC,Children & Education Services,Yorkswood N'hood Nursery,Meetings & Other Expenses,D61002,24/09/2014,PC34868,61.8,Asda Stores 5881
Solihull MBC,Adult Social Care,Roundmead,Catering Provisions,D20000,22/09/2014,PC84882,74.27,Asda Stores 5881
Solihull MBC,Adult Social Care,2 Kettlewell Close,Catering Provisions,D20000,29/09/2014,PC91200,85.47,Asda Stores 5881
Solihull MBC,Children & Education Services,Coleshill Heath J&I,Meetings & Other Expenses,D61002,09/09/2014,PC43541,88.20,Asda Stores 5881
Solihull MBC,Adult Social Care,2 Kettlewell Close,Catering Provisions,D20000,08/09/2014,PC40218,96.97,Asda Stores 5881
Solihull MBC,Adult Social Care,2 Kettlewell Close,Catering Provisions,D20000,22/09/2014,PC63878,98.04,Asda Stores 5881
Solihull MBC,Children & Education Services,Section 17 Chelmsley Wood,Clients Expenses,D62000,22/09/2014,PC56773,100.00,Asda Stores 5881
Solihull MBC,Children & Education Services,Section 17 Chelmsley Wood,Clients Expenses,D62000,30/09/2014,PC75466,100,Asda Stores 5881
Solihull MBC,Adult Social Care,25 Stapleton Drive,Catering Provisions,D20000,29/09/2014,PC88008,101.90,Asda Stores 5881
Solihull MBC,Adult Social Care,25 Stapleton Drive,Catering Provisions,D20000,25/09/2014,PC05788,106.22,Asda Stores 5881
Solihull MBC,Adult Social Care,2 Kettlewell Close,Catering Provisions,D20000,15/09/2014,PC97705,107.18,Asda Stores 5881
Solihull MBC,Children & Education Services,Kingshurst Primary,Purchase Card Statement Summary,D11002,04/09/2014,PC01714,109.95,Asda Stores 5881
Solihull MBC,Adult Social Care,25 Stapleton Drive,Catering Provisions,D20000,10/09/2014,PC54145,113.36,Asda Stores 5881
Solihull MBC,Adult Social Care,25 Stapleton Drive,Catering Provisions,D20000,02/10/2014,PC03370,114.65,Asda Stores 5881
Solihull MBC,Adult Social Care,25 Stapleton Drive,Catering Provisions,D20000,29/09/2014,PC88487,119.05,Asda Stores 5881
Solihull MBC,Adult Social Care,25 Stapleton Drive,Catering Provisions,D20000,03/09/2014,PC13242,134.89,Asda Stores 5881
Solihull MBC,Children & Education Services,Section 17 Chelmsley Wood,Clients Expenses,D62000,09/09/2014,PC95949,150,Asda Stores 5881
Solihull MBC,Adult Social Care,25 Stapleton Drive,Catering Provisions,D20000,08/09/2014,PC30201,177.12,Asda Stores 5881
Solihull MBC,Adult Social Care,25 Stapleton Drive,Catering Provisions,D20000,18/09/2014,PC82117,178.87,Asda Stores 5881
Solihull MBC,Adult Social Care,25 Stapleton Drive,Catering Provisions,D20000,08/09/2014,PC31621,183.38,Asda Stores 5881
Solihull MBC,Children & Education Services,Fordbridge Community Primary,Capitation,D11001,25/09/2014,PC78883,31.03,Asda Stores 7134
Solihull MBC,Children & Education Services,Bishop Wilson J&I,Capitation,D11001,22/09/2014,PC38408,46.48,Asda Stores 7134
Solihull MBC,Children & Education Services,Bishop Wilson J&I,Capitation,D11001,16/09/2014,PC96778,49.55,Asda Stores 7134
Solihull MBC,Children & Education Services,Kingshurst Primary,Purchase Card Statement Summary,D11002,08/09/2014,PC50234,52.69,Asda Stores 7134
Solihull MBC,Children & Education Services,Bishop Wilson J&I,Capitation,D11001,30/09/2014,PC19931,54.75,Asda Stores 7134
Solihull MBC,Children & Education Services,Fordbridge Community Primary,Capitation,D11001,16/09/2014,PC65408,57.64,Asda Stores 7134
Solihull MBC,Children & Education Services,Fordbridge Community Primary,Capitation,D11001,29/09/2014,PC73686,58.93,Asda Stores 7134
Solihull MBC,Children & Education Services,Lyndon,Capitation,D11001,01/10/2014,PC56520,67.89,Asda Stores 7134
Solihull MBC,Children & Education Services,Kingshurst Primary,Purchase Card Statement Summary,D11002,29/09/2014,PC68546,70.27,Asda Stores 7134
Solihull MBC,Children & Education Services,Fordbridge Community Primary,Capitation,D11001,08/09/2014,PC56017,73.74,Asda Stores 7134
Solihull MBC,Children & Education Services,Lyndon,Capitation,D11001,10/09/2014,PC46001,73.93,Asda Stores 7134
Solihull MBC,Children & Education Services,Fordbridge Community Primary,Capitation,D11001,22/09/2014,PC99913,74.17,Asda Stores 7134
Solihull MBC,Children & Education Services,Bishop Wilson J&I,Capitation,D11001,03/09/2014,PC44610,76.42,Asda Stores 7134
Solihull MBC,Children & Education Services,Kingshurst Primary,Purchase Card Statement Summary,D11002,23/09/2014,PC22365,76.83,Asda Stores 7134
Solihull MBC,Adult Social Care,OP - Day Centre Oaktrees,Catering Provisions,D20000,04/09/2014,PC00632,79.62,Asda Stores 7134
Solihull MBC,Children & Education Services,Kingshurst Primary,Purchase Card Statement Summary,D11002,15/09/2014,PC05624,80.08,Asda Stores 7134
Solihull MBC,Children & Education Services,Coleshill Heath J&I,Meetings & Other Expenses,D61002,09/09/2014,PC43573,91.49,Asda Stores 7134
Solihull MBC,Adult Social Care,OP - Day Centre Oaktrees,Catering Provisions,D20000,18/09/2014,PC69774,96.28,Asda Stores 7134
Solihull MBC,Adult Social Care,OP - Day Centre Oaktrees,Catering Provisions,D20000,26/09/2014,PC04881,197.55,Asda Stores 7134
Solihull MBC,Children & Education Services,Smith's Wood,Capitation,D11001,09/09/2014,PC47565,0.48,Asda Superstore
Solihull MBC,Children & Education Services,Smith's Wood,Capitation,D11001,30/09/2014,PC44158,3.00,Asda Superstore
Solihull MBC,Children & Education Services,Smith's Wood,Capitation,D11001,09/09/2014,PC97688,5.04,Asda Superstore
Solihull MBC,Children & Education Services,Smith's Wood,Capitation,D11001,18/09/2014,PC12967,5.97,Asda Superstore
Solihull MBC,Children & Education Services,Youth Council / YID,Other Transport Costs,C42000,18/09/2014,PC47521,6,Asda Superstore
Solihull MBC,Children & Education Services,Smith's Wood,Capitation,D11001,16/09/2014,PC43842,10.50,Asda Superstore
Solihull MBC,Adult Social Care,25 Stapleton Drive,Cleaning,B40000,15/09/2014,PC62901,19.90,Asda Superstore
Solihull MBC,Adult Social Care,25 Stapleton Drive,Cleaning,B40000,22/09/2014,PC26340,24.3,Asda Superstore
Solihull MBC,Adult Social Care,25 Stapleton Drive,Cleaning,B40000,22/09/2014,PC26787,25.97,Asda Superstore
Solihull MBC,Children & Education Services,Smith's Wood,Capitation,D11001,21/09/2014,PC71805,27.84,Asda Superstore
Solihull MBC,Children & Education Services,Meriden J&I,Furniture & Equipment,D10000,25/09/2014,PC41937,30.50,Asda Superstore
Solihull MBC,Children & Education Services,Evolution Project (BIP),Catering Provisions,D20000,11/09/2014,PC70289,36.77,Asda Superstore
Solihull MBC,Adult Social Care,25 Stapleton Drive,Cleaning,B40000,15/09/2014,PC64931,39.14,Asda Superstore
Solihull MBC,Adult Social Care,25 Stapleton Drive,Catering Provisions,D20000,22/09/2014,PC26027,94.29,Asda Superstore
Solihull MBC,Adult Social Care,25 Stapleton Drive,Catering Provisions,D20000,15/09/2014,PC63735,117.52,Asda Superstore
Solihull MBC,Adult Social Care,25 Stapleton Drive,Catering Provisions,D20000,15/09/2014,PC64659,119.18,Asda Superstore
Solihull MBC,Adult Social Care,25 Stapleton Drive,Catering Provisions,D20000,22/09/2014,PC26464,160.29,Asda Superstore
Solihull MBC,Children & Education Services,Marston Green Jnr,IT Equipment & Software,D32000,16/09/2014,PC50428,29.99,AVG*www.avg.com
Solihull MBC,Children & Education Services,Blossomfield Inf,Building Maint Day To Day,B31001,05/09/2014,PC54842,2.90,B & Q
Solihull MBC,Children & Education Services,St Mary & Margaret J&I,Building Maint Day To Day,B31001,03/09/2014,PC62841,5.14,B & Q
Solihull MBC,Children & Education Services,Windy Arbor J&I,Capitation,D11001,14/09/2014,PC33746,5.25,B & Q
Solihull MBC,Children & Education Services,Kingshurst Primary,Purchase Card Statement Summary,D11002,10/09/2014,PC01199,6.2,B & Q
Solihull MBC,Children & Education Services,Cheswick Green J&I,Capitation,D11001,29/09/2014,PC25193,6.67,B & Q
Solihull MBC,Housing Revenue Account,Purchase Card Acquisitions,General Debtors,R20000,24/09/2014,PC36725,7.50,B & Q
Solihull MBC,Children & Education Services,Lady K Levesons J&I,Purchase Card Statement Summary,D11002,30/09/2014,PC09081,7.50,B & Q
Solihull MBC,Children & Education Services,Hazel Oak,Building Maint Day To Day,B31001,30/09/2014,PC06184,8.30,B & Q
Solihull MBC,Children & Education Services,Blossomfield Inf,Building Maint Day To Day,B31001,15/09/2014,PC19209,8.31,B & Q
Solihull MBC,Children & Education Services,Peterbrook J&I,Building Maint Day To Day,B31001,23/09/2014,PC78368,8.32,B & Q
Solihull MBC,Children & Education Services,Kingshurst Primary,Purchase Card Statement Summary,D11002,28/09/2014,PC86803,8.32,B & Q
Solihull MBC,Children & Education Services,Cheswick Green J&I,Building Maint Day To Day,B31001,18/09/2014,PC41808,10.38,B & Q
Solihull MBC,Children & Education Services,Cranmore Little Acorns & Kids Club,Building Maint Day To Day,B31001,26/09/2014,PC12043,12.50,B & Q
Solihull MBC,Children & Education Services,Windy Arbor J&I,Capitation,D11001,29/09/2014,PC95267,13.34,B & Q
Solihull MBC,Housing Revenue Account,Purchase Card Acquisitions,General Debtors,R20000,24/09/2014,PC36557,13.64,B & Q
Solihull MBC,Housing Revenue Account,Purchase Card Acquisitions,General Debtors,R20000,17/09/2014,PC07504,14.97,B & Q
Solihull MBC,Children & Education Services,Windy Arbor J&I,Capitation,D11001,07/09/2014,PC45969,15.86,B & Q
Solihull MBC,Housing Revenue Account,Purchase Card Acquisitions,General Debtors,R20000,09/09/2014,PC63572,17.47,B & Q
Solihull MBC,Children & Education Services,Mill Lodge J&I,Building Maint Day To Day,B31001,07/09/2014,PC27117,22.03,B & Q
Solihull MBC,Housing Revenue Account,Purchase Card Acquisitions,General Debtors,R20000,19/09/2014,PC04787,23.08,B & Q
Solihull MBC,Children & Education Services,Shirley Heath Jnr,Health & Safety,B43003,17/09/2014,PC92826,32.23,B & Q
Solihull MBC,Children & Education Services,Dickens Hth Primary,Maintenance Of Grounds,B30000,29/09/2014,PC21874,37.48,B & Q
Solihull MBC,Children & Education Services,Hazel Oak,Building Maint Day To Day,B31001,03/09/2014,PC02144,54.96,B & Q
Solihull MBC,Children & Education Services,Dickens Hth Primary,Maintenance Of Grounds,B30000,04/09/2014,PC29914,56.27,B & Q
Solihull MBC,Adult Social Care,Bacons End,Repair & Maintn Of Buildings,B31000,25/09/2014,PC17083,62.48,B & Q
Solihull MBC,Children & Education Services,Afterschool Club,Catering Provisions,D20000,25/09/2014,PC21423,115.65,B & Q
Solihull MBC,Children & Education Services,Shirley Heath Jnr,Maintenance Of Grounds,B30000,01/10/2014,PC68017,124.64,B & Q
Solihull MBC,Children & Education Services,Marston Green Jnr,Building Maint Day To Day,B31001,08/09/2014,PC81752,156.51,B & Q
Solihull MBC,Environmental and Regulatory Services,Environmental Group,Other Fees,D52000,25/09/2014,PC62975,209.91,B & Q
Solihull MBC,Children & Education Services,Sans Souci,Materials,D11000,11/09/2014,PC37530,214.67,B & Q
Solihull MBC,Children & Education Services,Tidbury Green J&I,Furniture & Equipment,D10000,10/09/2014,PC85525,53.94,B & Q Direct
Solihull MBC,Children & Education Services,Yorkswood N'hood Nursery,Meetings & Other Expenses,D61002,18/09/2014,PC89697,260.92,B & Q Direct
Solihull MBC,Children & Education Services,Smith's Wood,IT Equipment & Software,D32000,02/10/2014,PC50305,-23.32,B.T. Business Direct
Solihull MBC,Children & Education Services,Smith's Wood,IT Equipment & Software,D32000,24/09/2014,PC30607,32.36,B.T. Business Direct
Solihull MBC,Children & Education Services,Smith's Wood,IT Equipment & Software,D32000,10/09/2014,PC90078,118.30,B.T. Business Direct
Solihull MBC,Children & Education Services,Smith's Wood,IT Equipment & Software,D32000,17/09/2014,PC99107,198.54,B.T. Business Direct
Solihull MBC,Children & Education Services,Smith's Wood,IT Equipment & Software,D32000,11/09/2014,PC71072,360.00,B.T. Business Direct
Solihull MBC,Children & Education Services,Smith's Wood,Capitation,D11001,08/09/2014,PC93876,376.1,B.T. Business Direct
Solihull MBC,Children & Education Services,Streetsbrook Inf,Visits & Pupil Activities,D52002,17/09/2014,PC66550,27.35,Baker Ross
Solihull MBC,Children & Education Services,Flamingo Club,Capitation,D11001,02/10/2014,PC14734,155.31,Baker Ross
Solihull MBC,Children & Education Services,Streetsbrook Inf,Capitation,D11001,11/09/2014,PC62581,292.89,Baker Ross
Solihull MBC,Adult Social Care,268 Creynolds Lane,Clients Expenses,D62000,09/09/2014,PC22291,34.86,Beefeater40010640
Solihull MBC,Adult Social Care,268 Creynolds Lane,Cleaning,B40000,01/10/2014,PC03912,103.68,Berwick Care Equipment-V
Solihull MBC,Central Services to the Public,ICT Data Base Analysis,Training,A32000,05/09/2014,PC80426,50,Bewleys Leeds Fexco Mc
Solihull MBC,Central Services to the Public,ICT Data Base Analysis,Training,A32000,05/09/2014,PC80178,66.00,Bewleys Leeds Fexco Mc
Solihull MBC,Central Services to the Public,ICT Data Base Analysis,Training,A32000,05/09/2014,PC80251,66.00,Bewleys Leeds Fexco Mc
Solihull MBC,Central Services to the Public,ICT Data Base Analysis,Training,A32000,05/09/2014,PC80186,437.75,Bewleys Leeds Fexco Mc
Solihull MBC,Central Services to the Public,ICT Data Base Analysis,IT Equipment & Software,D32000,05/09/2014,PC80244,437.75,Bewleys Leeds Fexco Mc
Solihull MBC,Children & Education Services,Reynalds Cross,Capitation,D11001,30/09/2014,PC07368,131.96,BGRP Ltd
Solihull MBC,Children & Education Services,Smith's Wood,Capitation,D11001,29/09/2014,PC98323,143.76,B'Ham Edctn Cons Ltd
Solihull MBC,Adult Social Care,Bacons End,Clients Expenses,D62000,04/09/2014,PC85418,101.00,Birmingham Hippodrome
Solihull MBC,Adult Social Care,25 Stapleton Drive,Clients Expenses,D62000,08/09/2014,PC63976,4.5,Birmingham Nature Cent
Solihull MBC,Adult Social Care,25 Stapleton Drive,Clients Expenses,D62000,08/09/2014,PC64099,4.5,Birmingham Nature Cent
Solihull MBC,Adult Social Care,25 Stapleton Drive,Clients Expenses,D62000,08/09/2014,PC64107,4.50,Birmingham Nature Cent
Solihull MBC,Children & Education Services,Youth Council / YID,General Office Expenses,D42000,27/09/2014,PC64268,6.00,Birmingham Nature Cent
Solihull MBC,Children & Education Services,Section 17 DART,Materials,D11000,22/09/2014,PC98268,10.20,Birmingham Settlement
Solihull MBC,Children & Education Services,Windy Arbor J&I,Capitation,D11001,25/09/2014,PC52433,9.8,Bleakrose Limited
Solihull MBC,Children & Education Services,Coleshill Heath J&I,Building Maint Day To Day,B31001,01/10/2014,PC30869,10.00,Bleakrose Limited
Solihull MBC,Children & Education Services,Windy Arbor J&I,Capitation,D11001,17/09/2014,PC48722,37.49,Bleakrose Limited
Solihull MBC,Adult Social Care,Charity,General Creditors,S00000,15/09/2014,PC21184,127.30,BLK* Mnd Association
Solihull MBC,Children & Education Services,Windy Arbor J&I,Capitation,D11001,26/09/2014,PC62648,31.00,Blythe Mill Farm Suppl
Solihull MBC,Children & Education Services,Smith's Wood,Capitation,D11001,28/09/2014,PC77402,2.45,Bodycare
Solihull MBC,Children & Education Services,St Margaret's J&I,Capitation,D11001,22/09/2014,PC11464,12,Book People Voucher
Solihull MBC,Children & Education Services,Yorkswood N'hood Nursery,Meetings & Other Expenses,D61002,16/09/2014,PC11116,50,Book People Voucher
Solihull MBC,Environmental and Regulatory Services,Environmental Group,Other Fees,D52000,24/09/2014,PC83679,20.04,Boots 6200
Solihull MBC,Children & Education Services,Smith's Wood,Capitation,D11001,19/09/2014,PC73890,11.98,Boots The
Solihull MBC,Environmental and Regulatory Services,Environmental Group,Other Fees,D52000,23/09/2014,PC63498,25.69,Boots.Com
Solihull MBC,Children & Education Services,Chuckles,Catering Provisions,D20000,16/09/2014,PC64656,70.72,Boots.Com
Solihull MBC,Children & Education Services,Fordbridge Community Primary,Repair & Maintn Of Buildings,B31000,09/09/2014,PC74916,228.77,Box Limited
Solihull MBC,Children & Education Services,Windy Arbor J&I,Capitation,D11001,17/09/2014,PC67661,26.12,BP Chelmsley Wood Connect
Solihull MBC,Children & Education Services,Smith's Wood,Vehicle Fuel,C41000,10/09/2014,PC05270,49.19,BP Chelmsley Wood Connect
Solihull MBC,Children & Education Services,Smith's Wood,Vehicle Fuel,C41000,11/09/2014,PC10259,72.52,BP Chelmsley Wood Connect
Solihull MBC,Children & Education Services,Smith's Wood,Vehicle Fuel,C41000,05/09/2014,PC80177,93.06,BP Chelmsley Wood Connect
Solihull MBC,Children & Education Services,Marston Green Jnr,Capitation,D11001,16/09/2014,PC13270,564.40,Brainwaves
Solihull MBC,Children & Education Services,Disability Team,General Office Expenses,D42000,29/09/2014,PC25628,22.45,Britishassociation
Solihull MBC,Children & Education Services,Peterbrook Club,Telephones,D30000,16/09/2014,PC15526,81.39,BT Bill Payment 2
Solihull MBC,Adult Social Care,25 Stapleton Drive,Clients Expenses,D62000,23/09/2014,PC38093,7.31,Bubu Beach
Solihull MBC,Adult Social Care,25 Stapleton Drive,Clients Expenses,D62000,15/09/2014,PC24963,7.98,Burger King
Solihull MBC,Children & Education Services,Coleshill Heath J&I,Building Maint Day To Day,B31001,19/09/2014,PC40202,22.35,C & T Locksmiths Ltd
Solihull MBC,Cultural & Related Services,Park Rangers,Materials,D11000,02/10/2014,PC98730,15.12,C Curtiss & Sons L
Solihull MBC,Cultural & Related Services,Park Rangers,Materials,D11000,29/09/2014,PC64258,16.2,C Curtiss & Sons L
Solihull MBC,Cultural & Related Services,Park Rangers,Materials,D11000,26/09/2014,PC43169,55.30,C Curtiss & Sons L
Solihull MBC,Cultural & Related Services,Park Rangers,Furniture & Equipment,D10000,15/09/2014,PC21299,57.60,C Curtiss & Sons L
Solihull MBC,Cultural & Related Services,Park Rangers,Furniture & Equipment,D10000,15/09/2014,PC21281,86.4,C Curtiss & Sons L
Solihull MBC,Children & Education Services,Kineton Green Primary,Visits & Pupil Activities,D52002,23/09/2014,PC05644,303.80,Cadbury World Retail
Solihull MBC,Adult Social Care,25 Stapleton Drive,Clients Expenses,D62000,15/09/2014,PC20229,42.6,Cafe Rouge Cheshir
Solihull MBC,Adult Social Care,268 Creynolds Lane,Clients Expenses,D62000,06/09/2014,PC72247,6.50,Cala Gran Holiday
Solihull MBC,Adult Social Care,268 Creynolds Lane,Clients Expenses,D62000,05/09/2014,PC10463,7.4,Cala Gran Holiday
Solihull MBC,Adult Social Care,268 Creynolds Lane,Clients Expenses,D62000,06/09/2014,PC72230,24.65,Cala Gran Holiday
Solihull MBC,Adult Social Care,268 Creynolds Lane,Clients Expenses,D62000,05/09/2014,PC10456,29.30,Cala Gran Holiday
Solihull MBC,Children & Education Services,Meriden J&I,Capitation,D11001,19/09/2014,PC00271,635.70,Cambridge Univeristy Pres
Solihull MBC,Children & Education Services,St Andrew's J&I,Other Fees,D52000,22/09/2014,PC54100,52.10,Capita Recruitment Vettin
Solihull MBC,Children & Education Services,Cheswick Green J&I,Capitation,D11001,07/09/2014,PC64038,6.97,Card Factory
Solihull MBC,Children & Education Services,Evolution Project (BIP),Other Fees,D52000,22/09/2014,PC42974,24,Carsington Sports & Le
Solihull MBC,Children & Education Services,Evolution Project (BIP),Catering Provisions,D20000,01/10/2014,PC89361,2.5,Central Eng Coop
Solihull MBC,Children & Education Services,Kingshurst Youth Centre,Catering Provisions,D20000,24/09/2014,PC19060,4.42,Central Eng Coop
Solihull MBC,Children & Education Services,Kingshurst Primary,Purchase Card Statement Summary,D11002,22/09/2014,PC96228,4.98,Central Eng Coop
Solihull MBC,Children & Education Services,Youth Council / YID,General Office Expenses,D42000,29/09/2014,PC06827,5,Central Eng Coop
Solihull MBC,Children & Education Services,Evolution Project (BIP),Catering Provisions,D20000,18/09/2014,PC98354,5.66,Central Eng Coop
Solihull MBC,Children & Education Services,Fordbridge Community Primary,Officers Expenses,D61000,22/09/2014,PC01869,6.03,Central Eng Coop
Solihull MBC,Children & Education Services,Evolution Project (BIP),Catering Provisions,D20000,23/09/2014,PC23798,7.29,Central Eng Coop
Solihull MBC,Children & Education Services,Yorkswood N'hood Nursery,Meetings & Other Expenses,D61002,29/09/2014,PC11864,8.15,Central Eng Coop
Solihull MBC,Children & Education Services,Evolution Project (BIP),Catering Provisions,D20000,30/09/2014,PC08756,10.58,Central Eng Coop
Solihull MBC,Children & Education Services,Evolution Project (BIP),Catering Provisions,D20000,24/09/2014,PC18050,11.98,Central Eng Coop
Solihull MBC,Children & Education Services,Evolution Project (BIP),Catering Provisions,D20000,17/09/2014,PC61787,13.21,Central Eng Coop
Solihull MBC,Adult Social Care,9 Downing Close,Catering Provisions,D20000,19/09/2014,PC16629,19.06,Central Eng Coop
Solihull MBC,Children & Education Services,Youth Council / YID,General Office Expenses,D42000,01/10/2014,PC89407,19.56,Central Eng Coop
Solihull MBC,Adult Social Care,9 Hurst Green,Catering Provisions,D20000,22/09/2014,PC89918,19.66,Central Eng Coop
Solihull MBC,Adult Social Care,9 Hurst Green,Catering Provisions,D20000,12/09/2014,PC68702,31.52,Central Eng Coop
Solihull MBC,Adult Social Care,9 Hurst Green,Catering Provisions,D20000,25/09/2014,PC76987,35.16,Central Eng Coop
Solihull MBC,Adult Social Care,9 Hurst Green,Catering Provisions,D20000,05/09/2014,PC57080,84.60,Central Eng Coop
Solihull MBC,Children & Education Services,Castle Bromwch Youth Cntre,Materials,D11000,15/09/2014,PC60037,143.76,Central Theatre Suppli
Solihull MBC,Children & Education Services,Smith's Wood,Capitation,D11001,17/09/2014,PC65006,10,Centro
Solihull MBC,Children & Education Services,Coppice Jnr,Health & Safety,B43003,08/09/2014,PC60152,206.00,Christian Copyrigh
Solihull MBC,Adult Social Care,25 Stapleton Drive,Clients Expenses,D62000,23/09/2014,PC86100,5.8,Cineworld Sol Cp
Solihull MBC,Adult Social Care,25 Stapleton Drive,Clients Expenses,D62000,23/09/2014,PC86117,5.80,Cineworld Sol Cp
Solihull MBC,Children & Education Services,Streetsbrook Inf,Consumables,D32907,25/09/2014,PC87423,53.97,City Electrical Fa
Solihull MBC,Children & Education Services,Swallows Childcare,Capitation,D11001,27/09/2014,PC25316,15,Claire's Accessories
Solihull MBC,Children & Education Services,Chapel Fields Jnr,Capitation,D11001,11/09/2014,PC34933,108.00,Classroomcapers.Co
Solihull MBC,Central Services to the Public,ICT: Network Support,IT Equipment & Software,D32000,19/09/2014,PC00111,16.32,Clickatell Ltd
Solihull MBC,Central Services to the Public,ICT: Network Support,IT Equipment & Software,D32000,19/09/2014,PC00129,16.32,Clickatell Ltd
Solihull MBC,Adult Social Care,25 Stapleton Drive,Other Premise Costs,B43000,08/09/2014,PC05912,8.00,Clintons 1011
Solihull MBC,Central Services to the Public,ICT: Network Support,IT Equipment & Software,D32000,15/09/2014,PC47389,46.03,Comms Express Ltd
Solihull MBC,Central Services to the Public,ICT: Network Support,IT Equipment & Software,D32000,25/09/2014,PC76377,103.51,Comms Express Ltd
Solihull MBC,Children & Education Services,Castle Bromwich Jnr,Capitation,D11001,22/09/2014,PC54221,42.71,Complete Care
Solihull MBC,Children & Education Services,Reynalds Cross,Capitation,D11001,03/09/2014,PC41295,301.58,Complete Care
Solihull MBC,Children & Education Services,Monkspath Monkeys,Catering Provisions,D20000,30/09/2014,PC09971,13.54,Co-Op Group 070390
Solihull MBC,Corporate & Democratic Core,Mayoral Services,Materials,D11000,25/09/2014,PC91003,15.34,Co-Op Group 070390
Solihull MBC,Children & Education Services,Meriden Breakfast Club,Catering Provisions,D20000,15/09/2014,PC90512,3.78,Co-Op Late Shop
Solihull MBC,Children & Education Services,Hazel Oak,Training,A32000,10/09/2014,PC19055,680.9,Corus Hotel Solihull
Solihull MBC,Children & Education Services,Troubled Families,Clients Expenses,D62000,17/09/2014,PC10023,9.10,Costa Coffee
Solihull MBC,Housing Revenue Account,Purchase Card Acquisitions,General Debtors,R20000,09/09/2014,PC91609,52.8,Costco On-Line
Solihull MBC,Children & Education Services,St Alphege Jnr,Building Maint Planned,B31002,23/09/2014,PC47705,20,CPC*www.cafepress.co.uk
Solihull MBC,Central Services to the Public,Corp Perform Policy & Info,General Office Expenses,D42000,15/09/2014,PC31191,-42.00,Cross Country
Solihull MBC,Central Services to the Public,Corp Perform Policy & Info,General Office Expenses,D42000,15/09/2014,PC45779,-42.00,Cross Country
Solihull MBC,Central Services to the Public,Corp Perform Policy & Info,General Office Expenses,D42000,08/09/2014,PC52998,88.5,Cross Country
Solihull MBC,Central Services to the Public,Corp Perform Policy & Info,General Office Expenses,D42000,08/09/2014,PC52964,106.00,Cross Country
Solihull MBC,Children & Education Services,Greswold J&I,Capitation,D11001,05/09/2014,PC75993,99.82,Crossbow Education
Solihull MBC,Environmental and Regulatory Services,Trading Standards,Car Allowances: Officers,C10000,12/09/2014,PC08550,6.2,Crown Gate Car
Solihull MBC,Cultural & Related Services,Libraries Resources Fund,Materials,D11000,22/09/2014,PC28018,45,Current Publishing
Solihull MBC,Cultural & Related Services,Park Rangers,Furniture & Equipment,D10000,09/09/2014,PC18731,8.33,Currys
Solihull MBC,Children & Education Services,Dickens Hth Primary,IT Equipment & Software,D32000,17/09/2014,PC87519,16.66,Currys
Solihull MBC,Children & Education Services,Dickens Hth Primary,Furniture & Equipment,D10000,23/09/2014,PC35337,41.66,Currys
Solihull MBC,Adult Social Care,OP - Day Centre Greenhill Way,Furniture & Equipment,D10000,04/09/2014,PC75252,166.65,Currys
Solihull MBC,Adult Social Care,Public Health Leadership,Officers Expenses,D61000,05/09/2014,PC84628,480.00,Currys
Solihull MBC,Children & Education Services,CSW Team B U18 Local Clients,Clients Expenses,D62000,23/09/2014,PC71040,99.98,Currys Online
Solihull MBC,Children & Education Services,Coppice Jnr,Capitation,D11001,15/09/2014,PC69379,599.88,Currys Online
Solihull MBC,Children & Education Services,Adoption Team,IT Equipment & Software,D32000,17/09/2014,PC03551,1595.00,Currys Online
Solihull MBC,Children & Education Services,Meriden J&I,IT Equipment & Software,D32000,20/09/2014,PC21055,16.38,Currys Ss
Solihull MBC,Children & Education Services,Fostering Team,Materials,D11000,18/09/2014,PC77669,-30,Currys Tsales
Solihull MBC,Children & Education Services,Fostering Team,Materials,D11000,18/09/2014,PC77677,-30.00,Currys Tsales
Solihull MBC,Children & Education Services,Fostering Team,Materials,D11000,18/09/2014,PC39977,450.00,Currys Tsales
Solihull MBC,Children & Education Services,Coleshill Heath J&I,Building Maint Day To Day,B31001,08/09/2014,PC14965,4.97,Darlaston Builders
Solihull MBC,Children & Education Services,Coleshill Heath J&I,Building Maint Day To Day,B31001,12/09/2014,PC37323,10.61,Darlaston Builders
Solihull MBC,Children & Education Services,Windy Arbor J&I,Capitation,D11001,05/09/2014,PC02422,259.63,DC Burgoyne And Sons
Solihull MBC,Cultural & Related Services,Business Support,Furniture & Equipment,D10000,15/09/2014,PC12284,1220.22,Demco Wrldwide Ltd
Solihull MBC,Adult Social Care,9 Hurst Green,Furniture & Equipment,D10000,22/09/2014,PC39206,28.80,Direct Furniture For U
Solihull MBC,Children & Education Services,Kineton Green Primary,Capitation,D11001,03/09/2014,PC43035,27.11,DJM Music Ltd
Solihull MBC,Adult Social Care,25 Stapleton Drive,Catering Provisions,D20000,24/09/2014,PC20818,11.2,Dobbies Garden Ctr
Solihull MBC,Children & Education Services,Chuckles,Catering Provisions,D20000,24/09/2014,PC35768,91.5,Domestic & General
Solihull MBC,Cultural & Related Services,Libraries Resources Fund,Materials,D11000,15/09/2014,PC39663,47.49,Dovetail Haymarket Pbl
Solihull MBC,Adult Social Care,25 Stapleton Drive,Clients Expenses,D62000,08/09/2014,PC14048,8,Drayton Manor Park
Solihull MBC,Adult Social Care,25 Stapleton Drive,Clients Expenses,D62000,08/09/2014,PC14063,8.00,Drayton Manor Park
Solihull MBC,Adult Social Care,25 Stapleton Drive,Clients Expenses,D62000,08/09/2014,PC47909,6.2,Drayton Manor Pk Caterin
Solihull MBC,Adult Social Care,25 Stapleton Drive,Clients Expenses,D62000,08/09/2014,PC14172,6.75,Drayton Manor Pk Caterin
Solihull MBC,Adult Social Care,25 Stapleton Drive,Clients Expenses,D62000,08/09/2014,PC10048,17.70,Drayton Manor Pk Caterin
Solihull MBC,Central Services to the Public,ICT: Desktop Team Helpdesk,IT Equipment & Software,D32000,03/09/2014,PC02422,174.96,Dri www Element5 Info
Solihull MBC,Central Services to the Public,ICT: Desktop Team Helpdesk,IT Equipment & Software,D32000,08/09/2014,PC52934,14.77,Dri*Nuance
Solihull MBC,Central Services to the Public,ICT: Desktop Team Helpdesk,IT Equipment & Software,D32000,08/09/2014,PC57370,14.77,Dri*Nuance
Solihull MBC,Central Services to the Public,ICT: Desktop Team Helpdesk,IT Equipment & Software,D32000,26/09/2014,PC45753,14.78,Dri*Techsmith
Solihull MBC,Children & Education Services,Coppice Jnr,Visits & Pupil Activities,D52002,23/09/2014,PC70995,63,Dudley Museum And
Solihull MBC,Children & Education Services,Lady K Levesons J&I,Purchase Card Statement Summary,D11002,19/09/2014,PC01586,41.8,Dulux Decorator Centre
Solihull MBC,Children & Education Services,Afterschool Club,Catering Provisions,D20000,08/09/2014,PC28841,64.77,Dunelm Ltd
Solihull MBC,Housing Revenue Account,Purchase Card Acquisitions,General Debtors,R20000,24/09/2014,PC01828,12.25,E J Gilbert & Sons
Solihull MBC,Children & Education Services,Tidbury Green J&I,Capitation,D11001,03/09/2014,PC41638,10.25,Earlswood Hungry Horse
Solihull MBC,Environmental and Regulatory Services,Environmental Group,Other Fees,D52000,18/09/2014,PC17474,15.45,Earlswood Nurseries
Solihull MBC,Children & Education Services,Sharmans Cross Jnr,Capitation,D11001,17/09/2014,PC58879,195,EB *An Introduction To
Solihull MBC,Adult Social Care,Public Health Leadership,Officers Expenses,D61000,06/09/2014,PC54805,238.80,EB *Making Better Spen
Solihull MBC,Children & Education Services,Lyndon,Capitation,D11001,30/09/2014,PC09786,106.65,EB *Python Programming
Solihull MBC,Central Services to the Public,ICT: Desktop Team Helpdesk,IT Equipment & Software,D32000,01/10/2014,PC46346,23.46,Ebuyer (UK) Ltd
Solihull MBC,Cultural & Related Services,Libraries Resources Fund,Materials,D11000,24/09/2014,PC16863,126,Economist Subscription
Solihull MBC,Children & Education Services,Yorkswood J&I,Meetings & Other Expenses,D61002,29/09/2014,PC74058,8.82,Educational Planning B
Solihull MBC,Children & Education Services,Castle Bromwich Jnr,IT Equipment & Software,D32000,23/09/2014,PC10408,182.21,Ee & T-Mobile
Solihull MBC,Children & Education Services,St Anthony's J&I,Furniture & Equipment,D10000,25/09/2014,PC88806,56.95,ELC-Internet
Solihull MBC,Housing Revenue Account,Purchase Card Acquisitions,General Debtors,R20000,18/09/2014,PC10116,6.00,Electric Centre Ltd
Solihull MBC,Housing Revenue Account,Purchase Card Acquisitions,General Debtors,R20000,16/09/2014,PC50063,8.47,Electric Centre Ltd
Solihull MBC,Children & Education Services,St Andrew's J&I,Repair & Maintn Of Buildings,B31000,12/09/2014,PC80029,9.6,Electric Centre Ltd
Solihull MBC,Housing Revenue Account,Purchase Card Acquisitions,General Debtors,R20000,24/09/2014,PC60064,21.98,Electric Centre Ltd
Solihull MBC,Housing Revenue Account,Purchase Card Acquisitions,General Debtors,R20000,24/09/2014,PC60072,30.00,Electric Centre Ltd
Solihull MBC,Children & Education Services,St Andrew's J&I,Repair & Maintn Of Buildings,B31000,19/09/2014,PC00027,37.57,Electric Centre Ltd
Solihull MBC,Children & Education Services,Langley J&I,Cleaning / Janitrl Materials,B40002,01/10/2014,PC33661,50.30,Farmfoods- Acocks
Solihull MBC,Children & Education Services,North Area - Youth,Furniture & Equipment,D10000,22/09/2014,PC84232,1.00,Farmfoods- Castle
Solihull MBC,Children & Education Services,North Area - Youth,Furniture & Equipment,D10000,11/09/2014,PC73214,4.00,Farmfoods- Castle
Solihull MBC,Children & Education Services,Langley J&I,Cleaning / Janitrl Materials,B40002,04/09/2014,PC93882,50.3,Farmfoods- Yardley
Solihull MBC,Housing Revenue Account,Purchase Card Acquisitions,General Debtors,R20000,04/09/2014,PC31228,6.72,Fast Key Services
Solihull MBC,Housing Revenue Account,Purchase Card Acquisitions,General Debtors,R20000,25/09/2014,PC25650,6.72,Fast Key Services
Solihull MBC,Housing Revenue Account,Purchase Card Acquisitions,General Debtors,R20000,09/09/2014,PC76768,9.48,Fast Key Services
Solihull MBC,Housing Revenue Account,Purchase Card Acquisitions,General Debtors,R20000,22/09/2014,PC10837,12.90,Fast Key Services
Solihull MBC,Planning & Development Services,Policy And Growth,Materials,D11000,19/09/2014,PC55845,8.39,Fasthosts Internet
Solihull MBC,Children & Education Services,St Margaret's J&I,Capitation,D11001,01/10/2014,PC66316,15.59,Findel Ed Ltd
Solihull MBC,Adult Social Care,Bacons End,Furniture & Equipment,D10000,16/09/2014,PC16244,44.06,Findel Ed Ltd
Solihull MBC,Children & Education Services,George Fentham J&I,Capitation,D11001,29/09/2014,PC02519,165.36,Findel Ed Ltd
Solihull MBC,Children & Education Services,CSW Team B U18 Local Clients,General Office Expenses,D42000,01/10/2014,PC50651,180.33,Flybe Call C2674050948082
Solihull MBC,Children & Education Services,CSW Team B U18 Local Clients,General Office Expenses,D42000,01/10/2014,PC50768,190.63,Flybe Call C2674050948086
Solihull MBC,Children & Education Services,Catering Management,Premises-Fixtures & Fittings,B42000,01/10/2014,PC59895,27,Geeves Of Castle Bromw
Solihull MBC,Children & Education Services,Fostering Team,Materials,D11000,30/09/2014,PC15693,98.58,Glencarn Hotel
Solihull MBC,Cultural & Related Services,Libraries Resources Fund,Materials,D11000,11/09/2014,PC61344,43.29,GN&M Ltd
Solihull MBC,Children & Education Services,Coppice Jnr,Capitation,D11001,05/09/2014,PC39171,366.72,Granada Learning
Solihull MBC,Children & Education Services,Youth Council / YID,General Office Expenses,D42000,27/09/2014,PC24977,10.30,Gray Court Catering Lt
Solihull MBC,Children & Education Services,Youth Council / YID,General Office Expenses,D42000,27/09/2014,PC24993,12.8,Gray Court Catering Lt
Solihull MBC,Children & Education Services,Youth Council / YID,General Office Expenses,D42000,27/09/2014,PC25016,14.35,Gray Court Catering Lt
Solihull MBC,Children & Education Services,St John The Baptist J&I,Meetings & Other Expenses,D61002,20/09/2014,PC17287,425.6,Grimscote Manor Hotel
Solihull MBC,Children & Education Services,Section 17 Chelmsley Wood,Clients Expenses,D62000,04/09/2014,PC07017,9.25,GRO HM Passport Office
Solihull MBC,Children & Education Services,Section 17 Chelmsley Wood,Clients Expenses,D62000,15/09/2014,PC89889,46.8,GRO HM Passport Office
Solihull MBC,Children & Education Services,Evolution Project (BIP),Furniture & Equipment,D10000,21/09/2014,PC29709,23.96,Halfords 0448
Solihull MBC,Children & Education Services,Kingshurst Primary,Purchase Card Statement Summary,D11002,04/09/2014,PC88020,44.99,Halfords 0746
Solihull MBC,Children & Education Services,LAC Education Service,Furniture & Equipment,D10000,12/09/2014,PC23152,109.99,Halfords 0857
Solihull MBC,Children & Education Services,Ulverley J&I,Building Maint Day To Day,B31001,11/09/2014,PC37862,5.48,Halfords 0930
Solihull MBC,Adult Social Care,25 Stapleton Drive,Clients Expenses,D62000,11/09/2014,PC94491,4.99,Hare & Hounds
Solihull MBC,Adult Social Care,25 Stapleton Drive,Clients Expenses,D62000,11/09/2014,PC94477,13.9,Hare & Hounds
Solihull MBC,Adult Social Care,25 Stapleton Drive,Clients Expenses,D62000,11/09/2014,PC94484,14.15,Hare & Hounds
Solihull MBC,Adult Social Care,268 Creynolds Lane,Clients Expenses,D62000,07/09/2014,PC21996,33.68,Harry Ramsdens
Solihull MBC,Children & Education Services,Rural Mobile Project - Yth (24),Furniture & Equipment,D10000,30/09/2014,PC43982,29.06,Harvester Monkspat
Solihull MBC,Adult Social Care,1 Coppice Close,Clients Expenses,D62000,19/09/2014,PC33723,200.00,Haven Holidays
Solihull MBC,Adult Social Care,1 Coppice Close,Clients Expenses,D62000,19/09/2014,PC33716,229,Haven Holidays
Solihull MBC,Children & Education Services,Smith's Wood,Vehicle Fuel,C41000,15/09/2014,PC54636,10.04,Hawthorne Hardware
Solihull MBC,Children & Education Services,Fostering Team,Materials,D11000,30/09/2014,PC16352,40.1,Hertz Rent A Car
Solihull MBC,Central Services to the Public,Income Team,Professional Fees,D51000,09/09/2014,PC97611,9.00,Hmcourts-Service.G
Solihull MBC,Central Services to the Public,Income Team,Professional Fees,D51000,26/09/2014,PC36673,36.00,Hmcourts-Service.G
Solihull MBC,Central Services to the Public,Income Team,Professional Fees,D51000,09/09/2014,PC97604,264,Hmcourts-Service.G
Solihull MBC,Central Services to the Public,Income Team,Professional Fees,D51000,26/09/2014,PC36666,471,Hmcourts-Service.G
Solihull MBC,Children & Education Services,St Margaret's J&I,Capitation,D11001,13/09/2014,PC06286,9.99,HMV Retail Ltd
Solihull MBC,Children & Education Services,Meriden J&I,Furniture & Equipment,D10000,04/09/2014,PC04756,33.30,Hobbycraft (Internet)
Solihull MBC,Cultural & Related Services,Park Rangers,Materials,D11000,18/09/2014,PC34292,5,Hobbycraft Group L
Solihull MBC,Cultural & Related Services,Park Rangers,Furniture & Equipment,D10000,09/09/2014,PC41273,10,Hobbycraft Group L
Solihull MBC,Children & Education Services,Widney Jnr,Capitation,D11001,29/09/2014,PC40399,83,Hobbycraft Group L
Solihull MBC,Central Services to the Public,Building & Design,General Office Expenses,D42000,30/09/2014,PC24568,1044.00,Hobs Reprographics
Solihull MBC,Children & Education Services,Cranmore Inf,Catering Provisions,D20000,08/09/2014,PC18288,4.82,Holland & Barrett
Solihull MBC,Children & Education Services,Catering Management,Materials,D11000,23/09/2014,PC22495,4.82,Holland & Barrett
Solihull MBC,Children & Education Services,Peterbrook Club,Capitation,D11001,13/09/2014,PC35047,8.76,Home Bargains Redditch
Solihull MBC,Children & Education Services,Fordbridge Community Primary,Meetings & Other Expenses,D61002,24/09/2014,PC43939,25,Home Sweet Home
Solihull MBC,Children & Education Services,Valley Inf,Capitation,D11001,07/08/2014,PC46117,6.95,Homebase Home Del
Solihull MBC,Children & Education Services,Valley Inf,Capitation,D11001,07/08/2014,PC46100,549.99,Homebase Home Del
Solihull MBC,Children & Education Services,Valley Inf,Capitation,D11001,07/08/2014,PC45706,-556.94,Homebase Home Del
Solihull MBC,Adult Social Care,9 Downing Close,Furniture & Equipment,D10000,12/09/2014,PC89390,14.99,Homebase Ltd 039
Solihull MBC,Children & Education Services,Windy Arbor J&I,Capitation,D11001,06/09/2014,PC46619,28.44,Homebase Ltd 039
Solihull MBC,Children & Education Services,Mill Lodge J&I,Building Maint Day To Day,B31001,29/09/2014,PC08081,36.76,Homebase Ltd 039
Solihull MBC,Children & Education Services,Reynalds Cross,Capitation,D11001,10/09/2014,PC77830,44.97,Homebase Ltd 039
Solihull MBC,Children & Education Services,Widney Jnr,Capitation,D11001,29/09/2014,PC33617,31.92,Homebase Ltd 494
Solihull MBC,Children & Education Services,Smith's Wood,Capitation,D11001,30/09/2014,PC45895,4.37,Homebase Ltd 873
Solihull MBC,Adult Social Care,OP - Locality SW South A,General Office Expenses,D42000,11/09/2014,PC48629,9.00,HSE Books (Internet)
Solihull MBC,Children & Education Services,Forest Oak,Capitation,D11001,02/10/2014,PC99080,12.9,Ian Berg Plastics
Solihull MBC,Children & Education Services,Smith's Wood,Capitation,D11001,15/09/2014,PC03894,36.52,Ian Smith Office Sppls L
Solihull MBC,Children & Education Services,Smith's Wood,Capitation,D11001,11/09/2014,PC05976,97.50,Ian Smith Office Sppls L
Solihull MBC,Children & Education Services,Smith's Wood,Capitation,D11001,09/09/2014,PC05721,115.78,Ian Smith Office Sppls L
Solihull MBC,Children & Education Services,Chuckles,Catering Provisions,D20000,18/09/2014,PC04181,86.95,Iceland
Solihull MBC,Adult Social Care,222 Bills Lane,Catering Provisions,D20000,08/09/2014,PC36510,104.12,Iceland
Solihull MBC,Children & Education Services,Windy Arbor J&I,Capitation,D11001,20/09/2014,PC49149,10.80,Ikea
Solihull MBC,Children & Education Services,Dorridge Inf Lunch Club,Furniture & Equipment,D10000,28/09/2014,PC96467,69.8,Ikea
Solihull MBC,Children & Education Services,Afterschool Club,Catering Provisions,D20000,08/09/2014,PC89968,83.48,Ikea
Solihull MBC,Children & Education Services,Dorridge Inf Lunch Club,Capitation,D11001,02/09/2014,PC49601,174.90,Ikea
Solihull MBC,Cultural & Related Services,Business Support,Furniture & Equipment,D10000,22/09/2014,PC53258,44.00,Ikea Online
Solihull MBC,Children & Education Services,Our Lady Compassion  J&I,Capitation,D11001,08/09/2014,PC01428,123,Ikea Online
Solihull MBC,Children & Education Services,Peterbrook J&I,Furniture & Equipment,D10000,05/09/2014,PC01914,139,Ikea Online
Solihull MBC,Children & Education Services,Monkspath J&I,Furniture & Equipment,D10000,03/09/2014,PC49807,101,Ikea Sacat
Solihull MBC,Corporate & Democratic Core,Mayoral Services,Materials,D11000,30/09/2014,PC51413,72,In The Frame
Solihull MBC,Cultural & Related Services,Libraries Resources Fund,Materials,D11000,11/09/2014,PC66362,298.1,Informa UK Ecom GB
Solihull MBC,Children & Education Services,Smith's Wood,Capitation,D11001,08/09/2014,PC21914,62.40,Inkjets & Toners
Solihull MBC,Children & Education Services,Smith's Wood,Capitation,D11001,03/09/2014,PC08039,24.3,Inkredible Dgap Ltd
Solihull MBC,Children & Education Services,Smith's Wood,Capitation,D11001,17/09/2014,PC49345,31.20,Inkredible Dgap Ltd
Solihull MBC,Cultural & Related Services,Libraries Resources Fund,Materials,D11000,23/09/2014,PC52333,116.44,IPC Media Subs Acc
Solihull MBC,Children & Education Services,Hatchfrd Brook Youth Cntre,Furniture & Equipment,D10000,14/09/2014,PC37257,61.99,IPG - Birmingham
Solihull MBC,Children & Education Services,Ark,Catering Provisions,D20000,10/09/2014,PC83800,-6.67,Itunes.Combill
Solihull MBC,Children & Education Services,Ark,Catering Provisions,D20000,09/09/2014,PC18744,-5.97,Itunes.Combill
Solihull MBC,Children & Education Services,Ark,Catering Provisions,D20000,09/09/2014,PC18736,-1.49,Itunes.Combill
Solihull MBC,Children & Education Services,Reynalds Cross,Capitation,D11001,10/09/2014,PC45789,0.69,Itunes.Combill
Solihull MBC,Children & Education Services,Reynalds Cross,Capitation,D11001,02/10/2014,PC84624,0.69,Itunes.Combill
Solihull MBC,Children & Education Services,Reynalds Cross,Capitation,D11001,09/09/2014,PC90008,1.99,Itunes.Combill
Solihull MBC,Children & Education Services,Hazel Oak,Capitation,D11001,04/09/2014,PC65350,2.99,Itunes.Combill
Solihull MBC,Children & Education Services,Berkswell J&I,Capitation,D11001,18/09/2014,PC49700,4.49,Itunes.Combill
Solihull MBC,Children & Education Services,Reynalds Cross,Capitation,D11001,17/09/2014,PC92830,6.16,Itunes.Combill
Solihull MBC,Children & Education Services,Reynalds Cross,Capitation,D11001,20/09/2014,PC98835,6.47,Itunes.Combill
Solihull MBC,Children & Education Services,Ark,Catering Provisions,D20000,06/09/2014,PC40314,6.67,Itunes.Combill
Solihull MBC,Children & Education Services,Reynalds Cross,Capitation,D11001,17/09/2014,PC93374,6.99,Itunes.Combill
Solihull MBC,Children & Education Services,Reynalds Cross,Capitation,D11001,13/09/2014,PC87988,7.85,Itunes.Combill
Solihull MBC,Children & Education Services,Hazel Oak,Capitation,D11001,23/09/2014,PC59001,13.99,Itunes.Combill
Solihull MBC,Cultural & Related Services,Business Support,General Office Expenses,D42000,22/09/2014,PC42737,209.80,ITW Envopak
Solihull MBC,Children & Education Services,Reynalds Cross,Capitation,D11001,03/09/2014,PC57677,49.38,J & A (Int) Ltd
Solihull MBC,Children & Education Services,Peterbrook J&I,Building Maint Day To Day,B31001,25/09/2014,PC82285,12.95,J W Treadwell Ltd
Solihull MBC,Children & Education Services,Coleshill Heath J&I,Building Maint Day To Day,B31001,01/10/2014,PC20947,217.96,Jacksons Of Old Arley
Solihull MBC,Children & Education Services,Reynalds Cross,Building Maint Day To Day,B31001,10/09/2014,PC37306,1.99,Jeffries Hardware
Solihull MBC,Children & Education Services,Cranmore Inf,Building Maint Day To Day,B31001,24/09/2014,PC66654,3.00,Jeffries Hardware
Solihull MBC,Children & Education Services,Reynalds Cross,Building Maint Day To Day,B31001,15/09/2014,PC35168,4.39,Jeffries Hardware
Solihull MBC,Children & Education Services,Reynalds Cross,Building Maint Day To Day,B31001,12/09/2014,PC74928,21.18,Jeffries Hardware
Solihull MBC,Children & Education Services,Cranmore Little Acorns & Kids Club,Building Maint Day To Day,B31001,09/09/2014,PC99140,23.94,Jeffries Hardware
Solihull MBC,Children & Education Services,Cranmore Inf,Building Maint Day To Day,B31001,18/09/2014,PC58262,80,Jeffries Hardware
Solihull MBC,Children & Education Services,Windy Arbor J&I,Capitation,D11001,28/09/2014,PC66975,12,John Lewis
Solihull MBC,Children & Education Services,Monkspath J&I,Capitation,D11001,19/09/2014,PC01988,26,John Lewis
Solihull MBC,Children & Education Services,Dorridge Inf Lunch Club,Furniture & Equipment,D10000,06/09/2014,PC23839,33.99,John Lewis
Solihull MBC,Children & Education Services,Coleshill Heath J&I,Meetings & Other Expenses,D61002,21/09/2014,PC06585,38.00,John Lewis
Solihull MBC,Environmental and Regulatory Services,Trading Standards,Furniture & Equipment,D10000,16/09/2014,PC29309,30.69,Johnsons 1612
Solihull MBC,Children & Education Services,Coleshill Heath J&I,Building Maint Day To Day,B31001,17/09/2014,PC26940,38.40,Johnstones Dec Centre
Solihull MBC,Children & Education Services,Dickens Heath Afterschool Club,Capitation,D11001,23/09/2014,PC03895,-2.30,JS Online Grocery
Solihull MBC,Children & Education Services,Yorkswood N'hood Nursery,Meetings & Other Expenses,D61002,16/09/2014,PC13789,-2,JS Online Grocery
Solihull MBC,Children & Education Services,Swallows Childcare,Catering Provisions,D20000,08/09/2014,PC97008,-0.97,JS Online Grocery
Solihull MBC,Children & Education Services,Dickens Heath Afterschool Club,Capitation,D11001,30/09/2014,PC05482,4.35,JS Online Grocery
Solihull MBC,Children & Education Services,S C Kids,Catering Provisions,D20000,08/09/2014,PC96590,77.16,JS Online Grocery
Solihull MBC,Children & Education Services,S C Kids,Catering Provisions,D20000,29/09/2014,PC09202,93.45,JS Online Grocery
Solihull MBC,Children & Education Services,S C Kids,Catering Provisions,D20000,22/09/2014,PC67895,100.48,JS Online Grocery
Solihull MBC,Children & Education Services,Hazel Oak,Capitation,D11001,08/09/2014,PC96386,103.42,JS Online Grocery
Solihull MBC,Children & Education Services,Greswold Lunch Club,Catering Provisions,D20000,22/09/2014,PC67335,103.47,JS Online Grocery
Solihull MBC,Children & Education Services,Greswold Lunch Club,Catering Provisions,D20000,29/09/2014,PC08822,122.19,JS Online Grocery
Solihull MBC,Children & Education Services,Hazel Oak,Capitation,D11001,22/09/2014,PC67359,122.97,JS Online Grocery
Solihull MBC,Children & Education Services,Swallows Childcare,Catering Provisions,D20000,08/09/2014,PC96461,123.57,JS Online Grocery
Solihull MBC,Children & Education Services,Hazel Oak,Capitation,D11001,15/09/2014,PC90524,130.39,JS Online Grocery
Solihull MBC,Children & Education Services,Greswold Lunch Club,Catering Provisions,D20000,15/09/2014,PC90455,130.54,JS Online Grocery
Solihull MBC,Children & Education Services,Dickens Heath Afterschool Club,Capitation,D11001,16/09/2014,PC52318,134.32,JS Online Grocery
Solihull MBC,Children & Education Services,Dickens Heath Afterschool Club,Capitation,D11001,30/09/2014,PC05475,134.50,JS Online Grocery
Solihull MBC,Children & Education Services,Greswold Lunch Club,Catering Provisions,D20000,08/09/2014,PC96364,136.7,JS Online Grocery
Solihull MBC,Children & Education Services,S C Kids,Catering Provisions,D20000,15/09/2014,PC90755,138.00,JS Online Grocery
Solihull MBC,Children & Education Services,Swallows Childcare,Catering Provisions,D20000,29/09/2014,PC08791,152.61,JS Online Grocery
Solihull MBC,Children & Education Services,Dickens Heath Afterschool Club,Capitation,D11001,09/09/2014,PC32344,154.69,JS Online Grocery
Solihull MBC,Children & Education Services,Dickens Heath Afterschool Club,Capitation,D11001,23/09/2014,PC03461,170.20,JS Online Grocery
Solihull MBC,Children & Education Services,Swallows Childcare,Catering Provisions,D20000,22/09/2014,PC67304,196.4,JS Online Grocery
Solihull MBC,Children & Education Services,Hazel Oak,Capitation,D11001,29/09/2014,PC08850,197.34,JS Online Grocery
Solihull MBC,Children & Education Services,Swallows Childcare,Catering Provisions,D20000,15/09/2014,PC90586,226.73,JS Online Grocery
Solihull MBC,Children & Education Services,Yorkswood N'hood Nursery,Meetings & Other Expenses,D61002,30/09/2014,PC13093,291.5,JS Online Grocery
Solihull MBC,Children & Education Services,Yorkswood N'hood Nursery,Meetings & Other Expenses,D61002,16/09/2014,PC14087,294.63,JS Online Grocery
Solihull MBC,Children & Education Services,Yorkswood N'hood Nursery,Meetings & Other Expenses,D61002,09/09/2014,PC68684,301.14,JS Online Grocery
Solihull MBC,Children & Education Services,Yorkswood N'hood Nursery,Meetings & Other Expenses,D61002,23/09/2014,PC26908,332.3,JS Online Grocery
Solihull MBC,Children & Education Services,Reynalds Cross,Capitation,D11001,02/10/2014,PC69486,16.8,Kalamazoo Secure Ltd
Solihull MBC,Children & Education Services,Reynalds Cross,Capitation,D11001,01/10/2014,PC05519,84.54,Kalamazoo Secure Ltd
Solihull MBC,Children & Education Services,Windy Arbor J&I,Building Maint Day To Day,B31001,04/09/2014,PC73228,48.6,Kavanaghs Kitchens & B
Solihull MBC,Adult Social Care,8 Downing Close,Furniture & Equipment,D10000,05/09/2014,PC48438,30.79,Keep Able
Solihull MBC,Children & Education Services,Cheswick Green J&I,Visits & Pupil Activities,D52002,22/09/2014,PC00216,3.99,Kenilworth Castle
Solihull MBC,Adult Social Care,25 Stapleton Drive,Clients Expenses,D62000,24/09/2014,PC54554,16.81,Kentacky Fried Chicken
Solihull MBC,Children & Education Services,St Margaret's J&I,Capitation,D11001,09/09/2014,PC88257,33.74,Kevin Mayhew Ltd
Solihull MBC,Children & Education Services,Youth Council / YID,Other Transport Costs,C42000,29/09/2014,PC88505,7.96,KFC - Castle Bromwich
Solihull MBC,Adult Social Care,25 Stapleton Drive,Clients Expenses,D62000,11/09/2014,PC86388,4.39,KFC - Chelmsley Wood
Solihull MBC,Adult Social Care,25 Stapleton Drive,Clients Expenses,D62000,11/09/2014,PC86347,8.78,KFC - Chelmsley Wood
Solihull MBC,Adult Social Care,25 Stapleton Drive,Clients Expenses,D62000,11/09/2014,PC86362,8.78,KFC - Chelmsley Wood
Solihull MBC,Adult Social Care,25 Stapleton Drive,Clients Expenses,D62000,11/09/2014,PC86321,9.38,KFC - Chelmsley Wood
Solihull MBC,Children & Education Services,Shirley Heath Jnr,Building Maint Day To Day,B31001,03/09/2014,PC82690,176.00,Kiely Bros Ltd
Solihull MBC,Children & Education Services,Shirley Heath Jnr,Building Maint Day To Day,B31001,29/09/2014,PC10743,176,Kiely Bros Ltd
Solihull MBC,Children & Education Services,Meriden J&I,Refuse Collection,B43001,15/09/2014,PC44794,270.00,Kingfisher Direct Limited
Solihull MBC,Children & Education Services,Section 17 South/Central,Clients Expenses,D62000,28/09/2014,PC42249,122.99,Kingston Hotel
Solihull MBC,Adult Social Care,PD - Day Care Green Acres,Furniture & Equipment,D10000,02/10/2014,PC10493,69.15,Kitchens Cook Shop
Solihull MBC,Children & Education Services,Windy Arbor J&I,Capitation,D11001,05/09/2014,PC50779,30,Kitts Green Glass Co L
Solihull MBC,Housing Revenue Account,Purchase Card Acquisitions,General Debtors,R20000,30/09/2014,PC87493,88.88,Kwikpictureframing
Solihull MBC,Children & Education Services,Monkspath Monkeys,Capitation,D11001,25/09/2014,PC71286,22.11,Lakeland Limited
Solihull MBC,Children & Education Services,S C Kids,Catering Provisions,D20000,20/09/2014,PC71733,16.97,Lakeland.Limited
Solihull MBC,Housing Revenue Account,Purchase Card Acquisitions,General Debtors,R20000,10/09/2014,PC80438,35.00,Lakeside Interiors
Solihull MBC,Children & Education Services,Lady K Levesons J&I,Purchase Card Statement Summary,D11002,16/09/2014,PC90390,133.89,Lamps Direct
Solihull MBC,Planning & Development Services,Building Control Holding Account,Materials,D11000,24/09/2014,PC90192,6,Land Registry
Solihull MBC,Planning & Development Services,Building Control Holding Account,Materials,D11000,24/09/2014,PC90903,6.00,Land Registry
Solihull MBC,Other Housing Services,Policy + Spatial Planning,Furniture & Equipment,D10000,17/09/2014,PC64010,161.16,Lastminute.com uk-gbp
Solihull MBC,Children & Education Services,North Area - Youth,Furniture & Equipment,D10000,22/09/2014,PC40118,200.00,Lea Marston Hotel
Solihull MBC,Children & Education Services,St Margaret's J&I,Capitation,D11001,13/09/2014,PC76378,25,Lend Lease Real Estate
Solihull MBC,Central Services to the Public,HRE Management,Training,A32000,01/10/2014,PC50319,24.95,Linguaphone UK & Ireland
Solihull MBC,Children & Education Services,Hazel Oak,Capitation,D11001,30/09/2014,PC86122,300,Linguascope
Solihull MBC,Children & Education Services,Chapel Fields Jnr,Building Maint Day To Day,B31001,24/09/2014,PC99604,73.05,Lion Picture
Solihull MBC,Children & Education Services,Youth Council / YID,General Office Expenses,D42000,06/09/2014,PC63269,3.10,London Midland Sel
Solihull MBC,Other Housing Services,Policy + Spatial Planning,General Office Expenses,D42000,17/09/2014,PC70197,3.40,London Midland Sel
Solihull MBC,Other Housing Services,LWP - Crisis Awards,Clients Expenses,D62000,11/09/2014,PC77933,19.90,London Midland Tic
Solihull MBC,Children & Education Services,Troubled Families,Clients Expenses,D62000,19/09/2014,PC91303,30.00,London Midland Tic
Solihull MBC,Children & Education Services,Youth Offending Team,General Office Expenses,D42000,11/09/2014,PC78006,105.00,London Midland Tic
Solihull MBC,Adult Social Care,25 Stapleton Drive,Clients Expenses,D62000,15/09/2014,PC76679,141.9,London Midland Tic
Solihull MBC,Planning & Development Services,Policy And Growth,Materials,D11000,10/09/2014,PC74996,315.08,Lufthansa   2202348621348
Solihull MBC,Planning & Development Services,Policy And Growth,Materials,D11000,10/09/2014,PC75001,16,Lufthansa   2208202088903
Solihull MBC,Planning & Development Services,Policy And Growth,Materials,D11000,10/09/2014,PC75019,16.00,Lufthansa   2208202088904
Solihull MBC,Adult Social Care,ASC - Chief Executive's Office,Car Allowances: Officers,C10000,25/09/2014,PC86994,8.90,LUL Ticket Machine
Solihull MBC,Children & Education Services,Tidbury Green J&I,Training,A32000,26/09/2014,PC80323,10.66,Lv=Insurance M
Solihull MBC,Housing Revenue Account,Purchase Card Acquisitions,General Debtors,R20000,26/09/2014,PC31418,3.12,M&J Mahoney & Sons Ltd
Solihull MBC,Housing Revenue Account,Purchase Card Acquisitions,General Debtors,R20000,18/09/2014,PC59112,4.19,M&J Mahoney & Sons Ltd
Solihull MBC,Housing Revenue Account,Purchase Card Acquisitions,General Debtors,R20000,26/09/2014,PC31400,6.24,M&J Mahoney & Sons Ltd
Solihull MBC,Housing Revenue Account,Purchase Card Acquisitions,General Debtors,R20000,29/09/2014,PC46860,7.29,M&J Mahoney & Sons Ltd
Solihull MBC,Highways & Transport Services,Tankers,Other Transport Costs,C42000,19/09/2014,PC03794,7.68,M&J Mahoney & Sons Ltd
Solihull MBC,Housing Revenue Account,Purchase Card Acquisitions,General Debtors,R20000,09/09/2014,PC63476,12.10,M&J Mahoney & Sons Ltd
Solihull MBC,Housing Revenue Account,Purchase Card Acquisitions,General Debtors,R20000,04/09/2014,PC84556,13.44,M&J Mahoney & Sons Ltd
Solihull MBC,Housing Revenue Account,Purchase Card Acquisitions,General Debtors,R20000,10/09/2014,PC58004,27.34,M&J Mahoney & Sons Ltd
Solihull MBC,Cultural & Related Services,Park Rangers,Materials,D11000,24/09/2014,PC49166,49.2,M&J Mahoney & Sons Ltd
Solihull MBC,Children & Education Services,Coleshill Heath J&I,Building Maint Day To Day,B31001,17/09/2014,PC55921,227.04,M&J Mahoney & Sons Ltd
Solihull MBC,Children & Education Services,Hazel Oak,Car Allowances: Officers,C10000,23/09/2014,PC61137,4.00,M6 Toll
Solihull MBC,Children & Education Services,Hazel Oak,Car Allowances: Officers,C10000,23/09/2014,PC11444,5.5,M6 Toll
Solihull MBC,Children & Education Services,Mill Lodge J&I,Other Premise Costs,B43000,10/09/2014,PC34430,178.96,Machine Mart Ltd
Solihull MBC,Children & Education Services,Adoption Team,Training,A32000,16/09/2014,PC10127,20.74,Macmillan Distribution
Solihull MBC,Cultural & Related Services,Libraries Resources Fund,Materials,D11000,09/09/2014,PC60857,64,Magazines Subscription
Solihull MBC,Environmental and Regulatory Services,Environmental Group,Other Fees,D52000,26/09/2014,PC40609,42.99,Man. Airport Car Parks
Solihull MBC,Cultural & Related Services,Arts Complex Hirings,Materials,D11000,09/09/2014,PC59763,71.87,Manitowoc Foodservice
Solihull MBC,Children & Education Services,Berkswell J&I,IT Equipment & Software,D32000,19/09/2014,PC01164,79.98,Maplin Rotherham S63
Solihull MBC,Central Services to the Public,SCH ICT Team,IT Equipment & Software,D32000,09/09/2014,PC67612,9.99,Maplin Solihull B91
Solihull MBC,Children & Education Services,Woodies Childcare,Capitation,D11001,10/09/2014,PC81026,12.99,Maplin Solihull B91
Solihull MBC,Children & Education Services,Hatchfrd Brook Youth Cntre,Furniture & Equipment,D10000,02/09/2014,PC66010,17.98,Maplin Solihull B91
Solihull MBC,Children & Education Services,Hatchfrd Brook Youth Cntre,Furniture & Equipment,D10000,30/09/2014,PC88613,24.99,Maplin Solihull B91
Solihull MBC,Children & Education Services,Reynalds Cross,Capitation,D11001,14/09/2014,PC05088,39.96,Maplin Solihull B91
Solihull MBC,Children & Education Services,Monkspath Monkeys,Capitation,D11001,04/09/2014,PC96866,55.95,Maplin Solihull B91
Solihull MBC,Corporate & Democratic Core,Mayoral Services,Materials,D11000,15/09/2014,PC38372,7.00,Marks & Spencer
Solihull MBC,Children & Education Services,Burman Inf,Officers Expenses,D61000,26/09/2014,PC78388,9.1,Marks & Spencer Simply
Solihull MBC,Adult Social Care,25 Stapleton Drive,Clients Expenses,D62000,15/09/2014,PC36587,5.2,Marks & Spencer Sspltd
Solihull MBC,Adult Social Care,25 Stapleton Drive,Clients Expenses,D62000,15/09/2014,PC10820,6.4,Mattia Alfresco
Solihull MBC,Children & Education Services,Troubled Families,Clients Expenses,D62000,25/09/2014,PC95950,0.89,Mcdonalds
Solihull MBC,Children & Education Services,Troubled Families,Clients Expenses,D62000,16/09/2014,PC02796,2.59,Mcdonalds
Solihull MBC,Children & Education Services,Troubled Families,Clients Expenses,D62000,09/09/2014,PC65908,4.29,Mcdonalds
Solihull MBC,Adult Social Care,25 Stapleton Drive,Clients Expenses,D62000,23/09/2014,PC18419,6.27,Mcdonalds
Solihull MBC,Children & Education Services,Troubled Families,Clients Expenses,D62000,25/09/2014,PC95679,6.68,Mcdonalds
Solihull MBC,Adult Social Care,25 Stapleton Drive,Clients Expenses,D62000,23/09/2014,PC18476,7.38,Mcdonalds
Solihull MBC,Children & Education Services,Reynalds Cross,Capitation,D11001,10/09/2014,PC02586,31.2,Medisave (UK)
Solihull MBC,Adult Social Care,25 Stapleton Drive,Clients Expenses,D62000,17/09/2014,PC94279,1.69,Melbicks Garden And Le
Solihull MBC,Adult Social Care,25 Stapleton Drive,Clients Expenses,D62000,17/09/2014,PC94246,3.5,Melbicks Garden And Le
Solihull MBC,Adult Social Care,25 Stapleton Drive,Clients Expenses,D62000,17/09/2014,PC94253,3.84,Melbicks Garden And Le
Solihull MBC,Children & Education Services,Windy Arbor J&I,Capitation,D11001,03/09/2014,PC19089,33.45,Melbicks Garden And Le
Solihull MBC,Housing Revenue Account,Purchase Card Acquisitions,General Debtors,R20000,08/09/2014,PC66841,250.00,Melbicks Garden And Le
Solihull MBC,Children & Education Services,Dorridge Inf,Capitation,D11001,02/10/2014,PC13841,79.00,Meru
Solihull MBC,Children & Education Services,Our Lady Wayside J&I,Capitation,D11001,02/10/2014,PC58038,918.00,Midhire Self Drive Renta
Solihull MBC,Children & Education Services,St George & Teresa J&I,Stationery,D41000,04/09/2014,PC60024,7.80,Midland Business
Solihull MBC,Adult Social Care,8 Downing Close,General Office Expenses,D42000,12/09/2014,PC41562,9.85,Midland Business
Solihull MBC,Children & Education Services,Dorridge Inf,Capitation,D11001,15/09/2014,PC45693,89.64,Mil Superstickers-
Solihull MBC,Children & Education Services,Damson Wood Inf,Capitation,D11001,04/09/2014,PC62869,91.07,Mil Superstickers-
Solihull MBC,Children & Education Services,Coppice Jnr,Capitation,D11001,08/09/2014,PC36134,232.8,Mil Superstickers-
Solihull MBC,Children & Education Services,Ulverley J&I,IT Equipment & Software,D32000,29/09/2014,PC80625,362.98,Minecraftedu
Solihull MBC,Adult Social Care,25 Stapleton Drive,Clients Expenses,D62000,24/09/2014,PC23071,8.10,Miranda Tania
Solihull MBC,Children & Education Services,Smith's Wood Community Primary,Pay: Cleaners,A12921,18/09/2014,PC67890,35,Moneyclaim.gov.uk
Solihull MBC,Children & Education Services,Yorkswood Bl Ext Schs,Tuition Fees,I20001,18/09/2014,PC67660,60,Moneyclaim.gov.uk
Solihull MBC,Adult Social Care,Carers Res Respite,Short Stay Accomodation,I20132,18/09/2014,PC67751,60,Moneyclaim.gov.uk
Solihull MBC,Housing Revenue Account,Purchase Card Acquisitions,General Debtors,R20000,18/09/2014,PC65687,70,Moneyclaim.gov.uk
Solihull MBC,Housing Revenue Account,Purchase Card Acquisitions,General Debtors,R20000,18/09/2014,PC65826,70.00,Moneyclaim.gov.uk
Solihull MBC,Children & Education Services,Yorkswood N'hood Nursery,Tuition Fees,I20001,18/09/2014,PC67546,70,Moneyclaim.gov.uk
Solihull MBC,Children & Education Services,Chuckles,Fees & Charges,I20000,18/09/2014,PC67837,70.00,Moneyclaim.gov.uk
Solihull MBC,Children & Education Services,Yorkswood N'hood Nursery,Tuition Fees,I20001,18/09/2014,PC67698,105.00,Moneyclaim.gov.uk
Solihull MBC,Cultural & Related Services,Arts Complex Hirings,Fees & Charges,I20000,18/09/2014,PC67737,105,Moneyclaim.gov.uk
Solihull MBC,Children & Education Services,Yorkswood N'hood Nursery,Tuition Fees,I20001,18/09/2014,PC67782,105,Moneyclaim.gov.uk
Solihull MBC,Adult Social Care,MHT Dom Care,Community Care,E21000,18/09/2014,PC67539,185.00,Moneyclaim.gov.uk
Solihull MBC,Housing Revenue Account,Purchase Card Acquisitions,General Debtors,R20000,18/09/2014,PC65415,185,Moneyclaim.gov.uk
Solihull MBC,Adult Social Care,PD Spot Comm Care,ASC - Direct Payments,E20009,18/09/2014,PC67515,410.00,Moneyclaim.gov.uk
Solihull MBC,Central Services to the Public,Car Loans,Other Long Term Assets,Q42000,18/09/2014,PC67615,410,Moneyclaim.gov.uk
Solihull MBC,Adult Social Care,ASC - Direct Payment Support Service,Reimbursements & Contributions,I23000,18/09/2014,PC67875,410,Moneyclaim.gov.uk
Solihull MBC,Housing Revenue Account,Purchase Card Acquisitions,General Debtors,R20000,18/09/2014,PC65065,410.00,Moneyclaim.gov.uk
Solihull MBC,Children & Education Services,Widney Jnr,Capitation,D11001,06/09/2014,PC41149,180,Monster Skips Ltd
Solihull MBC,Children & Education Services,Lyndon,Refuse Collection,B43001,15/09/2014,PC74544,180,Monster Skips Ltd
Solihull MBC,Central Services to the Public,ICT: Desktop Team Helpdesk,IT Equipment & Software,D32000,02/10/2014,PC51372,34.99,Msft   *Microsoftstore
Solihull MBC,Adult Social Care,25 Stapleton Drive,Clients Expenses,D62000,25/09/2014,PC58191,9.35,Mundomar
Solihull MBC,Adult Social Care,25 Stapleton Drive,Clients Expenses,D62000,25/09/2014,PC20616,19.34,Mundomar
Solihull MBC,Adult Social Care,25 Stapleton Drive,Clients Expenses,D62000,25/09/2014,PC96572,56.8,Mundomar
Solihull MBC,Children & Education Services,Reynalds Cross,Capitation,D11001,21/09/2014,PC21193,56.08,Murco Sstn 430
Solihull MBC,Children & Education Services,Widney Jnr,Capitation,D11001,02/10/2014,PC33608,-20.00,My Projector Lamps Eu
Solihull MBC,Children & Education Services,Widney Jnr,Capitation,D11001,19/09/2014,PC41596,188.77,My Projector Lamps Eu
Solihull MBC,Children & Education Services,Valley Inf,Capitation,D11001,01/10/2014,PC28805,480.83,My Projector Lamps Eu
Solihull MBC,Cultural & Related Services,Arts Complex Hirings,Furniture & Equipment,D10000,05/09/2014,PC69537,129.28,Mylands
Solihull MBC,Children & Education Services,Section 17 DART,Materials,D11000,03/09/2014,PC82096,21.80,Nandos Birmingham Fort
Solihull MBC,Central Services to the Public,ICT Data Base Analysis,IT Equipment & Software,D32000,20/09/2014,PC08097,26,Nandos Solihull
Solihull MBC,Children & Education Services,St John The Baptist J&I,Capitation,D11001,19/09/2014,PC42566,26.00,National Express Limited
Solihull MBC,Adult Social Care,9 Downing Close,Clients Expenses,D62000,30/09/2014,PC09288,33.50,National Express Limited
Solihull MBC,Children & Education Services,St George & Teresa J&I,Capitation,D11001,11/09/2014,PC59789,84,National Trust Mem
Solihull MBC,Environmental and Regulatory Services,Licensing,Furniture & Equipment,D10000,12/09/2014,PC04233,13.33,NCP Limited
Solihull MBC,Children & Education Services,Chapel Fields Jnr,Capitation,D11001,15/09/2014,PC93696,11.04,NDS Trophies
Solihull MBC,Children & Education Services,Auckland Centre,Furniture & Equipment,D10000,24/09/2014,PC02411,4.50,Nisa Supermarket
Solihull MBC,Adult Social Care,PD - Day Care Green Acres,Furniture & Equipment,D10000,15/09/2014,PC20388,19.68,Nobisco Ltd
Solihull MBC,Children & Education Services,Reynalds Cross,Capitation,D11001,18/09/2014,PC34487,48.90,Nochex - 0113 344 3996
Solihull MBC,Adult Social Care,ASC - Chief Executive's Office,Car Allowances: Officers,C10000,04/09/2014,PC40948,8.00,Nomad West Coast L
Solihull MBC,Children & Education Services,St John The Baptist J&I,Capitation,D11001,09/09/2014,PC25186,42.2,Norfolk Green Houses L
Solihull MBC,Children & Education Services,Widney Jnr,Capitation,D11001,26/09/2014,PC84198,9.89,Notcutts Garden Ce
Solihull MBC,Children & Education Services,St George & Teresa J&I,Maintenance Of Grounds,B30000,16/09/2014,PC13866,30.93,Notcutts Garden Ce
Solihull MBC,Children & Education Services,Hazel Oak,Meetings & Other Expenses,D61002,01/10/2014,PC24823,50.00,Notcutts Garden Ce
Solihull MBC,Cultural & Related Services,Park Rangers,Materials,D11000,15/09/2014,PC02811,150.00,Notcutts Garden Ce
Solihull MBC,Children & Education Services,Coleshill Heath J&I,Telephones,D30000,08/09/2014,PC08313,124.94,O2 UK CCA Payment
Solihull MBC,Children & Education Services,Marston Green Jnr,Telephones,D30000,26/09/2014,PC64285,76.3,O2 UK Payment
Solihull MBC,Adult Social Care,8 Downing Close,Clients Expenses,D62000,10/09/2014,PC83861,20.20,Olten Tavern
Solihull MBC,Children & Education Services,Reynalds Cross,Capitation,D11001,04/09/2014,PC44345,5.20,One Stop 3013
Solihull MBC,Children & Education Services,Swallows Childcare,Capitation,D11001,30/09/2014,PC32629,18.48,One Stop 3013
Solihull MBC,Children & Education Services,Reynalds Cross,Capitation,D11001,12/09/2014,PC87721,5.2,One Stop 3014
Solihull MBC,Children & Education Services,Dorridge Inf Lunch Club,Meetings & Other Expenses,D61002,27/09/2014,PC40624,35.00,Out Of School Alliance L
Solihull MBC,Children & Education Services,Chapel Fields Jnr,Materials,D11000,05/09/2014,PC06759,54.36,Oxforduniversitypr
Solihull MBC,Children & Education Services,St George & Teresa J&I,Capitation,D11001,10/09/2014,PC08989,116.50,Oxforduniversitypr
Solihull MBC,Children & Education Services,St George & Teresa J&I,Capitation,D11001,06/09/2014,PC13120,146.00,Oxforduniversitypr
Solihull MBC,Children & Education Services,Meriden J&I,Capitation,D11001,09/09/2014,PC36380,610.31,Oxforduniversitypr
Solihull MBC,Adult Social Care,LD - General Work Related,Clothing & Uniforms,D91000,03/09/2014,PC44896,50.00,P.B Sports
Solihull MBC,Children & Education Services,Youth Council / YID,General Office Expenses,D42000,02/10/2014,PC35157,21.97,Papa Johns (Solihull)
Solihull MBC,Children & Education Services,Smith's Wood,IT Equipment & Software,D32000,25/09/2014,PC86716,2.98,Parcel2Go
Solihull MBC,Highways & Transport Services,Places Dir Savings CS Cab,Officers Expenses,D61000,09/09/2014,PC64912,3.70,Park Mobile
Solihull MBC,Highways & Transport Services,Places Dir Savings CS Cab,Officers Expenses,D61000,11/09/2014,PC75874,3.7,Park Mobile
Solihull MBC,Highways & Transport Services,Places Dir Savings CS Cab,Officers Expenses,D61000,25/09/2014,PC07549,3.80,Park Mobile
Solihull MBC,Highways & Transport Services,Places Dir Savings CS Cab,Officers Expenses,D61000,25/09/2014,PC18850,5.6,Park Mobile
Solihull MBC,Children & Education Services,Sharmans Cross Jnr,Capitation,D11001,17/09/2014,PC69428,35.40,Partsit.Com
Solihull MBC,Children & Education Services,Sharmans Cross Jnr,Capitation,D11001,12/09/2014,PC65987,255.00,Partsit.Com
Solihull MBC,Adult Social Care,Bacons End,Furniture & Equipment,D10000,24/09/2014,PC65971,69.00,Pavilion Publishing &
Solihull MBC,Children & Education Services,Peterbrook J&I,Capitation,D11001,03/09/2014,PC70849,14.76,Paypal *3Sixfiveltd
Solihull MBC,Children & Education Services,Kingshurst Primary,Purchase Card Statement Summary,D11002,17/09/2014,PC76326,248.08,Paypal *Acrylicsrus
Solihull MBC,Children & Education Services,Chapel Fields Jnr,Capitation,D11001,24/09/2014,PC21499,25.99,Paypal *Bbcchildren
Solihull MBC,Children & Education Services,Woodlands Solihull Inf,Capitation,D11001,19/09/2014,PC44381,149.70,Paypal *Catherineh
Solihull MBC,Children & Education Services,Woodlands Solihull Inf,Capitation,D11001,19/09/2014,PC69081,149.70,Paypal *Catherineh
Solihull MBC,Children & Education Services,Cranmore Inf,Capitation,D11001,10/09/2014,PC83452,69.99,Paypal *Comtech
Solihull MBC,Children & Education Services,Cranmore Inf,Capitation,D11001,05/09/2014,PC67582,34.79,Paypal *Cookskitche
Solihull MBC,Children & Education Services,Local Safeguarding Childrens Board,General Office Expenses,D42000,26/09/2014,PC13652,9.60,Paypal *Dartington
Solihull MBC,Children & Education Services,Lady K Levesons J&I,Capitation,D11001,24/09/2014,PC42147,30.00,Paypal *David Ford
Solihull MBC,Children & Education Services,Corporate Parenting Youth,Other Fees,D52000,10/09/2014,PC53071,50.00,Paypal *Davidgraham
Solihull MBC,Children & Education Services,Dorridge Inf,Training,A32000,10/09/2014,PC10222,156.00,Paypal *Fasd Trust
Solihull MBC,Children & Education Services,St Augustine's J&I,Capitation,D11001,24/09/2014,PC64877,29.49,Paypal *Fishermanuk
Solihull MBC,Central Services to the Public,Telecommunication Support,Telephones,D30000,19/09/2014,PC12395,14.99,Paypal *Foneangels
Solihull MBC,Central Services to the Public,Telecommunication Support,Telephones,D30000,19/09/2014,PC50306,34.99,Paypal *Foneangels
Solihull MBC,Central Services to the Public,Telecommunication Support,Telephones,D30000,19/09/2014,PC37095,34.99,Paypal *Foneangels
Solihull MBC,Central Services to the Public,Telecommunication Support,Telephones,D30000,10/09/2014,PC70971,163.96,Paypal *Foneangels
Solihull MBC,Children & Education Services,Cranmore Inf,Capitation,D11001,26/09/2014,PC17418,21.98,Paypal *Funkybdroom
Solihull MBC,Children & Education Services,Cranmore Inf,Capitation,D11001,24/09/2014,PC80474,153.89,Paypal *Greenfinger
Solihull MBC,Children & Education Services,Cranmore Inf,Capitation,D11001,02/10/2014,PC11909,13.45,Paypal *Greengatesn
Solihull MBC,Children & Education Services,Peterbrook J&I,Capitation,D11001,19/09/2014,PC70670,17.99,Paypal *Home
Solihull MBC,Children & Education Services,Smith's Wood,Capitation,D11001,03/09/2014,PC54135,253.96,Paypal *Ictinteract
Solihull MBC,Children & Education Services,Lyndon,Health & Safety,B43003,15/09/2014,PC58910,66.06,Paypal *Idxtra Ltd
Solihull MBC,Children & Education Services,Fordbridge Community Primary,Capitation,D11001,04/09/2014,PC88804,95.92,Paypal *Jars Things
Solihull MBC,Children & Education Services,Peterbrook J&I,Capitation,D11001,03/09/2014,PC74809,5.18,Paypal *John122400
Solihull MBC,Children & Education Services,Smith's Wood,IT Equipment & Software,D32000,15/09/2014,PC33020,326.51,Paypal *Kinetik
Solihull MBC,Children & Education Services,Cranmore Inf,Capitation,D11001,26/09/2014,PC19836,21,Paypal *Littlesewit
Solihull MBC,Children & Education Services,Dickens Hth Primary,Maintenance Of Grounds,B30000,27/09/2014,PC58524,17.50,Paypal *Midlandholl
Solihull MBC,Children & Education Services,St Mary & Margaret J&I,Capitation,D11001,04/09/2014,PC29599,75,Paypal *Mlebeducati
Solihull MBC,Children & Education Services,Coleshill Heath J&I,Capitation,D11001,04/09/2014,PC24484,75,Paypal *Mlebeducati
Solihull MBC,Children & Education Services,St Anne's J&I,Capitation,D11001,24/09/2014,PC18956,75,Paypal *Mlebeducati
Solihull MBC,Children & Education Services,Valley Inf,Capitation,D11001,30/09/2014,PC32264,75.00,Paypal *Mlebeducati
Solihull MBC,Children & Education Services,Dickens Hth Primary,Capitation,D11001,03/09/2014,PC30522,150.00,Paypal *Mlebeducati
Solihull MBC,Children & Education Services,Cranmore Inf,Capitation,D11001,26/09/2014,PC18655,19.47,Paypal *New Threads
Solihull MBC,Children & Education Services,Peterbrook J&I,Capitation,D11001,03/09/2014,PC73397,8.37,Paypal *Nmitconsult
Solihull MBC,Children & Education Services,Cranmore Inf,Capitation,D11001,26/09/2014,PC20305,25.60,Paypal *Ohsewcrafty
Solihull MBC,Children & Education Services,Kingshurst Primary,Purchase Card Statement Summary,D11002,18/09/2014,PC13928,18.98,Paypal *Onlinetroph
Solihull MBC,Children & Education Services,Music Service,Capitation,D11001,10/09/2014,PC53324,148,Paypal *Petertapper
Solihull MBC,Children & Education Services,Merstone,Capitation,D11001,24/09/2014,PC68287,36.85,Paypal *Pheebsters
Solihull MBC,Children & Education Services,Dorridge Inf,IT Equipment & Software,D32000,10/09/2014,PC24390,120.00,Paypal *Phonicsplay
Solihull MBC,Children & Education Services,Cranmore Inf,Capitation,D11001,05/09/2014,PC72037,153,Paypal *Promotionso
Solihull MBC,Children & Education Services,Cranmore Inf,Capitation,D11001,26/09/2014,PC18614,16,Paypal *Purplestitc
Solihull MBC,Children & Education Services,Cranmore Inf,Capitation,D11001,26/09/2014,PC83986,41.48,Paypal *Quillowtalk
Solihull MBC,Children & Education Services,Cranmore Inf,Capitation,D11001,26/09/2014,PC18002,17.29,Paypal *Randmlawler
Solihull MBC,Children & Education Services,Cranmore Inf,Capitation,D11001,26/09/2014,PC19554,19.7,Paypal *Sales
Solihull MBC,Children & Education Services,Fordbridge Community Primary,Capitation,D11001,04/09/2014,PC88572,171.6,Paypal *Sarasmileys
Solihull MBC,Children & Education Services,Kingshurst Primary,Purchase Card Statement Summary,D11002,29/09/2014,PC12353,30.91,Paypal *Signmax Ab
Solihull MBC,Children & Education Services,Peterbrook J&I,Capitation,D11001,03/09/2014,PC68942,16.80,Paypal *Smithsbeads
Solihull MBC,Children & Education Services,St Andrew's J&I,Capitation,D11001,15/09/2014,PC33765,47,Paypal *Sound Found
Solihull MBC,Children & Education Services,Kineton Green Primary,Capitation,D11001,22/09/2014,PC54158,111,Paypal *Spellzoo
Solihull MBC,Children & Education Services,St Anthony's J&I,Capitation,D11001,23/09/2014,PC25372,111.00,Paypal *Spellzoo
Solihull MBC,Children & Education Services,Hazel Oak,Building Maint Day To Day,B31001,11/09/2014,PC32950,71.98,Paypal *Sportsdirec
Solihull MBC,Children & Education Services,Cranmore Inf,Capitation,D11001,26/09/2014,PC17426,31.37,Paypal *Ssmallridge
Solihull MBC,Children & Education Services,Smith's Wood,Capitation,D11001,19/09/2014,PC07804,78.60,Paypal *Stampdesign
Solihull MBC,Children & Education Services,Cranmore Inf,Capitation,D11001,26/09/2014,PC20065,34,Paypal *Textileexpr
Solihull MBC,Children & Education Services,Kingshurst Primary,Purchase Card Statement Summary,D11002,05/09/2014,PC55856,94.81,Paypal *Trophystore
Solihull MBC,Children & Education Services,Fordbridge Community Primary,Software Licenses & Support,D32906,08/09/2014,PC32215,39.95,Paypal *Twinkl Ltd
Solihull MBC,Children & Education Services,Smith's Wood,IT Equipment & Software,D32000,11/09/2014,PC67481,123.98,Paypal *Uk It
Solihull MBC,Children & Education Services,Fordbridge Community Primary,Furniture & Equipment,D10000,08/09/2014,PC97110,95.76,Paypal *Worldoutdoo
Solihull MBC,Children & Education Services,St Anthony's J&I,Capitation,D11001,02/10/2014,PC89325,105.00,Paypal *Wristbands
Solihull MBC,Children & Education Services,Cranmore Inf,Capitation,D11001,02/09/2014,PC72817,13.75,Paypal *Yankeedirec
Solihull MBC,Children & Education Services,Kingshurst Primary,Purchase Card Statement Summary,D11002,28/09/2014,PC95344,27.15,Paypal *Zipheatersu
Solihull MBC,Children & Education Services,Lyndon,Capitation,D11001,22/09/2014,PC17148,49.00,PC World Online
Solihull MBC,Children & Education Services,Section 17 DART,Materials,D11000,22/09/2014,PC35915,6.99,PDSA Shop
Solihull MBC,Children & Education Services,Smith's Wood,Capitation,D11001,01/10/2014,PC79012,1.77,Peter Coates (Alrewas)
Solihull MBC,Children & Education Services,Smith's Wood,Capitation,D11001,10/09/2014,PC19748,3.00,Peter Coates (Alrewas)
Solihull MBC,Children & Education Services,Smith's Wood,Capitation,D11001,24/09/2014,PC71084,5,Peter Coates (Alrewas)
Solihull MBC,Children & Education Services,Coppice Jnr,Capitation,D11001,08/09/2014,PC09680,48.77,Peters Ltd
Solihull MBC,Children & Education Services,Smith's Wood,Capitation,D11001,07/09/2014,PC88348,2.29,Pets At Home Ltd
Solihull MBC,Children & Education Services,Meriden J&I,Furniture & Equipment,D10000,23/09/2014,PC64887,422.40,Playground Basics
Solihull MBC,Children & Education Services,Dickens Hth Primary,Maintenance Of Grounds,B30000,18/09/2014,PC85131,13,Plus-Display Ltd
Solihull MBC,Children & Education Services,St Mary & Margaret J&I,Cleaning / Janitrl Materials,B40002,09/09/2014,PC45478,20.3,Poolandspacentre
Solihull MBC,Children & Education Services,Catering Management,Postage & Courier Services,D43000,09/09/2014,PC10617,1.72,Post Office Counter
Solihull MBC,Children & Education Services,Catering Management,Postage & Courier Services,D43000,23/09/2014,PC91517,1.72,Post Office Counter
Solihull MBC,Children & Education Services,Catering Management,Postage & Courier Services,D43000,19/09/2014,PC98878,1.72,Post Office Counter
Solihull MBC,Children & Education Services,Forest Oak,Postage & Courier Services,D43000,19/09/2014,PC06636,1.80,Post Office Counter
Solihull MBC,Adult Social Care,OP - Home Care HQ,General Office Expenses,D42000,19/09/2014,PC95250,2.03,Post Office Counter
Solihull MBC,Adult Social Care,OP - Locality SW North,General Office Expenses,D42000,27/09/2014,PC16974,3.33,Post Office Counter
Solihull MBC,Children & Education Services,St George & Teresa J&I,Postage & Courier Services,D43000,19/09/2014,PC47860,6.52,Post Office Counter
Solihull MBC,Children & Education Services,St George & Teresa J&I,Postage & Courier Services,D43000,09/09/2014,PC36333,6.75,Post Office Counter
Solihull MBC,Adult Social Care,ASC - Acute Team SW,General Office Expenses,D42000,17/09/2014,PC27337,7.44,Post Office Counter
Solihull MBC,Adult Social Care,OP - Locality SW South A,General Office Expenses,D42000,24/09/2014,PC91375,8.45,Post Office Counter
Solihull MBC,Children & Education Services,St Andrew's J&I,Capitation,D11001,19/09/2014,PC22991,10.62,Post Office Counter
Solihull MBC,Children & Education Services,Yorkswood N'hood Nursery,Meetings & Other Expenses,D61002,29/09/2014,PC68308,13.64,Post Office Counter
Solihull MBC,Cultural & Related Services,Park Rangers,Furniture & Equipment,D10000,04/09/2014,PC29623,14.88,Post Office Counter
Solihull MBC,Children & Education Services,Evolution Project (BIP),Postage & Courier Services,D43000,25/09/2014,PC09981,18.6,Post Office Counter
Solihull MBC,Children & Education Services,Forest Oak,Postage & Courier Services,D43000,23/09/2014,PC23136,29.35,Post Office Counter
Solihull MBC,Adult Social Care,25 Stapleton Drive,General Office Expenses,D42000,30/09/2014,PC67480,57.50,Post Office Counter
Solihull MBC,Children & Education Services,Youth Offending Team,General Office Expenses,D42000,04/09/2014,PC64664,62,Post Office Counter
Solihull MBC,Children & Education Services,Youth Offending Team,General Office Expenses,D42000,16/09/2014,PC75639,62.00,Post Office Counter
Solihull MBC,Children & Education Services,Burman Inf,Postage & Courier Services,D43000,22/09/2014,PC93828,62.45,Post Office Counter
Solihull MBC,Children & Education Services,St George & Teresa J&I,Postage & Courier Services,D43000,03/09/2014,PC22327,63.48,Post Office Counter
Solihull MBC,Children & Education Services,Sharmans Cross Jnr,Capitation,D11001,24/09/2014,PC54252,85.25,Post Office Counter
Solihull MBC,Adult Social Care,ASC - Joint Stores,General Office Expenses,D42000,17/09/2014,PC18487,87.00,Post Office Counter
Solihull MBC,Children & Education Services,Fordbridge Community Primary,Postage & Courier Services,D43000,17/09/2014,PC45268,121.89,Post Office Counter
Solihull MBC,Children & Education Services,Summerfield Centre,Capitation,D11001,05/09/2014,PC81526,124.00,Post Office Counter
Solihull MBC,Children & Education Services,Specialist Inclusion Support Service,General Office Expenses,D42000,25/09/2014,PC30261,124.00,Post Office Counter
Solihull MBC,Children & Education Services,Kingshurst Primary,Purchase Card Statement Summary,D11002,22/09/2014,PC59934,167.5,Post Office Counter
Solihull MBC,Children & Education Services,Child Protection Unit (Prevention),General Office Expenses,D42000,16/09/2014,PC75498,248,Post Office Counter
Solihull MBC,Central Services to the Public,Solihull Connect,Materials,D11000,17/09/2014,PC61639,159,Post Office Shop
Solihull MBC,Central Services to the Public,Solihull Connect,Materials,D11000,17/09/2014,PC75391,188.49,Post Office Shop
Solihull MBC,Children & Education Services,Adoption Team,Postage & Courier Services,D43000,10/09/2014,PC76188,44.25,Postoffice Selfservice
Solihull MBC,Central Services to the Public,Corporate Governance,Materials,D11000,17/09/2014,PC79892,-43.73,Posturite (UK) Ltd
Solihull MBC,Central Services to the Public,Corporate Governance,Materials,D11000,23/09/2014,PC95880,23.50,Posturite (UK) Ltd
Solihull MBC,Children & Education Services,Smith's Wood,Capitation,D11001,13/09/2014,PC54867,2.00,Poundland Ltd 1224
Solihull MBC,Children & Education Services,Smith's Wood,Capitation,D11001,25/09/2014,PC54760,5,Poundland Ltd 1224
Solihull MBC,Children & Education Services,Monkspath Monkeys,Capitation,D11001,12/09/2014,PC19182,12.00,Poundland Ltd 1553
Solihull MBC,Children & Education Services,Monkspath Monkeys,Capitation,D11001,02/10/2014,PC52518,38.00,Poundland Ltd 1553
Solihull MBC,Central Services to the Public,Organisational Development,Training,A32000,16/09/2014,PC59437,4,Poundland Ltd 1713
Solihull MBC,Children & Education Services,Dickens Heath Afterschool Club,Capitation,D11001,08/09/2014,PC88903,5,Poundland Ltd 1713
Solihull MBC,Children & Education Services,Tidbury Green J&I,Capitation,D11001,20/09/2014,PC58543,5,Poundland Ltd 1713
Solihull MBC,Children & Education Services,Dickens Heath Afterschool Club,Capitation,D11001,01/10/2014,PC22486,5,Poundland Ltd 1713
Solihull MBC,Children & Education Services,Inspectors,Training,A32000,16/09/2014,PC59816,9,Poundland Ltd 1713
Solihull MBC,Cultural & Related Services,Theatre Bar,Furniture & Equipment,D10000,26/09/2014,PC34531,40,Poundland Ltd 1713
Solihull MBC,Children & Education Services,Peterbrook Club,Capitation,D11001,13/09/2014,PC44524,31.88,Poundstretcher 362
Solihull MBC,Children & Education Services,Evolution Project (BIP),Other Fees,D52000,04/09/2014,PC79198,12,Powerleague Fives Ltd
Solihull MBC,Children & Education Services,Evolution Project (BIP),Other Fees,D52000,11/09/2014,PC81838,15.00,Powerleague Fives Ltd
Solihull MBC,Children & Education Services,Evolution Project (BIP),Other Fees,D52000,25/09/2014,PC78897,12.5,Powerleague Yardley
Solihull MBC,Children & Education Services,Evolution Project (BIP),Other Fees,D52000,02/10/2014,PC81019,12.50,Powerleague Yardley
Solihull MBC,Children & Education Services,Evolution Project (BIP),Other Fees,D52000,18/09/2014,PC78365,15,Powerleague Yardley
Solihull MBC,Housing Revenue Account,Purchase Card Acquisitions,General Debtors,R20000,30/09/2014,PC74007,126,Premier Inn44010650
Solihull MBC,Housing Revenue Account,Purchase Card Acquisitions,General Debtors,R20000,23/09/2014,PC52813,86.75,Premier Inn44024460
Solihull MBC,Children & Education Services,Coppice Jnr,Capitation,D11001,11/09/2014,PC08073,45.95,Primary Teaching Servi
Solihull MBC,Children & Education Services,Coppice Jnr,Capitation,D11001,08/09/2014,PC21382,80.85,Primary Teaching Servi
Solihull MBC,Cultural & Related Services,Libraries Resources Fund,Materials,D11000,11/09/2014,PC56596,28.00,Private Eye
Solihull MBC,Children & Education Services,St Anne's J&I,Capitation,D11001,12/09/2014,PC28848,33.99,Professional Music
Solihull MBC,Children & Education Services,Langley J&I,IT Equipment & Software,D32000,08/09/2014,PC68760,79.19,Promethean Ltd
Solihull MBC,Children & Education Services,Monkspath J&I,Capitation,D11001,19/09/2014,PC36460,-148.44,Promotional Prod
Solihull MBC,Children & Education Services,Monkspath J&I,Capitation,D11001,19/09/2014,PC52389,150.31,Promotional Prod
Solihull MBC,Children & Education Services,Monkspath J&I,Capitation,D11001,19/09/2014,PC46511,150.31,Promotional Prod
Solihull MBC,Children & Education Services,Greswold J&I,Capitation,D11001,26/09/2014,PC37539,230,Proteamwear Uk Ltd
Solihull MBC,Central Services to the Public,ICT: Desktop Team Helpdesk,IT Equipment & Software,D32000,26/09/2014,PC54613,73.20,PSA Parts Ltd
Solihull MBC,Central Services to the Public,ICT: Desktop Team Helpdesk,IT Equipment & Software,D32000,04/09/2014,PC58070,84,PSA Parts Ltd
Solihull MBC,Children & Education Services,Our Lady Compassion  J&I,Capitation,D11001,17/09/2014,PC14563,162.00,Pure Safety
Solihull MBC,Children & Education Services,Meriden J&I,Capitation,D11001,16/09/2014,PC89837,9.80,Rakuten Play.com
Solihull MBC,Children & Education Services,Kineton Green Primary,Building Maint Day To Day,B31001,05/09/2014,PC11503,125.4,Resifloor.co.uk
Solihull MBC,Children & Education Services,Kineton Green Primary,Building Maint Day To Day,B31001,11/09/2014,PC60964,125.4,Resifloor.co.uk
Solihull MBC,Children & Education Services,St Alphege Inf,Catering Provisions,D20000,24/09/2014,PC76861,5.99,Revital Health Sho
Solihull MBC,Children & Education Services,Marston Green Jnr,Capitation,D11001,16/09/2014,PC29617,177.95,Rising Stars UK Lt
Solihull MBC,Children & Education Services,St Anthony's J&I,Capitation,D11001,18/09/2014,PC64366,485.95,Rising Stars UK Lt
Solihull MBC,Environmental and Regulatory Services,Trading Standards,Car Allowances: Officers,C10000,25/09/2014,PC18519,7.98,Robert Dyas Holdng Ltd
Solihull MBC,Children & Education Services,Craig Croft Premises & Opps,Materials,D11000,19/09/2014,PC54764,62,Royal Mail
Solihull MBC,Children & Education Services,Coleshill Heath J&I,Postage & Courier Services,D43000,16/09/2014,PC37213,310,Royal Mail
Solihull MBC,Highways & Transport Services,Street Lighting Contract 1,Postage & Courier Services,D43000,01/10/2014,PC62754,1.11,Royal Mail  0845606040
Solihull MBC,Adult Social Care,7 Downing Close,Furniture & Equipment,D10000,19/09/2014,PC09001,11.03,RS Components
Solihull MBC,Cultural & Related Services,Arts Complex Hirings,Repair & Maintn Of Buildings,B31000,11/09/2014,PC69774,33.19,RS Components
Solihull MBC,Children & Education Services,Fostering Team,Materials,D11000,30/09/2014,PC31225,148.90,Ryanair     22400000Nqsfv
Solihull MBC,Adult Social Care,Roundmead,Catering Provisions,D20000,06/09/2014,PC85758,4.98,Ryman
Solihull MBC,Children & Education Services,Tidbury Green J&I,Other Employee Costs,A39000,28/09/2014,PC84079,20,Sacat Marks & Spencer
Solihull MBC,Adult Social Care,7 Downing Close,Furniture & Equipment,D10000,19/09/2014,PC07237,13.98,Safe Tots Ltd
Solihull MBC,Central Services to the Public,Accountancy,General Office Expenses,D42000,08/09/2014,PC85009,16.00,Sainsbury's Smkt
Solihull MBC,Children & Education Services,Hazel Oak,Capitation,D11001,30/09/2014,PC49951,25.85,Sainsbury's Smkt
Solihull MBC,Children & Education Services,Shirley Heath Kids Club,Capitation,D11001,23/09/2014,PC25388,2.98,Sainsbury's Smkt
Solihull MBC,Children & Education Services,Shirley Heath Kids Club,Capitation,D11001,17/09/2014,PC24811,3.2,Sainsbury's Smkt
Solihull MBC,Children & Education Services,Flamingo Club,Catering Provisions,D20000,03/09/2014,PC37520,3.6,Sainsbury's Smkt
Solihull MBC,Children & Education Services,Shirley Heath Kids Club,Capitation,D11001,30/09/2014,PC07975,4.60,Sainsbury's Smkt
Solihull MBC,Children & Education Services,Berkswell J&I,Visits & Pupil Activities,D52002,24/09/2014,PC98102,9.00,Sainsbury's Smkt
Solihull MBC,Children & Education Services,Flamingo Club,Catering Provisions,D20000,30/09/2014,PC05404,9.65,Sainsbury's Smkt
Solihull MBC,Children & Education Services,Shirley Heath Kids Club,Capitation,D11001,30/09/2014,PC03960,10.00,Sainsbury's Smkt
Solihull MBC,Children & Education Services,Civic Suite Catering,Catering Provisions,D20000,08/09/2014,PC11149,10.6,Sainsbury's Smkt
Solihull MBC,Children & Education Services,Shirley Heath Kids Club,Capitation,D11001,10/09/2014,PC93976,11.19,Sainsbury's Smkt
Solihull MBC,Children & Education Services,Swallows Childcare,Capitation,D11001,28/09/2014,PC96165,11.99,Sainsbury's Smkt
Solihull MBC,Children & Education Services,Flamingo Club,Catering Provisions,D20000,04/09/2014,PC32231,13.05,Sainsbury's Smkt
Solihull MBC,Adult Social Care,222 Bills Lane,Catering Provisions,D20000,08/09/2014,PC15348,14.99,Sainsbury's Smkt
Solihull MBC,Children & Education Services,Windy Arbor J&I,Capitation,D11001,16/09/2014,PC58856,15.00,Sainsbury's Smkt
Solihull MBC,Children & Education Services,Blossomfield Inf,Capitation,D11001,26/09/2014,PC23546,16.18,Sainsbury's Smkt
Solihull MBC,Adult Social Care,222 Bills Lane,Catering Provisions,D20000,19/09/2014,PC42236,19.25,Sainsbury's Smkt
Solihull MBC,Adult Social Care,9 Downing Close,Catering Provisions,D20000,25/09/2014,PC41379,23.9,Sainsbury's Smkt
Solihull MBC,Children & Education Services,Flamingo Club,Catering Provisions,D20000,16/09/2014,PC56219,24.53,Sainsbury's Smkt
Solihull MBC,Children & Education Services,Shirley Heath Kids Club,Capitation,D11001,15/09/2014,PC64141,26.44,Sainsbury's Smkt
Solihull MBC,Children & Education Services,Reynalds Cross,Capitation,D11001,21/09/2014,PC29630,30,Sainsbury's Smkt
Solihull MBC,Children & Education Services,Berkswell J&I,Visits & Pupil Activities,D52002,24/09/2014,PC98347,36.60,Sainsbury's Smkt
Solihull MBC,Adult Social Care,222 Bills Lane,Catering Provisions,D20000,26/09/2014,PC16690,37.30,Sainsbury's Smkt
Solihull MBC,Children & Education Services,Woodlands Solihull Inf,Cleaning / Janitrl Materials,B40002,24/09/2014,PC14102,37.80,Sainsbury's Smkt
Solihull MBC,Children & Education Services,Flamingo Club,Catering Provisions,D20000,23/09/2014,PC15902,38.09,Sainsbury's Smkt
Solihull MBC,Adult Social Care,25 Stapleton Drive,Other Premise Costs,B43000,09/09/2014,PC57869,39.99,Sainsbury's Smkt
Solihull MBC,Children & Education Services,Shirley Heath Kids Club,Capitation,D11001,08/09/2014,PC13770,46.65,Sainsbury's Smkt
Solihull MBC,Adult Social Care,222 Bills Lane,Catering Provisions,D20000,05/09/2014,PC09512,47.23,Sainsbury's Smkt
Solihull MBC,Children & Education Services,Monkspath Monkeys,Catering Provisions,D20000,13/09/2014,PC92883,51.23,Sainsbury's Smkt
Solihull MBC,Adult Social Care,222 Bills Lane,Catering Provisions,D20000,12/09/2014,PC93043,56.20,Sainsbury's Smkt
Solihull MBC,Children & Education Services,Flamingo Club,Catering Provisions,D20000,09/09/2014,PC25579,56.61,Sainsbury's Smkt
Solihull MBC,Children & Education Services,Shirley Heath Kids Club,Capitation,D11001,23/09/2014,PC13124,64.74,Sainsbury's Smkt
Solihull MBC,Children & Education Services,Monkspath Monkeys,Catering Provisions,D20000,28/09/2014,PC93391,78.58,Sainsbury's Smkt
Solihull MBC,Children & Education Services,Shirley Heath Kids Club,Capitation,D11001,15/09/2014,PC64134,80,Sainsbury's Smkt
Solihull MBC,Children & Education Services,Shirley Heath Kids Club,Capitation,D11001,30/09/2014,PC03953,92.61,Sainsbury's Smkt
Solihull MBC,Children & Education Services,Blossomfield Inf,Capitation,D11001,08/09/2014,PC38286,3.00,Sainsburys Smkts
Solihull MBC,Children & Education Services,Hazel Oak,Capitation,D11001,10/09/2014,PC02851,3.13,Sainsburys Smkts
Solihull MBC,Children & Education Services,Primary Schools Summary,Catering Provisions,D20000,10/09/2014,PC02501,3.60,Sainsburys Smkts
Solihull MBC,Children & Education Services,St Alphege Inf,Catering Provisions,D20000,09/09/2014,PC66721,5.60,Sainsburys Smkts
Solihull MBC,Children & Education Services,St Patrick's Academy,Catering Provisions,D20000,03/09/2014,PC00069,6.00,Sainsburys Smkts
Solihull MBC,Children & Education Services,Shirley Heath Kids Club,Capitation,D11001,02/10/2014,PC88271,6.55,Sainsburys Smkts
Solihull MBC,Children & Education Services,Mill Lodge J&I,Postage & Courier Services,D43000,16/09/2014,PC36266,7.44,Sainsburys Smkts
Solihull MBC,Children & Education Services,Dickens Hth Primary,Maintenance Of Grounds,B30000,26/09/2014,PC89434,7.75,Sainsburys Smkts
Solihull MBC,Children & Education Services,Greswold J&I,Cleaning / Janitrl Materials,B40002,24/09/2014,PC42850,10,Sainsburys Smkts
Solihull MBC,Adult Social Care,OP - Day Centre Oaktrees,Catering Provisions,D20000,17/09/2014,PC30822,10.2,Sainsburys Smkts
Solihull MBC,Central Services to the Public,CMT Secretariat,Materials,D11000,02/10/2014,PC10509,11.60,Sainsburys Smkts
Solihull MBC,Children & Education Services,Cheswick Chimps,Catering Provisions,D20000,26/09/2014,PC84893,12.99,Sainsburys Smkts
Solihull MBC,Children & Education Services,Hazel Oak,Capitation,D11001,18/09/2014,PC43504,21.00,Sainsburys Smkts
Solihull MBC,Children & Education Services,St Anne's J&I,Capitation,D11001,18/09/2014,PC27767,8.24,Sales@Airsquirrels.com
Solihull MBC,Children & Education Services,ATC-CSW 18+ Client Team 1,Clients Further Education Support,D62021,19/09/2014,PC73037,74.5,Sally Salon -Sutton Co
Solihull MBC,Children & Education Services,Hazel Oak,Capitation,D11001,30/09/2014,PC30943,61.98,Salons Direct Ltd
Solihull MBC,Children & Education Services,Hazel Oak,Capitation,D11001,25/09/2014,PC09782,82.74,Salons Direct Ltd
Solihull MBC,Children & Education Services,Hazel Oak,Capitation,D11001,29/09/2014,PC61124,60.70,Salonserve
Solihull MBC,Children & Education Services,Dorridge Inf,Capitation,D11001,27/09/2014,PC45260,3.69,Savers
Solihull MBC,Children & Education Services,Mill Lodge J&I,Capitation,D11001,04/09/2014,PC94870,15.00,Schofield & Sims L
Solihull MBC,Children & Education Services,Streetsbrook Inf,Capitation,D11001,24/09/2014,PC01934,42.35,Schoolbadgestore.
Solihull MBC,Children & Education Services,Tidbury Green J&I,Capitation,D11001,24/09/2014,PC01966,67.55,Schoolbadgestore.
Solihull MBC,Children & Education Services,Lyndon,Maintenance Of Grounds,B30000,25/09/2014,PC58692,66.22,Screwfix
Solihull MBC,Children & Education Services,Section 17 Chelmsley Wood,Clients Expenses,D62000,10/09/2014,PC97001,13.99,Screwfix Direct
Solihull MBC,Children & Education Services,Widney Jnr,Capitation,D11001,10/09/2014,PC14416,26.60,Screwfix Direct
Solihull MBC,Adult Social Care,LD - Day Centre Park View,General Office Expenses,D42000,23/09/2014,PC45882,75.00,Screwfix Direct
Solihull MBC,Children & Education Services,Valley Inf,Capitation,D11001,28/07/2014,PC18290,-449.99,Screwfix Direct
Solihull MBC,Children & Education Services,Valley Inf,Capitation,D11001,30/07/2014,PC45061,-349.99,Screwfix Direct
Solihull MBC,Children & Education Services,Widney Jnr,Capitation,D11001,10/09/2014,PC29591,3.99,Screwfix Direct Lt
Solihull MBC,Children & Education Services,Woodlands Solihull Inf,Cleaning / Janitrl Materials,B40002,03/09/2014,PC36042,7.57,Screwfix Direct Lt
Solihull MBC,Adult Social Care,LD - Day Centre Park View,General Office Expenses,D42000,24/09/2014,PC63279,7.62,Screwfix Direct Lt
Solihull MBC,Children & Education Services,Cranmore Inf,Building Maint Day To Day,B31001,03/09/2014,PC36212,9.98,Screwfix Direct Lt
Solihull MBC,Cultural & Related Services,Park Rangers,Materials,D11000,29/09/2014,PC38343,14.95,Screwfix Direct Lt
Solihull MBC,Highways & Transport Services,Street Lighting Contract 1,Repair & Maintn Of Buildings,B31000,06/09/2014,PC97564,14.99,Screwfix Direct Lt
Solihull MBC,Children & Education Services,Smith's Wood,Capitation,D11001,24/09/2014,PC38557,25.15,See Incsubfee.com
Solihull MBC,Housing Revenue Account,Purchase Card Acquisitions,General Debtors,R20000,04/09/2014,PC64998,15.96,Selco Trade Centre
Solihull MBC,Adult Social Care,1 Coppice Close,Clients Expenses,D62000,02/10/2014,PC38057,98.75,Severn Valley Rail
Solihull MBC,Children & Education Services,St George & Teresa J&I,Capitation,D11001,16/09/2014,PC41814,7.68,SG World Ltd
Solihull MBC,Planning & Development Services,Policy And Growth,Materials,D11000,24/09/2014,PC63297,153,SGS Hotel
Solihull MBC,Children & Education Services,Cheswick Green J&I,Capitation,D11001,30/09/2014,PC43523,34.99,Shedstore Internet
Solihull MBC,Children & Education Services,Our Lady Wayside J&I,Capitation,D11001,05/09/2014,PC20430,293.48,Shedstore Internet
Solihull MBC,Children & Education Services,Coleshill Heath J&I,Building Maint Day To Day,B31001,02/10/2014,PC15330,56.05,Shell Hillcrest324
Solihull MBC,Children & Education Services,Mill Lodge J&I,Building Maint Day To Day,B31001,12/09/2014,PC56796,5.99,Shell Shirley Tria
Solihull MBC,Housing Revenue Account,Purchase Card Acquisitions,General Debtors,R20000,30/09/2014,PC94485,18.00,Sign A Rama
Solihull MBC,Children & Education Services,Troubled Families,Clients Expenses,D62000,26/09/2014,PC35562,159.12,Simply Removals
Solihull MBC,Children & Education Services,Troubled Families,Clients Expenses,D62000,26/09/2014,PC35579,159.12,Simply Removals
Solihull MBC,Children & Education Services,Kineton Green Primary,Capitation,D11001,30/09/2014,PC91408,72.00,Sing Up
Solihull MBC,Children & Education Services,CSW Team B U18 Local Clients,General Office Expenses,D42000,29/09/2014,PC28343,-12.10,SMBC  Revenues - C
Solihull MBC,Children & Education Services,CSW Team B U18 Local Clients,General Office Expenses,D42000,23/09/2014,PC85020,12.10,SMBC  Revenues - C
Solihull MBC,Children & Education Services,Coppice Jnr,IT Equipment & Software,D32000,08/09/2014,PC01215,126.00,SME Supplies
Solihull MBC,Children & Education Services,Coppice Jnr,IT Equipment & Software,D32000,05/09/2014,PC01021,630.8,SME Supplies
Solihull MBC,Children & Education Services,CSW Team B U18 Local Clients,Clients Expenses,D62000,25/09/2014,PC41823,139.98,Smyths Toys UK Ltd
Solihull MBC,Children & Education Services,Yorkswood J&I,Building Maint Day To Day,B31001,02/10/2014,PC47409,169.97,Smyths Toys UK Ltd
Solihull MBC,Housing Revenue Account,Purchase Card Acquisitions,General Debtors,R20000,25/09/2014,PC35550,4.91,Snapfish
Solihull MBC,Adult Social Care,1 Coppice Close,Clients Expenses,D62000,10/09/2014,PC78494,16.5,Solihull MBC
Solihull MBC,Adult Social Care,9 Downing Close,Catering Provisions,D20000,02/10/2014,PC54643,33.00,Solihull MBC
Solihull MBC,Children & Education Services,Merstone,Capitation,D11001,08/09/2014,PC98879,64.40,Spark Etail Ltd
Solihull MBC,Children & Education Services,Music Service,Capitation,D11001,16/09/2014,PC03077,27.25,Spartan Press
Solihull MBC,Children & Education Services,Summerfield Centre,Capitation,D11001,08/09/2014,PC80408,12.00,Sportsdirect 137
Solihull MBC,Children & Education Services,St John The Baptist J&I,Capitation,D11001,17/09/2014,PC70185,47.99,Sportsdirect 137
Solihull MBC,Children & Education Services,Kingshurst Primary,Purchase Card Statement Summary,D11002,01/10/2014,PC20162,6,Sportsdirect 646
Solihull MBC,Children & Education Services,Smith's Wood,Capitation,D11001,29/09/2014,PC68434,360.84,Sportsdirect.Com
Solihull MBC,Central Services to the Public,Client Mgt Transport,Materials,D11000,23/09/2014,PC06153,8.18,Staples UK
Solihull MBC,Children & Education Services,St Margaret's J&I,Stationery,D41000,24/09/2014,PC99013,9.38,Staples UK
Solihull MBC,Children & Education Services,Auckland Centre,Furniture & Equipment,D10000,21/09/2014,PC00242,20.22,Staples UK
Solihull MBC,Children & Education Services,Chapel Fields Jnr,Capitation,D11001,04/09/2014,PC74671,27.77,Staples UK
Solihull MBC,Children & Education Services,Monkspath J&I,Stationery,D41000,04/09/2014,PC74789,38.21,Staples UK
Solihull MBC,Children & Education Services,Chapel Fields Jnr,Building Maint Day To Day,B31001,29/09/2014,PC98739,139.49,Sui Generis
Solihull MBC,Children & Education Services,Yorkswood N'hood Nursery,Meetings & Other Expenses,D61002,29/09/2014,PC11743,4.89,Tandas Ltd - 22445
Solihull MBC,Children & Education Services,Reynalds Cross,Capitation,D11001,18/09/2014,PC84695,5.00,Tates Store 346011
Solihull MBC,Children & Education Services,Lyndon,Capitation,D11001,25/09/2014,PC09474,191.45,Team Colours Ltd
Solihull MBC,Children & Education Services,Lyndon,Capitation,D11001,10/09/2014,PC77117,191.45,Team Colours Ltd
Solihull MBC,Children & Education Services,Peterbrook Club,Catering Provisions,D20000,25/09/2014,PC18659,6.00,Tesco Delivery Saver1
Solihull MBC,Children & Education Services,Chuckles,Catering Provisions,D20000,08/09/2014,PC37148,6,Tesco Delivery Saver2
Solihull MBC,Adult Social Care,PD - Day Care Green Acres,Furniture & Equipment,D10000,17/09/2014,PC18610,13.95,Tesco Direct
Solihull MBC,Children & Education Services,Adoption Team,Materials,D11000,23/09/2014,PC82253,23.31,Tesco Direct
Solihull MBC,Children & Education Services,Civic Suite Catering,Catering Provisions,D20000,14/09/2014,PC73953,4.59,Tesco Store 2250
Solihull MBC,Children & Education Services,Shirley Heath Jnr,Catering Provisions,D20000,08/09/2014,PC36059,2.94,Tesco Store 2624
Solihull MBC,Children & Education Services,Cranmore Inf,Catering Provisions,D20000,08/09/2014,PC36034,7.55,Tesco Store 2624
Solihull MBC,Children & Education Services,Cranmore Inf,Catering Provisions,D20000,23/09/2014,PC28122,9.05,Tesco Store 2624
Solihull MBC,Children & Education Services,Our Lady Wayside J&I,Catering Provisions,D20000,13/09/2014,PC97268,15.14,Tesco Store 2624
Solihull MBC,Children & Education Services,St Patrick's Academy,Catering Provisions,D20000,08/09/2014,PC36018,16,Tesco Store 2624
Solihull MBC,Adult Social Care,8 Downing Close,Furniture & Equipment,D10000,08/09/2014,PC14187,-7.00,Tesco Store 3188
Solihull MBC,Adult Social Care,8 Downing Close,General Office Expenses,D42000,12/09/2014,PC73092,2.75,Tesco Store 3188
Solihull MBC,Children & Education Services,Cheswick Green J&I,Capitation,D11001,23/09/2014,PC98296,3.45,Tesco Store 3188
Solihull MBC,Adult Social Care,9 Downing Close,Cleaning,B40000,22/09/2014,PC49137,4,Tesco Store 3188
Solihull MBC,Adult Social Care,9 Downing Close,Cleaning,B40000,09/09/2014,PC73542,5.4,Tesco Store 3188
Solihull MBC,Children & Education Services,Peterbrook Club,Catering Provisions,D20000,05/09/2014,PC18708,6,Tesco Store 3188
Solihull MBC,Children & Education Services,Summerfield Centre,Capitation,D11001,30/09/2014,PC91306,7.12,Tesco Store 3188
Solihull MBC,Children & Education Services,St Augustine's J&I,Capitation,D11001,12/09/2014,PC73134,8.00,Tesco Store 3188
Solihull MBC,Children & Education Services,St Alphege Inf,Catering Provisions,D20000,28/09/2014,PC54848,8,Tesco Store 3188
Solihull MBC,Children & Education Services,Shirley Heath Kids Club,Capitation,D11001,28/09/2014,PC54780,8.04,Tesco Store 3188
Solihull MBC,Adult Social Care,3 Gates,Catering Provisions,D20000,27/09/2014,PC99979,8.17,Tesco Store 3188
Solihull MBC,Children & Education Services,Streetsbrook Inf,Capitation,D11001,05/09/2014,PC18740,9,Tesco Store 3188
Solihull MBC,Children & Education Services,Cheswick Green J&I,Capitation,D11001,17/09/2014,PC83223,9.42,Tesco Store 3188
Solihull MBC,Adult Social Care,8 Downing Close,Catering Provisions,D20000,26/09/2014,PC90203,11.17,Tesco Store 3188
Solihull MBC,Adult Social Care,268 Creynolds Lane,Cleaning,B40000,11/09/2014,PC16210,12.00,Tesco Store 3188
Solihull MBC,Children & Education Services,Lady K Levesons Care & Play,Capitation,D11001,30/09/2014,PC91298,12,Tesco Store 3188
Solihull MBC,Adult Social Care,268 Creynolds Lane,Catering Provisions,D20000,02/10/2014,PC45891,12,Tesco Store 3188
Solihull MBC,Children & Education Services,Cheswick Green J&I,Capitation,D11001,22/09/2014,PC49152,13.17,Tesco Store 3188
Solihull MBC,Adult Social Care,3 Gates,Catering Provisions,D20000,19/09/2014,PC32270,14.91,Tesco Store 3188
Solihull MBC,Adult Social Care,268 Creynolds Lane,Catering Provisions,D20000,11/09/2014,PC16194,15.34,Tesco Store 3188
Solihull MBC,Children & Education Services,Flamingo Club,Catering Provisions,D20000,22/09/2014,PC48972,15.7,Tesco Store 3188
Solihull MBC,Children & Education Services,Shirley Heath Kids Club,Capitation,D11001,21/09/2014,PC63805,17.56,Tesco Store 3188
Solihull MBC,Adult Social Care,1 Coppice Close,Catering Provisions,D20000,16/09/2014,PC32536,17.95,Tesco Store 3188
Solihull MBC,Adult Social Care,1 Coppice Close,Catering Provisions,D20000,28/09/2014,PC54806,18.40,Tesco Store 3188
Solihull MBC,Children & Education Services,Streetsbrook Inf,Capitation,D11001,21/09/2014,PC63789,18.53,Tesco Store 3188
Solihull MBC,Adult Social Care,268 Creynolds Lane,Catering Provisions,D20000,29/09/2014,PC89175,18.56,Tesco Store 3188
Solihull MBC,Children & Education Services,Cheswick Chimps,Catering Provisions,D20000,04/09/2014,PC94094,18.84,Tesco Store 3188
Solihull MBC,Adult Social Care,8 Downing Close,Cleaning,B40000,15/09/2014,PC59685,19.95,Tesco Store 3188
Solihull MBC,Adult Social Care,9 Downing Close,Cleaning,B40000,16/09/2014,PC32551,19.95,Tesco Store 3188
Solihull MBC,Adult Social Care,9 Downing Close,Cleaning,B40000,16/09/2014,PC32577,20.00,Tesco Store 3188
Solihull MBC,Children & Education Services,Cheswick Chimps,Capitation,D11001,25/09/2014,PC37114,20.00,Tesco Store 3188
Solihull MBC,Adult Social Care,268 Creynolds Lane,Catering Provisions,D20000,02/10/2014,PC45875,20.6,Tesco Store 3188
Solihull MBC,Children & Education Services,Flamingo Club,Catering Provisions,D20000,29/09/2014,PC89118,20.72,Tesco Store 3188
Solihull MBC,Adult Social Care,8 Downing Close,Cleaning,B40000,29/09/2014,PC89134,21.01,Tesco Store 3188
Solihull MBC,Adult Social Care,3 Gates,Catering Provisions,D20000,15/09/2014,PC59727,21.15,Tesco Store 3188
Solihull MBC,Adult Social Care,268 Creynolds Lane,Cleaning,B40000,12/09/2014,PC73159,22.39,Tesco Store 3188
Solihull MBC,Adult Social Care,268 Creynolds Lane,Cleaning,B40000,21/09/2014,PC63722,22.93,Tesco Store 3188
Solihull MBC,Adult Social Care,268 Creynolds Lane,Catering Provisions,D20000,08/09/2014,PC14278,22.96,Tesco Store 3188
Solihull MBC,Adult Social Care,1 Coppice Close,Catering Provisions,D20000,10/09/2014,PC41315,27.79,Tesco Store 3188
Solihull MBC,Adult Social Care,3 Gates,Catering Provisions,D20000,25/09/2014,PC37072,28.93,Tesco Store 3188
Solihull MBC,Adult Social Care,8 Downing Close,Cleaning,B40000,08/09/2014,PC14237,29.29,Tesco Store 3188
Solihull MBC,Adult Social Care,3 Gates,Catering Provisions,D20000,09/09/2014,PC73484,29.34,Tesco Store 3188
Solihull MBC,Adult Social Care,268 Creynolds Lane,Catering Provisions,D20000,17/09/2014,PC83207,29.46,Tesco Store 3188
Solihull MBC,Adult Social Care,9 Downing Close,Cleaning,B40000,09/09/2014,PC73526,30.18,Tesco Store 3188
Solihull MBC,Adult Social Care,268 Creynolds Lane,Cleaning,B40000,06/09/2014,PC40269,31.57,Tesco Store 3188
Solihull MBC,Adult Social Care,8 Downing Close,Cleaning,B40000,22/09/2014,PC48998,32.62,Tesco Store 3188
Solihull MBC,Children & Education Services,Monkspath Monkeys,Catering Provisions,D20000,14/09/2014,PC80283,32.74,Tesco Store 3188
Solihull MBC,Children & Education Services,Peterbrook Club,Catering Provisions,D20000,29/09/2014,PC89092,34.06,Tesco Store 3188
Solihull MBC,Adult Social Care,8 Downing Close,Catering Provisions,D20000,05/09/2014,PC18724,37.06,Tesco Store 3188
Solihull MBC,Children & Education Services,Cranmore Little Acorns & Kids Club,Catering Provisions,D20000,01/10/2014,PC49259,37.93,Tesco Store 3188
Solihull MBC,Children & Education Services,Peterbrook Club,Catering Provisions,D20000,16/09/2014,PC32494,40.87,Tesco Store 3188
Solihull MBC,Adult Social Care,9 Downing Close,Cleaning,B40000,29/09/2014,PC89233,41.6,Tesco Store 3188
Solihull MBC,Adult Social Care,9 Downing Close,Cleaning,B40000,22/09/2014,PC49095,43.46,Tesco Store 3188
Solihull MBC,Children & Education Services,Cheswick Chimps,Catering Provisions,D20000,16/09/2014,PC32502,43.51,Tesco Store 3188
Solihull MBC,Children & Education Services,Cranmore Little Acorns & Kids Club,Catering Provisions,D20000,03/09/2014,PC98852,44.13,Tesco Store 3188
Solihull MBC,Children & Education Services,Lady K Levesons Care & Play,Capitation,D11001,15/09/2014,PC59644,45.34,Tesco Store 3188
Solihull MBC,Children & Education Services,Cheswick Chimps,Catering Provisions,D20000,25/09/2014,PC37064,45.51,Tesco Store 3188
Solihull MBC,Children & Education Services,Peterbrook Club,Catering Provisions,D20000,22/09/2014,PC48949,45.54,Tesco Store 3188
Solihull MBC,Adult Social Care,8 Downing Close,Catering Provisions,D20000,12/09/2014,PC73118,45.55,Tesco Store 3188
Solihull MBC,Adult Social Care,9 Downing Close,Catering Provisions,D20000,29/09/2014,PC89258,48.6,Tesco Store 3188
Solihull MBC,Adult Social Care,8 Downing Close,Furniture & Equipment,D10000,08/09/2014,PC14211,49,Tesco Store 3188
Solihull MBC,Children & Education Services,Cheswick Green J&I,Capitation,D11001,15/09/2014,PC59669,50.00,Tesco Store 3188
Solihull MBC,Adult Social Care,9 Hurst Green,Catering Provisions,D20000,19/09/2014,PC32254,50.29,Tesco Store 3188
Solihull MBC,Children & Education Services,Lady K Levesons Care & Play,Capitation,D11001,29/09/2014,PC89100,51.50,Tesco Store 3188
Solihull MBC,Children & Education Services,Peterbrook Club,Catering Provisions,D20000,10/09/2014,PC41307,54.39,Tesco Store 3188
Solihull MBC,Children & Education Services,Cranmore Little Acorns & Kids Club,Catering Provisions,D20000,17/09/2014,PC83181,54.67,Tesco Store 3188
Solihull MBC,Adult Social Care,8 Downing Close,Catering Provisions,D20000,15/09/2014,PC59701,55.77,Tesco Store 3188
Solihull MBC,Children & Education Services,Lady K Levesons Care & Play,Capitation,D11001,08/09/2014,PC14203,55.9,Tesco Store 3188
Solihull MBC,Children & Education Services,Monkspath Monkeys,Catering Provisions,D20000,12/09/2014,PC73076,57.97,Tesco Store 3188
Solihull MBC,Children & Education Services,Monkspath Monkeys,Catering Provisions,D20000,21/09/2014,PC63763,61.45,Tesco Store 3188
Solihull MBC,Children & Education Services,Lady K Levesons Care & Play,Capitation,D11001,22/09/2014,PC48964,62.49,Tesco Store 3188
Solihull MBC,Adult Social Care,8 Downing Close,Catering Provisions,D20000,22/09/2014,PC49012,66.75,Tesco Store 3188
Solihull MBC,Adult Social Care,1 Coppice Close,Catering Provisions,D20000,10/09/2014,PC41331,67.89,Tesco Store 3188
Solihull MBC,Adult Social Care,3 Gates,Catering Provisions,D20000,25/09/2014,PC37098,72.84,Tesco Store 3188
Solihull MBC,Adult Social Care,137 Bills Lane,Catering Provisions,D20000,22/09/2014,PC49038,77.15,Tesco Store 3188
Solihull MBC,Adult Social Care,1 Coppice Close,Catering Provisions,D20000,16/09/2014,PC32510,78.22,Tesco Store 3188
Solihull MBC,Adult Social Care,3 Gates,Catering Provisions,D20000,15/09/2014,PC59743,82.77,Tesco Store 3188
Solihull MBC,Adult Social Care,8 Downing Close,Catering Provisions,D20000,08/09/2014,PC14252,83.95,Tesco Store 3188
Solihull MBC,Adult Social Care,9 Downing Close,Catering Provisions,D20000,22/09/2014,PC49111,84.69,Tesco Store 3188
Solihull MBC,Adult Social Care,222 Bills Lane,Catering Provisions,D20000,22/09/2014,PC49079,90.94,Tesco Store 3188
Solihull MBC,Adult Social Care,9 Downing Close,Catering Provisions,D20000,09/09/2014,PC73567,91.09,Tesco Store 3188
Solihull MBC,Adult Social Care,268 Creynolds Lane,Catering Provisions,D20000,12/09/2014,PC73175,91.22,Tesco Store 3188
Solihull MBC,Adult Social Care,1 Coppice Close,Catering Provisions,D20000,28/09/2014,PC54822,92.05,Tesco Store 3188
Solihull MBC,Adult Social Care,8 Downing Close,Catering Provisions,D20000,29/09/2014,PC89159,96.70,Tesco Store 3188
Solihull MBC,Adult Social Care,222 Bills Lane,Catering Provisions,D20000,29/09/2014,PC89217,96.72,Tesco Store 3188
Solihull MBC,Children & Education Services,Monkspath Monkeys,Catering Provisions,D20000,07/09/2014,PC50889,103.27,Tesco Store 3188
Solihull MBC,Adult Social Care,9 Downing Close,Catering Provisions,D20000,16/09/2014,PC32593,105.17,Tesco Store 3188
Solihull MBC,Children & Education Services,Monkspath Monkeys,Catering Provisions,D20000,22/09/2014,PC48956,106.70,Tesco Store 3188
Solihull MBC,Adult Social Care,3 Gates,Catering Provisions,D20000,09/09/2014,PC73500,109.75,Tesco Store 3188
Solihull MBC,Adult Social Care,3 Gates,Catering Provisions,D20000,19/09/2014,PC32296,117.50,Tesco Store 3188
Solihull MBC,Children & Education Services,Monkspath Monkeys,Catering Provisions,D20000,08/09/2014,PC14195,118.28,Tesco Store 3188
Solihull MBC,Adult Social Care,268 Creynolds Lane,Catering Provisions,D20000,29/09/2014,PC89191,118.98,Tesco Store 3188
Solihull MBC,Children & Education Services,Monkspath Monkeys,Catering Provisions,D20000,29/09/2014,PC89076,123.55,Tesco Store 3188
Solihull MBC,Adult Social Care,1 Coppice Close,Catering Provisions,D20000,22/09/2014,PC49053,127.15,Tesco Store 3188
Solihull MBC,Adult Social Care,268 Creynolds Lane,Catering Provisions,D20000,06/09/2014,PC40285,129.57,Tesco Store 3188
Solihull MBC,Children & Education Services,Monkspath Monkeys,Catering Provisions,D20000,15/09/2014,PC59651,137.74,Tesco Store 3188
Solihull MBC,Central Services to the Public,Organisational Development,Training,A32000,09/09/2014,PC73468,175.00,Tesco Store 3188
Solihull MBC,Adult Social Care,268 Creynolds Lane,Catering Provisions,D20000,21/09/2014,PC63748,183.90,Tesco Store 3188
Solihull MBC,Children & Education Services,C Brom Infants Club,Capitation,D11001,24/09/2014,PC83490,1.87,Tesco Stores 2219
Solihull MBC,Children & Education Services,C Brom Infants Club,Capitation,D11001,22/09/2014,PC64567,1.93,Tesco Stores 2219
Solihull MBC,Children & Education Services,C Brom Infants Club,Capitation,D11001,29/09/2014,PC53093,2.23,Tesco Stores 2219
Solihull MBC,Central Services to the Public,Organisational Development,Training,A32000,15/09/2014,PC58044,3.17,Tesco Stores 2219
Solihull MBC,Central Services to the Public,Organisational Development,Training,A32000,08/09/2014,PC29667,3.33,Tesco Stores 2219
Solihull MBC,Central Services to the Public,Organisational Development,Training,A32000,01/10/2014,PC28624,3.38,Tesco Stores 2219
Solihull MBC,Children & Education Services,Youth Council / YID,Other Transport Costs,C42000,22/09/2014,PC67107,4.17,Tesco Stores 2219
Solihull MBC,Central Services to the Public,Organisational Development,Training,A32000,29/09/2014,PC55189,6.25,Tesco Stores 2219
Solihull MBC,Children & Education Services,Auckland Centre,Furniture & Equipment,D10000,11/09/2014,PC87600,7,Tesco Stores 2219
Solihull MBC,Children & Education Services,Auckland Centre,Furniture & Equipment,D10000,29/09/2014,PC53119,10.90,Tesco Stores 2219
Solihull MBC,Children & Education Services,Auckland Centre,Furniture & Equipment,D10000,22/09/2014,PC64583,13.60,Tesco Stores 2219
Solihull MBC,Children & Education Services,Yorkswood J&I,Meetings & Other Expenses,D61002,23/09/2014,PC64581,27.6,Tesco Stores 2328
Solihull MBC,Children & Education Services,St John The Baptist J&I Club,Capitation,D11001,23/09/2014,PC64599,35.34,Tesco Stores 2328
Solihull MBC,Children & Education Services,St John The Baptist J&I Club,Capitation,D11001,03/09/2014,PC36258,36.24,Tesco Stores 2328
Solihull MBC,Children & Education Services,Yorkswood J&I,Meetings & Other Expenses,D61002,16/09/2014,PC94120,40.26,Tesco Stores 2328
Solihull MBC,Children & Education Services,Meriden Breakfast Club,Catering Provisions,D20000,17/09/2014,PC51237,48.56,Tesco Stores 2328
Solihull MBC,Children & Education Services,Meriden Breakfast Club,Catering Provisions,D20000,25/09/2014,PC09339,48.85,Tesco Stores 2328
Solihull MBC,Children & Education Services,Meriden Breakfast Club,Catering Provisions,D20000,09/09/2014,PC40726,52.23,Tesco Stores 2328
Solihull MBC,Children & Education Services,Yorkswood J&I,Meetings & Other Expenses,D61002,29/09/2014,PC46974,60.65,Tesco Stores 2328
